{"text_format":"1","workbook":"xlsx","n_sheets":3,"sheets":["CST-240","Sample","Muni"],"not_rendered":{"charts":0,"images":0,"macros":0,"external_links":0,"defined_names":0,"comments":0,"pivot_tables":0},"unopened":[],"bounds":{"document_bytes":16777216,"sheet_cells":100000,"rows_first":2000,"rows_last":500,"rows_between":2000,"halvings":0,"cell_chars":16384,"cell_head_chars":4096},"cells_cut":0,"cells_raw":0,"read":"whole","date_system":"1900"}

{"sheet":"CST-240","index":0,"n_rows":2,"n_cols":9,"rows_kept":2,"cut":false,"hidden":false,"merged":[]}
["(A)","(B)","(C)","(D)","(E)","(F)","(G)","(H)","(I)"]
["Vendor Name","Invoice Date","Invoice Number","Exempt Purchase Description","Intended Use","Exempt Purchase Amount","WV State Tax","Municipality Tax"," Municipality Name"]

{"sheet":"Sample","index":1,"n_rows":2,"n_cols":13,"rows_kept":2,"cut":false,"hidden":true,"merged":[]}
["(A)","(B)","(C)","(D)","(E)","(F)","(G)","(H)","(I)"]
["Vendor Name","Invoice Date","Invoice Number","Exempt Purchase Description","Intended Use","Exempt Purchase Amount","WV State Tax","Municipality Tax"," Municipality Name","State Disallowed","Muni Disallowed","Reason","Determination"]

{"sheet":"Muni","index":2,"n_rows":294,"n_cols":10,"rows_kept":294,"cut":false,"hidden":true,"merged":[]}
["local sales","Code","Name",null,null,{"$f":"COUNTIF(B:B,\"*\")","v":294},1,{"$f":"IF(ISERROR(G1),\"\",G1)","v":1},{"$f":"IF(H2<>\"\",IF(H1<>\"\",MID($F$3,H1,H2-H1-1),\"X\"),IF(H1<>\"\",MID($F$3,H1,LEN($F$3)-H1+1),\"X\"))","v":"Alderson"},{"$f":"LEFT(I1,5)","v":"Alder"}]
[null,"39165","Albright",{"$f":"IF(A2<>\"\",CONCATENATE(C2,\",\"),\"\")","v":""},{"$f":"D2","v":""},{"$f":"INDEX(A:E,F1,5)","v":"Alderson,Anmoore,Ansted,Athens,Barboursville,Bath,Beckley,Bluefield,Bolivar,Bridgeport,Bruceton Mills,Buckhannon,Capon Bridge,Chapmanville,Charles Town,Charleston,Chester,Clarksburg,Davis,Dunbar,Elizabeth,Elkins,Ellenboro,Fairmont,Fayetteville,Follansbee,Grafton,Harpers Ferry,Harrisville,Hundred,Huntington,Hurricane,Kingwood,Lewisburg,Logan,Man,Mannington,Martinsburg,Masontown,Middlebourne,Milton,Montgomery,Moorefield,Morgantown,Moundsville,New Cumberland,New Martinsville,Nitro,Nutter Fort,Oak Hill,Paden City,Parkersburg,Paw Paw,Pennsboro,Petersburg,Pine Grove,Princeton,Quinwood,Ranson,Ravenswood,Reedsville,Richwood,Ripley,Romney,Rowlesburg,Rupert,Shepherdstown,Shinnston,Sistersville,Smithers,Sophia,South Charleston,Spencer,St Albans,Summersville,Sylvester,Terra Alta,Thomas,Tunnelton,Vienna,Wardensville,Wayne,Weirton,West Union,Weston,Westover,Wheeling,White Hall,Williamstown,"},{"$f":"SEARCH(\",\",$F$3,G1)+1","v":10},{"$f":"IF(ISERROR(G2),\"\",G2)","v":10},{"$f":"IF(H3<>\"\",IF(H2<>\"\",MID($F$3,H2,H3-H2-1),\"X\"),IF(H2<>\"\",MID($F$3,H2,LEN($F$3)-H2+1),\"X\"))","v":"Anmoore"},{"$f":"LEFT(I2,5)","v":"Anmoo"}]
[null,"31135","Alderson",{"$f":"IF(A3<>\"\",CONCATENATE(C3,\",\"),\"\")","v":""},{"$f":"CONCATENATE(E2,D3)","v":""},{"$f":"LEFT(F2,LEN(F2)-1)","v":"Alderson,Anmoore,Ansted,Athens,Barboursville,Bath,Beckley,Bluefield,Bolivar,Bridgeport,Bruceton Mills,Buckhannon,Capon Bridge,Chapmanville,Charles Town,Charleston,Chester,Clarksburg,Davis,Dunbar,Elizabeth,Elkins,Ellenboro,Fairmont,Fayetteville,Follansbee,Grafton,Harpers Ferry,Harrisville,Hundred,Huntington,Hurricane,Kingwood,Lewisburg,Logan,Man,Mannington,Martinsburg,Masontown,Middlebourne,Milton,Montgomery,Moorefield,Morgantown,Moundsville,New Cumberland,New Martinsville,Nitro,Nutter Fort,Oak Hill,Paden City,Parkersburg,Paw Paw,Pennsboro,Petersburg,Pine Grove,Princeton,Quinwood,Ranson,Ravenswood,Reedsville,Richwood,Ripley,Romney,Rowlesburg,Rupert,Shepherdstown,Shinnston,Sistersville,Smithers,Sophia,South Charleston,Spencer,St Albans,Summersville,Sylvester,Terra Alta,Thomas,Tunnelton,Vienna,Wardensville,Wayne,Weirton,West Union,Weston,Westover,Wheeling,White Hall,Williamstown"},{"$f":"SEARCH(\",\",$F$3,G2)+1","v":18},18,"Ansted","Anste"]
["1","13038","Alderson","Alderson,",{"$f":"CONCATENATE(E3,D4)","v":"Alderson,"},{"$f":"COUNTIF(I1:I294,\"<>X\")","v":89},25,25,"Athens","Athen"]
[null,"33140","Anawalt","","Alderson,",{"$f":"ADDRESS(F4,9)","v":"$I$89"},32,32,"Barboursville","Barbo"]
["1","17053","Anmoore","Anmoore,","Alderson,Anmoore,",null,46,46,"Bath","Bath"]
["1","10025","Ansted","Ansted,","Alderson,Anmoore,Ansted,",null,51,51,"Beckley","Beckl"]
["1","27114","Athens","Athens,","Alderson,Anmoore,Ansted,Athens,",null,59,59,"Bluefield","Bluef"]
[null,"43194","Auburn","","Alderson,Anmoore,Ansted,Athens,",null,69,69,"Bolivar","Boliv"]
[null,"40175","Bancroft","","Alderson,Anmoore,Ansted,Athens,",null,77,77,"Bridgeport","Bridg"]
[null,"01000","Barbour County","","Alderson,Anmoore,Ansted,Athens,",null,88,88,"Bruceton Mills","Bruce"]
["1","06019","Barboursville","Barboursville,","Alderson,Anmoore,Ansted,Athens,Barboursville,",null,103,103,"Buckhannon","Buckh"]
[null,"24094","Barracksville","","Alderson,Anmoore,Ansted,Athens,Barboursville,",null,114,114,"Capon Bridge","Capon"]
["1","32138","Bath","Bath,","Alderson,Anmoore,Ansted,Athens,Barboursville,Bath,",null,127,127,"Chapmanville","Chapm"]
[null,"12037","Bayard","","Alderson,Anmoore,Ansted,Athens,Barboursville,Bath,",null,140,140,"Charles Town","Charl"]
["1","41182","Beckley","Beckley,","Alderson,Anmoore,Ansted,Athens,Barboursville,Bath,Beckley,",null,153,153,"Charleston","Charl"]
[null,"05014","Beech Bottom","","Alderson,Anmoore,Ansted,Athens,Barboursville,Bath,Beckley,",null,164,164,"Chester","Chest"]
[null,"01001","Belington","","Alderson,Anmoore,Ansted,Athens,Barboursville,Bath,Beckley,",null,172,172,"Clarksburg","Clark"]
[null,"20070","Belle","","Alderson,Anmoore,Ansted,Athens,Barboursville,Bath,Beckley,",null,183,183,"Davis","Davis"]
[null,"37159","Belmont","","Alderson,Anmoore,Ansted,Athens,Barboursville,Bath,Beckley,",null,189,189,"Dunbar","Dunba"]
[null,"25103","Benwood","","Alderson,Anmoore,Ansted,Athens,Barboursville,Bath,Beckley,",null,196,196,"Elizabeth","Eliza"]
[null,"02000","Berkeley County","","Alderson,Anmoore,Ansted,Athens,Barboursville,Bath,Beckley,",null,206,206,"Elkins","Elkin"]
[null,"05015","Bethany","","Alderson,Anmoore,Ansted,Athens,Barboursville,Bath,Beckley,",null,213,213,"Ellenboro","Ellen"]
[null,"35152","Bethlehem","","Alderson,Anmoore,Ansted,Athens,Barboursville,Bath,Beckley,",null,223,223,"Fairmont","Fairm"]
[null,"42187","Beverly","","Alderson,Anmoore,Ansted,Athens,Barboursville,Bath,Beckley,",null,232,232,"Fayetteville","Fayet"]
[null,"30129","Blacksville","","Alderson,Anmoore,Ansted,Athens,Barboursville,Bath,Beckley,",null,245,245,"Follansbee","Folla"]
["1","27115","Bluefield","Bluefield,","Alderson,Anmoore,Ansted,Athens,Barboursville,Bath,Beckley,Bluefield,",null,256,256,"Grafton","Graft"]
["1","19065","Bolivar","Bolivar,","Alderson,Anmoore,Ansted,Athens,Barboursville,Bath,Beckley,Bluefield,Bolivar,",null,264,264,"Harpers Ferry","Harpe"]
[null,"03000","Boone County","","Alderson,Anmoore,Ansted,Athens,Barboursville,Bath,Beckley,Bluefield,Bolivar,",null,278,278,"Harrisville","Harri"]
[null,"33141","Bradshaw","","Alderson,Anmoore,Ansted,Athens,Barboursville,Bath,Beckley,Bluefield,Bolivar,",null,290,290,"Hundred","Hundr"]
[null,"27116","Bramwell","","Alderson,Anmoore,Ansted,Athens,Barboursville,Bath,Beckley,Bluefield,Bolivar,",null,298,298,"Huntington","Hunti"]
[null,"39166","Brandonville","","Alderson,Anmoore,Ansted,Athens,Barboursville,Bath,Beckley,Bluefield,Bolivar,",null,309,309,"Hurricane","Hurri"]
[null,"04000","Braxton County","","Alderson,Anmoore,Ansted,Athens,Barboursville,Bath,Beckley,Bluefield,Bolivar,",null,319,319,"Kingwood","Kingw"]
["1","17054","Bridgeport","Bridgeport,","Alderson,Anmoore,Ansted,Athens,Barboursville,Bath,Beckley,Bluefield,Bolivar,Bridgeport,",null,328,328,"Lewisburg","Lewis"]
[null,"05000","Brooke County","","Alderson,Anmoore,Ansted,Athens,Barboursville,Bath,Beckley,Bluefield,Bolivar,Bridgeport,",null,338,338,"Logan","Logan"]
["1","39167","Bruceton Mills","Bruceton Mills,","Alderson,Anmoore,Ansted,Athens,Barboursville,Bath,Beckley,Bluefield,Bolivar,Bridgeport,Bruceton Mills,",null,344,344,"Man","Man"]
["1","49214","Buckhannon","Buckhannon,","Alderson,Anmoore,Ansted,Athens,Barboursville,Bath,Beckley,Bluefield,Bolivar,Bridgeport,Bruceton Mills,Buckhannon,",null,348,348,"Mannington","Manni"]
[null,"40176","Buffalo","","Alderson,Anmoore,Ansted,Athens,Barboursville,Bath,Beckley,Bluefield,Bolivar,Bridgeport,Bruceton Mills,Buckhannon,",null,359,359,"Martinsburg","Marti"]
[null,"04010","Burnsville","","Alderson,Anmoore,Ansted,Athens,Barboursville,Bath,Beckley,Bluefield,Bolivar,Bridgeport,Bruceton Mills,Buckhannon,",null,371,371,"Masontown","Mason"]
[null,"06000","Cabell County","","Alderson,Anmoore,Ansted,Athens,Barboursville,Bath,Beckley,Bluefield,Bolivar,Bridgeport,Bruceton Mills,Buckhannon,",null,381,381,"Middlebourne","Middl"]
[null,"43195","Cairo","","Alderson,Anmoore,Ansted,Athens,Barboursville,Bath,Beckley,Bluefield,Bolivar,Bridgeport,Bruceton Mills,Buckhannon,",null,394,394,"Milton","Milto"]
[null,"07000","Calhoun County","","Alderson,Anmoore,Ansted,Athens,Barboursville,Bath,Beckley,Bluefield,Bolivar,Bridgeport,Bruceton Mills,Buckhannon,",null,401,401,"Montgomery","Montg"]
[null,"51220","Camden on Gauley","","Alderson,Anmoore,Ansted,Athens,Barboursville,Bath,Beckley,Bluefield,Bolivar,Bridgeport,Bruceton Mills,Buckhannon,",null,412,412,"Moorefield","Moore"]
[null,"25104","Cameron","","Alderson,Anmoore,Ansted,Athens,Barboursville,Bath,Beckley,Bluefield,Bolivar,Bridgeport,Bruceton Mills,Buckhannon,",null,423,423,"Morgantown","Morga"]
["1","14046","Capon Bridge","Capon Bridge,","Alderson,Anmoore,Ansted,Athens,Barboursville,Bath,Beckley,Bluefield,Bolivar,Bridgeport,Bruceton Mills,Buckhannon,Capon Bridge,",null,434,434,"Moundsville","Mound"]
[null,"38161","Cass","","Alderson,Anmoore,Ansted,Athens,Barboursville,Bath,Beckley,Bluefield,Bolivar,Bridgeport,Bruceton Mills,Buckhannon,Capon Bridge,",null,446,446,"New Cumberland","New C"]
[null,"20071","Cedar Grove","","Alderson,Anmoore,Ansted,Athens,Barboursville,Bath,Beckley,Bluefield,Bolivar,Bridgeport,Bruceton Mills,Buckhannon,Capon Bridge,",null,461,461,"New Martinsville","New M"]
[null,"50215","Ceredo","","Alderson,Anmoore,Ansted,Athens,Barboursville,Bath,Beckley,Bluefield,Bolivar,Bridgeport,Bruceton Mills,Buckhannon,Capon Bridge,",null,478,478,"Nitro","Nitro"]
["1","23089","Chapmanville","Chapmanville,","Alderson,Anmoore,Ansted,Athens,Barboursville,Bath,Beckley,Bluefield,Bolivar,Bridgeport,Bruceton Mills,Buckhannon,Capon Bridge,Chapmanville,",null,484,484,"Nutter Fort","Nutte"]
["1","19066","Charles Town","Charles Town,","Alderson,Anmoore,Ansted,Athens,Barboursville,Bath,Beckley,Bluefield,Bolivar,Bridgeport,Bruceton Mills,Buckhannon,Capon Bridge,Chapmanville,Charles Town,",null,496,496,"Oak Hill","Oak H"]
["1","20072","Charleston","Charleston,","Alderson,Anmoore,Ansted,Athens,Barboursville,Bath,Beckley,Bluefield,Bolivar,Bridgeport,Bruceton Mills,Buckhannon,Capon Bridge,Chapmanville,Charles Town,Charleston,",null,505,505,"Paden City","Paden"]
[null,"20073","Chesapeake","","Alderson,Anmoore,Ansted,Athens,Barboursville,Bath,Beckley,Bluefield,Bolivar,Bridgeport,Bruceton Mills,Buckhannon,Capon Bridge,Chapmanville,Charles Town,Charleston,",null,516,516,"Parkersburg","Parke"]
["1","15048","Chester","Chester,","Alderson,Anmoore,Ansted,Athens,Barboursville,Bath,Beckley,Bluefield,Bolivar,Bridgeport,Bruceton Mills,Buckhannon,Capon Bridge,Chapmanville,Charles Town,Charleston,Chester,",null,528,528,"Paw Paw","Paw P"]
["1","17055","Clarksburg","Clarksburg,","Alderson,Anmoore,Ansted,Athens,Barboursville,Bath,Beckley,Bluefield,Bolivar,Bridgeport,Bruceton Mills,Buckhannon,Capon Bridge,Chapmanville,Charles Town,Charleston,Chester,Clarksburg,",null,536,536,"Pennsboro","Penns"]
[null,"08023","Clay","","Alderson,Anmoore,Ansted,Athens,Barboursville,Bath,Beckley,Bluefield,Bolivar,Bridgeport,Bruceton Mills,Buckhannon,Capon Bridge,Chapmanville,Charles Town,Charleston,Chester,Clarksburg,",null,546,546,"Petersburg","Peter"]
[null,"08000","Clay County","","Alderson,Anmoore,Ansted,Athens,Barboursville,Bath,Beckley,Bluefield,Bolivar,Bridgeport,Bruceton Mills,Buckhannon,Capon Bridge,Chapmanville,Charles Town,Charleston,Chester,Clarksburg,",null,557,557,"Pine Grove","Pine "]
[null,"35153","Clearview","","Alderson,Anmoore,Ansted,Athens,Barboursville,Bath,Beckley,Bluefield,Bolivar,Bridgeport,Bruceton Mills,Buckhannon,Capon Bridge,Chapmanville,Charles Town,Charleston,Chester,Clarksburg,",null,568,568,"Princeton","Princ"]
[null,"20074","Clendenin","","Alderson,Anmoore,Ansted,Athens,Barboursville,Bath,Beckley,Bluefield,Bolivar,Bridgeport,Bruceton Mills,Buckhannon,Capon Bridge,Chapmanville,Charles Town,Charleston,Chester,Clarksburg,",null,578,578,"Quinwood","Quinw"]
[null,"51221","Cowen","","Alderson,Anmoore,Ansted,Athens,Barboursville,Bath,Beckley,Bluefield,Bolivar,Bridgeport,Bruceton Mills,Buckhannon,Capon Bridge,Chapmanville,Charles Town,Charleston,Chester,Clarksburg,",null,587,587,"Ranson","Ranso"]
[null,"03006","Danville","","Alderson,Anmoore,Ansted,Athens,Barboursville,Bath,Beckley,Bluefield,Bolivar,Bridgeport,Bruceton Mills,Buckhannon,Capon Bridge,Chapmanville,Charles Town,Charleston,Chester,Clarksburg,",null,594,594,"Ravenswood","Raven"]
["1","47205","Davis","Davis,","Alderson,Anmoore,Ansted,Athens,Barboursville,Bath,Beckley,Bluefield,Bolivar,Bridgeport,Bruceton Mills,Buckhannon,Capon Bridge,Chapmanville,Charles Town,Charleston,Chester,Clarksburg,Davis,",null,605,605,"Reedsville","Reeds"]
[null,"33142","Davy","","Alderson,Anmoore,Ansted,Athens,Barboursville,Bath,Beckley,Bluefield,Bolivar,Bridgeport,Bruceton Mills,Buckhannon,Capon Bridge,Chapmanville,Charles Town,Charleston,Chester,Clarksburg,Davis,",null,616,616,"Richwood","Richw"]
[null,"29124","Delbarton","","Alderson,Anmoore,Ansted,Athens,Barboursville,Bath,Beckley,Bluefield,Bolivar,Bridgeport,Bruceton Mills,Buckhannon,Capon Bridge,Chapmanville,Charles Town,Charleston,Chester,Clarksburg,Davis,",null,625,625,"Ripley","Riple"]
[null,"09000","Doddridge County","","Alderson,Anmoore,Ansted,Athens,Barboursville,Bath,Beckley,Bluefield,Bolivar,Bridgeport,Bruceton Mills,Buckhannon,Capon Bridge,Chapmanville,Charles Town,Charleston,Chester,Clarksburg,Davis,",null,632,632,"Romney","Romne"]
["1","20075","Dunbar","Dunbar,","Alderson,Anmoore,Ansted,Athens,Barboursville,Bath,Beckley,Bluefield,Bolivar,Bridgeport,Bruceton Mills,Buckhannon,Capon Bridge,Chapmanville,Charles Town,Charleston,Chester,Clarksburg,Davis,Dunbar,",null,639,639,"Rowlesburg","Rowle"]
[null,"38162","Durbin","","Alderson,Anmoore,Ansted,Athens,Barboursville,Bath,Beckley,Bluefield,Bolivar,Bridgeport,Bruceton Mills,Buckhannon,Capon Bridge,Chapmanville,Charles Town,Charleston,Chester,Clarksburg,Davis,Dunbar,",null,650,{"$f":"IF(ISERROR(G66),\"\",G66)","v":650},{"$f":"IF(H67<>\"\",IF(H66<>\"\",MID($F$3,H66,H67-H66-1),\"X\"),IF(H66<>\"\",MID($F$3,H66,LEN($F$3)-H66+1),\"X\"))","v":"Rupert"},{"$f":"LEFT(I66,5)","v":"Ruper"}]
[null,"20076","East Bank",{"$f":"IF(A67<>\"\",CONCATENATE(C67,\",\"),\"\")","v":""},"Alderson,Anmoore,Ansted,Athens,Barboursville,Bath,Beckley,Bluefield,Bolivar,Bridgeport,Bruceton Mills,Buckhannon,Capon Bridge,Chapmanville,Charles Town,Charleston,Chester,Clarksburg,Davis,Dunbar,",null,{"$f":"SEARCH(\",\",$F$3,G66)+1","v":657},657,"Shepherdstown","Sheph"]
[null,"40177","Eleanor","",{"$f":"CONCATENATE(E67,D68)","v":"Alderson,Anmoore,Ansted,Athens,Barboursville,Bath,Beckley,Bluefield,Bolivar,Bridgeport,Bruceton Mills,Buckhannon,Capon Bridge,Chapmanville,Charles Town,Charleston,Chester,Clarksburg,Davis,Dunbar,"},null,671,671,"Shinnston","Shinn"]
["1","53229","Elizabeth","Elizabeth,","Alderson,Anmoore,Ansted,Athens,Barboursville,Bath,Beckley,Bluefield,Bolivar,Bridgeport,Bruceton Mills,Buckhannon,Capon Bridge,Chapmanville,Charles Town,Charleston,Chester,Clarksburg,Davis,Dunbar,Elizabeth,",null,681,681,"Sistersville","Siste"]
[null,"28120","Elk Garden","","Alderson,Anmoore,Ansted,Athens,Barboursville,Bath,Beckley,Bluefield,Bolivar,Bridgeport,Bruceton Mills,Buckhannon,Capon Bridge,Chapmanville,Charles Town,Charleston,Chester,Clarksburg,Davis,Dunbar,Elizabeth,",null,694,694,"Smithers","Smith"]
["1","42189","Elkins","Elkins,","Alderson,Anmoore,Ansted,Athens,Barboursville,Bath,Beckley,Bluefield,Bolivar,Bridgeport,Bruceton Mills,Buckhannon,Capon Bridge,Chapmanville,Charles Town,Charleston,Chester,Clarksburg,Davis,Dunbar,Elizabeth,Elkins,",null,703,703,"Sophia","Sophi"]
["1","43196","Ellenboro","Ellenboro,","Alderson,Anmoore,Ansted,Athens,Barboursville,Bath,Beckley,Bluefield,Bolivar,Bridgeport,Bruceton Mills,Buckhannon,Capon Bridge,Chapmanville,Charles Town,Charleston,Chester,Clarksburg,Davis,Dunbar,Elizabeth,Elkins,Ellenboro,",null,710,710,"South Charleston","South"]
["1","24095","Fairmont","Fairmont,","Alderson,Anmoore,Ansted,Athens,Barboursville,Bath,Beckley,Bluefield,Bolivar,Bridgeport,Bruceton Mills,Buckhannon,Capon Bridge,Chapmanville,Charles Town,Charleston,Chester,Clarksburg,Davis,Dunbar,Elizabeth,Elkins,Ellenboro,Fairmont,",null,727,727,"Spencer","Spenc"]
[null,"24096","Fairview","","Alderson,Anmoore,Ansted,Athens,Barboursville,Bath,Beckley,Bluefield,Bolivar,Bridgeport,Bruceton Mills,Buckhannon,Capon Bridge,Chapmanville,Charles Town,Charleston,Chester,Clarksburg,Davis,Dunbar,Elizabeth,Elkins,Ellenboro,Fairmont,",null,735,735,"St Albans","St Al"]
[null,"13042","Falling Springs","","Alderson,Anmoore,Ansted,Athens,Barboursville,Bath,Beckley,Bluefield,Bolivar,Bridgeport,Bruceton Mills,Buckhannon,Capon Bridge,Chapmanville,Charles Town,Charleston,Chester,Clarksburg,Davis,Dunbar,Elizabeth,Elkins,Ellenboro,Fairmont,",null,745,745,"Summersville","Summe"]
[null,"24097","Farmington","","Alderson,Anmoore,Ansted,Athens,Barboursville,Bath,Beckley,Bluefield,Bolivar,Bridgeport,Bruceton Mills,Buckhannon,Capon Bridge,Chapmanville,Charles Town,Charleston,Chester,Clarksburg,Davis,Dunbar,Elizabeth,Elkins,Ellenboro,Fairmont,",null,758,758,"Sylvester","Sylve"]
[null,"10000","Fayette County","","Alderson,Anmoore,Ansted,Athens,Barboursville,Bath,Beckley,Bluefield,Bolivar,Bridgeport,Bruceton Mills,Buckhannon,Capon Bridge,Chapmanville,Charles Town,Charleston,Chester,Clarksburg,Davis,Dunbar,Elizabeth,Elkins,Ellenboro,Fairmont,",null,768,768,"Terra Alta","Terra"]
["1","10026","Fayetteville","Fayetteville,","Alderson,Anmoore,Ansted,Athens,Barboursville,Bath,Beckley,Bluefield,Bolivar,Bridgeport,Bruceton Mills,Buckhannon,Capon Bridge,Chapmanville,Charles Town,Charleston,Chester,Clarksburg,Davis,Dunbar,Elizabeth,Elkins,Ellenboro,Fairmont,Fayetteville,",null,779,779,"Thomas","Thoma"]
[null,"04011","Flatwoods","","Alderson,Anmoore,Ansted,Athens,Barboursville,Bath,Beckley,Bluefield,Bolivar,Bridgeport,Bruceton Mills,Buckhannon,Capon Bridge,Chapmanville,Charles Town,Charleston,Chester,Clarksburg,Davis,Dunbar,Elizabeth,Elkins,Ellenboro,Fairmont,Fayetteville,",null,786,786,"Tunnelton","Tunne"]
[null,"46203","Flemington","","Alderson,Anmoore,Ansted,Athens,Barboursville,Bath,Beckley,Bluefield,Bolivar,Bridgeport,Bruceton Mills,Buckhannon,Capon Bridge,Chapmanville,Charles Town,Charleston,Chester,Clarksburg,Davis,Dunbar,Elizabeth,Elkins,Ellenboro,Fairmont,Fayetteville,",null,796,796,"Vienna","Vienn"]
["1","05016","Follansbee","Follansbee,","Alderson,Anmoore,Ansted,Athens,Barboursville,Bath,Beckley,Bluefield,Bolivar,Bridgeport,Bruceton Mills,Buckhannon,Capon Bridge,Chapmanville,Charles Town,Charleston,Chester,Clarksburg,Davis,Dunbar,Elizabeth,Elkins,Ellenboro,Fairmont,Fayetteville,Follansbee,",null,803,803,"Wardensville","Warde"]
[null,"50216","Fort Gay","","Alderson,Anmoore,Ansted,Athens,Barboursville,Bath,Beckley,Bluefield,Bolivar,Bridgeport,Bruceton Mills,Buckhannon,Capon Bridge,Chapmanville,Charles Town,Charleston,Chester,Clarksburg,Davis,Dunbar,Elizabeth,Elkins,Ellenboro,Fairmont,Fayetteville,Follansbee,",null,816,816,"Wayne","Wayne"]
[null,"36158","Franklin","","Alderson,Anmoore,Ansted,Athens,Barboursville,Bath,Beckley,Bluefield,Bolivar,Bridgeport,Bruceton Mills,Buckhannon,Capon Bridge,Chapmanville,Charles Town,Charleston,Chester,Clarksburg,Davis,Dunbar,Elizabeth,Elkins,Ellenboro,Fairmont,Fayetteville,Follansbee,",null,822,822,"Weirton","Weirt"]
[null,"48210","Friendly","","Alderson,Anmoore,Ansted,Athens,Barboursville,Bath,Beckley,Bluefield,Bolivar,Bridgeport,Bruceton Mills,Buckhannon,Capon Bridge,Chapmanville,Charles Town,Charleston,Chester,Clarksburg,Davis,Dunbar,Elizabeth,Elkins,Ellenboro,Fairmont,Fayetteville,Follansbee,",null,830,830,"West Union","West "]
[null,"33143","Gary","","Alderson,Anmoore,Ansted,Athens,Barboursville,Bath,Beckley,Bluefield,Bolivar,Bridgeport,Bruceton Mills,Buckhannon,Capon Bridge,Chapmanville,Charles Town,Charleston,Chester,Clarksburg,Davis,Dunbar,Elizabeth,Elkins,Ellenboro,Fairmont,Fayetteville,Follansbee,",null,841,841,"Weston","Westo"]
[null,"04012","Gassaway","","Alderson,Anmoore,Ansted,Athens,Barboursville,Bath,Beckley,Bluefield,Bolivar,Bridgeport,Bruceton Mills,Buckhannon,Capon Bridge,Chapmanville,Charles Town,Charleston,Chester,Clarksburg,Davis,Dunbar,Elizabeth,Elkins,Ellenboro,Fairmont,Fayetteville,Follansbee,",null,848,848,"Westover","Westo"]
[null,"10027","Gauley Bridge","","Alderson,Anmoore,Ansted,Athens,Barboursville,Bath,Beckley,Bluefield,Bolivar,Bridgeport,Bruceton Mills,Buckhannon,Capon Bridge,Chapmanville,Charles Town,Charleston,Chester,Clarksburg,Davis,Dunbar,Elizabeth,Elkins,Ellenboro,Fairmont,Fayetteville,Follansbee,",null,857,857,"Wheeling","Wheel"]
[null,"29125","Gilbert","","Alderson,Anmoore,Ansted,Athens,Barboursville,Bath,Beckley,Bluefield,Bolivar,Bridgeport,Bruceton Mills,Buckhannon,Capon Bridge,Chapmanville,Charles Town,Charleston,Chester,Clarksburg,Davis,Dunbar,Elizabeth,Elkins,Ellenboro,Fairmont,Fayetteville,Follansbee,",null,866,866,"White Hall","White"]
[null,"11000","Gilmer County","","Alderson,Anmoore,Ansted,Athens,Barboursville,Bath,Beckley,Bluefield,Bolivar,Bridgeport,Bruceton Mills,Buckhannon,Capon Bridge,Chapmanville,Charles Town,Charleston,Chester,Clarksburg,Davis,Dunbar,Elizabeth,Elkins,Ellenboro,Fairmont,Fayetteville,Follansbee,",null,877,877,"Williamstown","Willi"]
[null,"20077","Glasgow","","Alderson,Anmoore,Ansted,Athens,Barboursville,Bath,Beckley,Bluefield,Bolivar,Bridgeport,Bruceton Mills,Buckhannon,Capon Bridge,Chapmanville,Charles Town,Charleston,Chester,Clarksburg,Davis,Dunbar,Elizabeth,Elkins,Ellenboro,Fairmont,Fayetteville,Follansbee,",null,{"$error":"#VALUE!"},"","X","X"]
[null,"25105","Glendale","","Alderson,Anmoore,Ansted,Athens,Barboursville,Bath,Beckley,Bluefield,Bolivar,Bridgeport,Bruceton Mills,Buckhannon,Capon Bridge,Chapmanville,Charles Town,Charleston,Chester,Clarksburg,Davis,Dunbar,Elizabeth,Elkins,Ellenboro,Fairmont,Fayetteville,Follansbee,",null,{"$error":"#VALUE!"},"","X","X"]
[null,"11035","Glenville","","Alderson,Anmoore,Ansted,Athens,Barboursville,Bath,Beckley,Bluefield,Bolivar,Bridgeport,Bruceton Mills,Buckhannon,Capon Bridge,Chapmanville,Charles Town,Charleston,Chester,Clarksburg,Davis,Dunbar,Elizabeth,Elkins,Ellenboro,Fairmont,Fayetteville,Follansbee,",null,{"$error":"#VALUE!"},"","X","X"]
["1","46204","Grafton","Grafton,","Alderson,Anmoore,Ansted,Athens,Barboursville,Bath,Beckley,Bluefield,Bolivar,Bridgeport,Bruceton Mills,Buckhannon,Capon Bridge,Chapmanville,Charles Town,Charleston,Chester,Clarksburg,Davis,Dunbar,Elizabeth,Elkins,Ellenboro,Fairmont,Fayetteville,Follansbee,Grafton,",null,{"$error":"#VALUE!"},"","X","X"]
[null,"12000","Grant County","","Alderson,Anmoore,Ansted,Athens,Barboursville,Bath,Beckley,Bluefield,Bolivar,Bridgeport,Bruceton Mills,Buckhannon,Capon Bridge,Chapmanville,Charles Town,Charleston,Chester,Clarksburg,Davis,Dunbar,Elizabeth,Elkins,Ellenboro,Fairmont,Fayetteville,Follansbee,Grafton,",null,{"$error":"#VALUE!"},"","X","X"]
[null,"24098","Grant Town","","Alderson,Anmoore,Ansted,Athens,Barboursville,Bath,Beckley,Bluefield,Bolivar,Bridgeport,Bruceton Mills,Buckhannon,Capon Bridge,Chapmanville,Charles Town,Charleston,Chester,Clarksburg,Davis,Dunbar,Elizabeth,Elkins,Ellenboro,Fairmont,Fayetteville,Follansbee,Grafton,",null,{"$error":"#VALUE!"},"","X","X"]
[null,"07022","Grantsville","","Alderson,Anmoore,Ansted,Athens,Barboursville,Bath,Beckley,Bluefield,Bolivar,Bridgeport,Bruceton Mills,Buckhannon,Capon Bridge,Chapmanville,Charles Town,Charleston,Chester,Clarksburg,Davis,Dunbar,Elizabeth,Elkins,Ellenboro,Fairmont,Fayetteville,Follansbee,Grafton,",null,{"$error":"#VALUE!"},"","X","X"]
[null,"30130","Granville","","Alderson,Anmoore,Ansted,Athens,Barboursville,Bath,Beckley,Bluefield,Bolivar,Bridgeport,Bruceton Mills,Buckhannon,Capon Bridge,Chapmanville,Charles Town,Charleston,Chester,Clarksburg,Davis,Dunbar,Elizabeth,Elkins,Ellenboro,Fairmont,Fayetteville,Follansbee,Grafton,",null,{"$error":"#VALUE!"},"","X","X"]
[null,"13000","Greenbrier County","","Alderson,Anmoore,Ansted,Athens,Barboursville,Bath,Beckley,Bluefield,Bolivar,Bridgeport,Bruceton Mills,Buckhannon,Capon Bridge,Chapmanville,Charles Town,Charleston,Chester,Clarksburg,Davis,Dunbar,Elizabeth,Elkins,Ellenboro,Fairmont,Fayetteville,Follansbee,Grafton,",null,{"$error":"#VALUE!"},"","X","X"]
[null,"47206","Hambleton","","Alderson,Anmoore,Ansted,Athens,Barboursville,Bath,Beckley,Bluefield,Bolivar,Bridgeport,Bruceton Mills,Buckhannon,Capon Bridge,Chapmanville,Charles Town,Charleston,Chester,Clarksburg,Davis,Dunbar,Elizabeth,Elkins,Ellenboro,Fairmont,Fayetteville,Follansbee,Grafton,",null,{"$error":"#VALUE!"},"","X","X"]
[null,"22087","Hamlin","","Alderson,Anmoore,Ansted,Athens,Barboursville,Bath,Beckley,Bluefield,Bolivar,Bridgeport,Bruceton Mills,Buckhannon,Capon Bridge,Chapmanville,Charles Town,Charleston,Chester,Clarksburg,Davis,Dunbar,Elizabeth,Elkins,Ellenboro,Fairmont,Fayetteville,Follansbee,Grafton,",null,{"$error":"#VALUE!"},"","X","X"]
[null,"14000","Hampshire County","","Alderson,Anmoore,Ansted,Athens,Barboursville,Bath,Beckley,Bluefield,Bolivar,Bridgeport,Bruceton Mills,Buckhannon,Capon Bridge,Chapmanville,Charles Town,Charleston,Chester,Clarksburg,Davis,Dunbar,Elizabeth,Elkins,Ellenboro,Fairmont,Fayetteville,Follansbee,Grafton,",null,{"$error":"#VALUE!"},"","X","X"]
[null,"15000","Hancock County","","Alderson,Anmoore,Ansted,Athens,Barboursville,Bath,Beckley,Bluefield,Bolivar,Bridgeport,Bruceton Mills,Buckhannon,Capon Bridge,Chapmanville,Charles Town,Charleston,Chester,Clarksburg,Davis,Dunbar,Elizabeth,Elkins,Ellenboro,Fairmont,Fayetteville,Follansbee,Grafton,",null,{"$error":"#VALUE!"},"","X","X"]
[null,"20078","Handley","","Alderson,Anmoore,Ansted,Athens,Barboursville,Bath,Beckley,Bluefield,Bolivar,Bridgeport,Bruceton Mills,Buckhannon,Capon Bridge,Chapmanville,Charles Town,Charleston,Chester,Clarksburg,Davis,Dunbar,Elizabeth,Elkins,Ellenboro,Fairmont,Fayetteville,Follansbee,Grafton,",null,{"$error":"#VALUE!"},"","X","X"]
[null,"16000","Hardy County","","Alderson,Anmoore,Ansted,Athens,Barboursville,Bath,Beckley,Bluefield,Bolivar,Bridgeport,Bruceton Mills,Buckhannon,Capon Bridge,Chapmanville,Charles Town,Charleston,Chester,Clarksburg,Davis,Dunbar,Elizabeth,Elkins,Ellenboro,Fairmont,Fayetteville,Follansbee,Grafton,",null,{"$error":"#VALUE!"},"","X","X"]
[null,"42190","Harman","","Alderson,Anmoore,Ansted,Athens,Barboursville,Bath,Beckley,Bluefield,Bolivar,Bridgeport,Bruceton Mills,Buckhannon,Capon Bridge,Chapmanville,Charles Town,Charleston,Chester,Clarksburg,Davis,Dunbar,Elizabeth,Elkins,Ellenboro,Fairmont,Fayetteville,Follansbee,Grafton,",null,{"$error":"#VALUE!"},"","X","X"]
["1","19067","Harpers Ferry","Harpers Ferry,","Alderson,Anmoore,Ansted,Athens,Barboursville,Bath,Beckley,Bluefield,Bolivar,Bridgeport,Bruceton Mills,Buckhannon,Capon Bridge,Chapmanville,Charles Town,Charleston,Chester,Clarksburg,Davis,Dunbar,Elizabeth,Elkins,Ellenboro,Fairmont,Fayetteville,Follansbee,Grafton,Harpers Ferry,",null,{"$error":"#VALUE!"},"","X","X"]
[null,"17000","Harrison County","","Alderson,Anmoore,Ansted,Athens,Barboursville,Bath,Beckley,Bluefield,Bolivar,Bridgeport,Bruceton Mills,Buckhannon,Capon Bridge,Chapmanville,Charles Town,Charleston,Chester,Clarksburg,Davis,Dunbar,Elizabeth,Elkins,Ellenboro,Fairmont,Fayetteville,Follansbee,Grafton,Harpers Ferry,",null,{"$error":"#VALUE!"},"","X","X"]
["1","43197","Harrisville","Harrisville,","Alderson,Anmoore,Ansted,Athens,Barboursville,Bath,Beckley,Bluefield,Bolivar,Bridgeport,Bruceton Mills,Buckhannon,Capon Bridge,Chapmanville,Charles Town,Charleston,Chester,Clarksburg,Davis,Dunbar,Elizabeth,Elkins,Ellenboro,Fairmont,Fayetteville,Follansbee,Grafton,Harpers Ferry,Harrisville,",null,{"$error":"#VALUE!"},"","X","X"]
[null,"26108","Hartford","","Alderson,Anmoore,Ansted,Athens,Barboursville,Bath,Beckley,Bluefield,Bolivar,Bridgeport,Bruceton Mills,Buckhannon,Capon Bridge,Chapmanville,Charles Town,Charleston,Chester,Clarksburg,Davis,Dunbar,Elizabeth,Elkins,Ellenboro,Fairmont,Fayetteville,Follansbee,Grafton,Harpers Ferry,Harrisville,",null,{"$error":"#VALUE!"},"","X","X"]
[null,"02004","Hedgesville","","Alderson,Anmoore,Ansted,Athens,Barboursville,Bath,Beckley,Bluefield,Bolivar,Bridgeport,Bruceton Mills,Buckhannon,Capon Bridge,Chapmanville,Charles Town,Charleston,Chester,Clarksburg,Davis,Dunbar,Elizabeth,Elkins,Ellenboro,Fairmont,Fayetteville,Follansbee,Grafton,Harpers Ferry,Harrisville,",null,{"$error":"#VALUE!"},"","X","X"]
[null,"26109","Henderson","","Alderson,Anmoore,Ansted,Athens,Barboursville,Bath,Beckley,Bluefield,Bolivar,Bridgeport,Bruceton Mills,Buckhannon,Capon Bridge,Chapmanville,Charles Town,Charleston,Chester,Clarksburg,Davis,Dunbar,Elizabeth,Elkins,Ellenboro,Fairmont,Fayetteville,Follansbee,Grafton,Harpers Ferry,Harrisville,",null,{"$error":"#VALUE!"},"","X","X"]
[null,"47207","Hendricks","","Alderson,Anmoore,Ansted,Athens,Barboursville,Bath,Beckley,Bluefield,Bolivar,Bridgeport,Bruceton Mills,Buckhannon,Capon Bridge,Chapmanville,Charles Town,Charleston,Chester,Clarksburg,Davis,Dunbar,Elizabeth,Elkins,Ellenboro,Fairmont,Fayetteville,Follansbee,Grafton,Harpers Ferry,Harrisville,",null,{"$error":"#VALUE!"},"","X","X"]
[null,"38163","Hillsboro","","Alderson,Anmoore,Ansted,Athens,Barboursville,Bath,Beckley,Bluefield,Bolivar,Bridgeport,Bruceton Mills,Buckhannon,Capon Bridge,Chapmanville,Charles Town,Charleston,Chester,Clarksburg,Davis,Dunbar,Elizabeth,Elkins,Ellenboro,Fairmont,Fayetteville,Follansbee,Grafton,Harpers Ferry,Harrisville,",null,{"$error":"#VALUE!"},"","X","X"]
[null,"45202","Hinton","","Alderson,Anmoore,Ansted,Athens,Barboursville,Bath,Beckley,Bluefield,Bolivar,Bridgeport,Bruceton Mills,Buckhannon,Capon Bridge,Chapmanville,Charles Town,Charleston,Chester,Clarksburg,Davis,Dunbar,Elizabeth,Elkins,Ellenboro,Fairmont,Fayetteville,Follansbee,Grafton,Harpers Ferry,Harrisville,",null,{"$error":"#VALUE!"},"","X","X"]
["1","52223","Hundred","Hundred,","Alderson,Anmoore,Ansted,Athens,Barboursville,Bath,Beckley,Bluefield,Bolivar,Bridgeport,Bruceton Mills,Buckhannon,Capon Bridge,Chapmanville,Charles Town,Charleston,Chester,Clarksburg,Davis,Dunbar,Elizabeth,Elkins,Ellenboro,Fairmont,Fayetteville,Follansbee,Grafton,Harpers Ferry,Harrisville,Hundred,",null,{"$error":"#VALUE!"},"","X","X"]
[null,"50217","Huntington","","Alderson,Anmoore,Ansted,Athens,Barboursville,Bath,Beckley,Bluefield,Bolivar,Bridgeport,Bruceton Mills,Buckhannon,Capon Bridge,Chapmanville,Charles Town,Charleston,Chester,Clarksburg,Davis,Dunbar,Elizabeth,Elkins,Ellenboro,Fairmont,Fayetteville,Follansbee,Grafton,Harpers Ferry,Harrisville,Hundred,",null,{"$error":"#VALUE!"},"","X","X"]
["1","06020","Huntington","Huntington,","Alderson,Anmoore,Ansted,Athens,Barboursville,Bath,Beckley,Bluefield,Bolivar,Bridgeport,Bruceton Mills,Buckhannon,Capon Bridge,Chapmanville,Charles Town,Charleston,Chester,Clarksburg,Davis,Dunbar,Elizabeth,Elkins,Ellenboro,Fairmont,Fayetteville,Follansbee,Grafton,Harpers Ferry,Harrisville,Hundred,Huntington,",null,{"$error":"#VALUE!"},"","X","X"]
["1","40178","Hurricane","Hurricane,","Alderson,Anmoore,Ansted,Athens,Barboursville,Bath,Beckley,Bluefield,Bolivar,Bridgeport,Bruceton Mills,Buckhannon,Capon Bridge,Chapmanville,Charles Town,Charleston,Chester,Clarksburg,Davis,Dunbar,Elizabeth,Elkins,Ellenboro,Fairmont,Fayetteville,Follansbee,Grafton,Harpers Ferry,Harrisville,Hundred,Huntington,Hurricane,",null,{"$error":"#VALUE!"},"","X","X"]
[null,"42191","Huttonsville","","Alderson,Anmoore,Ansted,Athens,Barboursville,Bath,Beckley,Bluefield,Bolivar,Bridgeport,Bruceton Mills,Buckhannon,Capon Bridge,Chapmanville,Charles Town,Charleston,Chester,Clarksburg,Davis,Dunbar,Elizabeth,Elkins,Ellenboro,Fairmont,Fayetteville,Follansbee,Grafton,Harpers Ferry,Harrisville,Hundred,Huntington,Hurricane,",null,{"$error":"#VALUE!"},"","X","X"]
[null,"33144","Iaegar","","Alderson,Anmoore,Ansted,Athens,Barboursville,Bath,Beckley,Bluefield,Bolivar,Bridgeport,Bruceton Mills,Buckhannon,Capon Bridge,Chapmanville,Charles Town,Charleston,Chester,Clarksburg,Davis,Dunbar,Elizabeth,Elkins,Ellenboro,Fairmont,Fayetteville,Follansbee,Grafton,Harpers Ferry,Harrisville,Hundred,Huntington,Hurricane,",null,{"$error":"#VALUE!"},"","X","X"]
[null,"18000","Jackson County","","Alderson,Anmoore,Ansted,Athens,Barboursville,Bath,Beckley,Bluefield,Bolivar,Bridgeport,Bruceton Mills,Buckhannon,Capon Bridge,Chapmanville,Charles Town,Charleston,Chester,Clarksburg,Davis,Dunbar,Elizabeth,Elkins,Ellenboro,Fairmont,Fayetteville,Follansbee,Grafton,Harpers Ferry,Harrisville,Hundred,Huntington,Hurricane,",null,{"$error":"#VALUE!"},"","X","X"]
[null,"21085","Jane Lew","","Alderson,Anmoore,Ansted,Athens,Barboursville,Bath,Beckley,Bluefield,Bolivar,Bridgeport,Bruceton Mills,Buckhannon,Capon Bridge,Chapmanville,Charles Town,Charleston,Chester,Clarksburg,Davis,Dunbar,Elizabeth,Elkins,Ellenboro,Fairmont,Fayetteville,Follansbee,Grafton,Harpers Ferry,Harrisville,Hundred,Huntington,Hurricane,",null,{"$error":"#VALUE!"},"","X","X"]
[null,"19000","Jefferson County","","Alderson,Anmoore,Ansted,Athens,Barboursville,Bath,Beckley,Bluefield,Bolivar,Bridgeport,Bruceton Mills,Buckhannon,Capon Bridge,Chapmanville,Charles Town,Charleston,Chester,Clarksburg,Davis,Dunbar,Elizabeth,Elkins,Ellenboro,Fairmont,Fayetteville,Follansbee,Grafton,Harpers Ferry,Harrisville,Hundred,Huntington,Hurricane,",null,{"$error":"#VALUE!"},"","X","X"]
[null,"01002","Junior","","Alderson,Anmoore,Ansted,Athens,Barboursville,Bath,Beckley,Bluefield,Bolivar,Bridgeport,Bruceton Mills,Buckhannon,Capon Bridge,Chapmanville,Charles Town,Charleston,Chester,Clarksburg,Davis,Dunbar,Elizabeth,Elkins,Ellenboro,Fairmont,Fayetteville,Follansbee,Grafton,Harpers Ferry,Harrisville,Hundred,Huntington,Hurricane,",null,{"$error":"#VALUE!"},"","X","X"]
[null,"20000","Kanawha County","","Alderson,Anmoore,Ansted,Athens,Barboursville,Bath,Beckley,Bluefield,Bolivar,Bridgeport,Bruceton Mills,Buckhannon,Capon Bridge,Chapmanville,Charles Town,Charleston,Chester,Clarksburg,Davis,Dunbar,Elizabeth,Elkins,Ellenboro,Fairmont,Fayetteville,Follansbee,Grafton,Harpers Ferry,Harrisville,Hundred,Huntington,Hurricane,",null,{"$error":"#VALUE!"},"","X","X"]
[null,"50218","Kenova","","Alderson,Anmoore,Ansted,Athens,Barboursville,Bath,Beckley,Bluefield,Bolivar,Bridgeport,Bruceton Mills,Buckhannon,Capon Bridge,Chapmanville,Charles Town,Charleston,Chester,Clarksburg,Davis,Dunbar,Elizabeth,Elkins,Ellenboro,Fairmont,Fayetteville,Follansbee,Grafton,Harpers Ferry,Harrisville,Hundred,Huntington,Hurricane,",null,{"$error":"#VALUE!"},"","X","X"]
[null,"29126","Kermit","","Alderson,Anmoore,Ansted,Athens,Barboursville,Bath,Beckley,Bluefield,Bolivar,Bridgeport,Bruceton Mills,Buckhannon,Capon Bridge,Chapmanville,Charles Town,Charleston,Chester,Clarksburg,Davis,Dunbar,Elizabeth,Elkins,Ellenboro,Fairmont,Fayetteville,Follansbee,Grafton,Harpers Ferry,Harrisville,Hundred,Huntington,Hurricane,",null,{"$error":"#VALUE!"},"","X","X"]
[null,"28121","Keyser","","Alderson,Anmoore,Ansted,Athens,Barboursville,Bath,Beckley,Bluefield,Bolivar,Bridgeport,Bruceton Mills,Buckhannon,Capon Bridge,Chapmanville,Charles Town,Charleston,Chester,Clarksburg,Davis,Dunbar,Elizabeth,Elkins,Ellenboro,Fairmont,Fayetteville,Follansbee,Grafton,Harpers Ferry,Harrisville,Hundred,Huntington,Hurricane,",null,{"$error":"#VALUE!"},"","X","X"]
[null,"33145","Keystone","","Alderson,Anmoore,Ansted,Athens,Barboursville,Bath,Beckley,Bluefield,Bolivar,Bridgeport,Bruceton Mills,Buckhannon,Capon Bridge,Chapmanville,Charles Town,Charleston,Chester,Clarksburg,Davis,Dunbar,Elizabeth,Elkins,Ellenboro,Fairmont,Fayetteville,Follansbee,Grafton,Harpers Ferry,Harrisville,Hundred,Huntington,Hurricane,",null,{"$error":"#VALUE!"},"","X","X"]
[null,"33146","Kimball","","Alderson,Anmoore,Ansted,Athens,Barboursville,Bath,Beckley,Bluefield,Bolivar,Bridgeport,Bruceton Mills,Buckhannon,Capon Bridge,Chapmanville,Charles Town,Charleston,Chester,Clarksburg,Davis,Dunbar,Elizabeth,Elkins,Ellenboro,Fairmont,Fayetteville,Follansbee,Grafton,Harpers Ferry,Harrisville,Hundred,Huntington,Hurricane,",null,{"$error":"#VALUE!"},{"$f":"IF(ISERROR(G130),\"\",G130)","v":""},{"$f":"IF(H131<>\"\",IF(H130<>\"\",MID($F$3,H130,H131-H130-1),\"X\"),IF(H130<>\"\",MID($F$3,H130,LEN($F$3)-H130+1),\"X\"))","v":"X"},{"$f":"LEFT(I130,5)","v":"X"}]
["1","39168","Kingwood",{"$f":"IF(A131<>\"\",CONCATENATE(C131,\",\"),\"\")","v":"Kingwood,"},"Alderson,Anmoore,Ansted,Athens,Barboursville,Bath,Beckley,Bluefield,Bolivar,Bridgeport,Bruceton Mills,Buckhannon,Capon Bridge,Chapmanville,Charles Town,Charleston,Chester,Clarksburg,Davis,Dunbar,Elizabeth,Elkins,Ellenboro,Fairmont,Fayetteville,Follansbee,Grafton,Harpers Ferry,Harrisville,Hundred,Huntington,Hurricane,Kingwood,",null,{"$f":"SEARCH(\",\",$F$3,G130)+1","v":{"$error":"#VALUE!"}},"","X","X"]
[null,"26110","Leon","",{"$f":"CONCATENATE(E131,D132)","v":"Alderson,Anmoore,Ansted,Athens,Barboursville,Bath,Beckley,Bluefield,Bolivar,Bridgeport,Bruceton Mills,Buckhannon,Capon Bridge,Chapmanville,Charles Town,Charleston,Chester,Clarksburg,Davis,Dunbar,Elizabeth,Elkins,Ellenboro,Fairmont,Fayetteville,Follansbee,Grafton,Harpers Ferry,Harrisville,Hundred,Huntington,Hurricane,Kingwood,"},null,{"$error":"#VALUE!"},"","X","X"]
[null,"41183","Lester","","Alderson,Anmoore,Ansted,Athens,Barboursville,Bath,Beckley,Bluefield,Bolivar,Bridgeport,Bruceton Mills,Buckhannon,Capon Bridge,Chapmanville,Charles Town,Charleston,Chester,Clarksburg,Davis,Dunbar,Elizabeth,Elkins,Ellenboro,Fairmont,Fayetteville,Follansbee,Grafton,Harpers Ferry,Harrisville,Hundred,Huntington,Hurricane,Kingwood,",null,{"$error":"#VALUE!"},"","X","X"]
[null,"21000","Lewis County","","Alderson,Anmoore,Ansted,Athens,Barboursville,Bath,Beckley,Bluefield,Bolivar,Bridgeport,Bruceton Mills,Buckhannon,Capon Bridge,Chapmanville,Charles Town,Charleston,Chester,Clarksburg,Davis,Dunbar,Elizabeth,Elkins,Ellenboro,Fairmont,Fayetteville,Follansbee,Grafton,Harpers Ferry,Harrisville,Hundred,Huntington,Hurricane,Kingwood,",null,{"$error":"#VALUE!"},"","X","X"]
["1","13039","Lewisburg","Lewisburg,","Alderson,Anmoore,Ansted,Athens,Barboursville,Bath,Beckley,Bluefield,Bolivar,Bridgeport,Bruceton Mills,Buckhannon,Capon Bridge,Chapmanville,Charles Town,Charleston,Chester,Clarksburg,Davis,Dunbar,Elizabeth,Elkins,Ellenboro,Fairmont,Fayetteville,Follansbee,Grafton,Harpers Ferry,Harrisville,Hundred,Huntington,Hurricane,Kingwood,Lewisburg,",null,{"$error":"#VALUE!"},"","X","X"]
[null,"22000","Lincoln County","","Alderson,Anmoore,Ansted,Athens,Barboursville,Bath,Beckley,Bluefield,Bolivar,Bridgeport,Bruceton Mills,Buckhannon,Capon Bridge,Chapmanville,Charles Town,Charleston,Chester,Clarksburg,Davis,Dunbar,Elizabeth,Elkins,Ellenboro,Fairmont,Fayetteville,Follansbee,Grafton,Harpers Ferry,Harrisville,Hundred,Huntington,Hurricane,Kingwood,Lewisburg,",null,{"$error":"#VALUE!"},"","X","X"]
[null,"52224","Littleton","","Alderson,Anmoore,Ansted,Athens,Barboursville,Bath,Beckley,Bluefield,Bolivar,Bridgeport,Bruceton Mills,Buckhannon,Capon Bridge,Chapmanville,Charles Town,Charleston,Chester,Clarksburg,Davis,Dunbar,Elizabeth,Elkins,Ellenboro,Fairmont,Fayetteville,Follansbee,Grafton,Harpers Ferry,Harrisville,Hundred,Huntington,Hurricane,Kingwood,Lewisburg,",null,{"$error":"#VALUE!"},"","X","X"]
["1","23090","Logan","Logan,","Alderson,Anmoore,Ansted,Athens,Barboursville,Bath,Beckley,Bluefield,Bolivar,Bridgeport,Bruceton Mills,Buckhannon,Capon Bridge,Chapmanville,Charles Town,Charleston,Chester,Clarksburg,Davis,Dunbar,Elizabeth,Elkins,Ellenboro,Fairmont,Fayetteville,Follansbee,Grafton,Harpers Ferry,Harrisville,Hundred,Huntington,Hurricane,Kingwood,Lewisburg,Logan,",null,{"$error":"#VALUE!"},"","X","X"]
[null,"23000","Logan County","","Alderson,Anmoore,Ansted,Athens,Barboursville,Bath,Beckley,Bluefield,Bolivar,Bridgeport,Bruceton Mills,Buckhannon,Capon Bridge,Chapmanville,Charles Town,Charleston,Chester,Clarksburg,Davis,Dunbar,Elizabeth,Elkins,Ellenboro,Fairmont,Fayetteville,Follansbee,Grafton,Harpers Ferry,Harrisville,Hundred,Huntington,Hurricane,Kingwood,Lewisburg,Logan,",null,{"$error":"#VALUE!"},"","X","X"]
[null,"17056","Lost Creek","","Alderson,Anmoore,Ansted,Athens,Barboursville,Bath,Beckley,Bluefield,Bolivar,Bridgeport,Bruceton Mills,Buckhannon,Capon Bridge,Chapmanville,Charles Town,Charleston,Chester,Clarksburg,Davis,Dunbar,Elizabeth,Elkins,Ellenboro,Fairmont,Fayetteville,Follansbee,Grafton,Harpers Ferry,Harrisville,Hundred,Huntington,Hurricane,Kingwood,Lewisburg,Logan,",null,{"$error":"#VALUE!"},"","X","X"]
[null,"17057","Lumberport","","Alderson,Anmoore,Ansted,Athens,Barboursville,Bath,Beckley,Bluefield,Bolivar,Bridgeport,Bruceton Mills,Buckhannon,Capon Bridge,Chapmanville,Charles Town,Charleston,Chester,Clarksburg,Davis,Dunbar,Elizabeth,Elkins,Ellenboro,Fairmont,Fayetteville,Follansbee,Grafton,Harpers Ferry,Harrisville,Hundred,Huntington,Hurricane,Kingwood,Lewisburg,Logan,",null,{"$error":"#VALUE!"},"","X","X"]
[null,"41184","Mabscott","","Alderson,Anmoore,Ansted,Athens,Barboursville,Bath,Beckley,Bluefield,Bolivar,Bridgeport,Bruceton Mills,Buckhannon,Capon Bridge,Chapmanville,Charles Town,Charleston,Chester,Clarksburg,Davis,Dunbar,Elizabeth,Elkins,Ellenboro,Fairmont,Fayetteville,Follansbee,Grafton,Harpers Ferry,Harrisville,Hundred,Huntington,Hurricane,Kingwood,Lewisburg,Logan,",null,{"$error":"#VALUE!"},"","X","X"]
[null,"03007","Madison","","Alderson,Anmoore,Ansted,Athens,Barboursville,Bath,Beckley,Bluefield,Bolivar,Bridgeport,Bruceton Mills,Buckhannon,Capon Bridge,Chapmanville,Charles Town,Charleston,Chester,Clarksburg,Davis,Dunbar,Elizabeth,Elkins,Ellenboro,Fairmont,Fayetteville,Follansbee,Grafton,Harpers Ferry,Harrisville,Hundred,Huntington,Hurricane,Kingwood,Lewisburg,Logan,",null,{"$error":"#VALUE!"},"","X","X"]
["1","23091","Man","Man,","Alderson,Anmoore,Ansted,Athens,Barboursville,Bath,Beckley,Bluefield,Bolivar,Bridgeport,Bruceton Mills,Buckhannon,Capon Bridge,Chapmanville,Charles Town,Charleston,Chester,Clarksburg,Davis,Dunbar,Elizabeth,Elkins,Ellenboro,Fairmont,Fayetteville,Follansbee,Grafton,Harpers Ferry,Harrisville,Hundred,Huntington,Hurricane,Kingwood,Lewisburg,Logan,Man,",null,{"$error":"#VALUE!"},"","X","X"]
["1","24099","Mannington","Mannington,","Alderson,Anmoore,Ansted,Athens,Barboursville,Bath,Beckley,Bluefield,Bolivar,Bridgeport,Bruceton Mills,Buckhannon,Capon Bridge,Chapmanville,Charles Town,Charleston,Chester,Clarksburg,Davis,Dunbar,Elizabeth,Elkins,Ellenboro,Fairmont,Fayetteville,Follansbee,Grafton,Harpers Ferry,Harrisville,Hundred,Huntington,Hurricane,Kingwood,Lewisburg,Logan,Man,Mannington,",null,{"$error":"#VALUE!"},"","X","X"]
[null,"24000","Marion County","","Alderson,Anmoore,Ansted,Athens,Barboursville,Bath,Beckley,Bluefield,Bolivar,Bridgeport,Bruceton Mills,Buckhannon,Capon Bridge,Chapmanville,Charles Town,Charleston,Chester,Clarksburg,Davis,Dunbar,Elizabeth,Elkins,Ellenboro,Fairmont,Fayetteville,Follansbee,Grafton,Harpers Ferry,Harrisville,Hundred,Huntington,Hurricane,Kingwood,Lewisburg,Logan,Man,Mannington,",null,{"$error":"#VALUE!"},"","X","X"]
[null,"38164","Marlinton","","Alderson,Anmoore,Ansted,Athens,Barboursville,Bath,Beckley,Bluefield,Bolivar,Bridgeport,Bruceton Mills,Buckhannon,Capon Bridge,Chapmanville,Charles Town,Charleston,Chester,Clarksburg,Davis,Dunbar,Elizabeth,Elkins,Ellenboro,Fairmont,Fayetteville,Follansbee,Grafton,Harpers Ferry,Harrisville,Hundred,Huntington,Hurricane,Kingwood,Lewisburg,Logan,Man,Mannington,",null,{"$error":"#VALUE!"},"","X","X"]
[null,"20079","Marmet","","Alderson,Anmoore,Ansted,Athens,Barboursville,Bath,Beckley,Bluefield,Bolivar,Bridgeport,Bruceton Mills,Buckhannon,Capon Bridge,Chapmanville,Charles Town,Charleston,Chester,Clarksburg,Davis,Dunbar,Elizabeth,Elkins,Ellenboro,Fairmont,Fayetteville,Follansbee,Grafton,Harpers Ferry,Harrisville,Hundred,Huntington,Hurricane,Kingwood,Lewisburg,Logan,Man,Mannington,",null,{"$error":"#VALUE!"},"","X","X"]
[null,"25000","Marshall County","","Alderson,Anmoore,Ansted,Athens,Barboursville,Bath,Beckley,Bluefield,Bolivar,Bridgeport,Bruceton Mills,Buckhannon,Capon Bridge,Chapmanville,Charles Town,Charleston,Chester,Clarksburg,Davis,Dunbar,Elizabeth,Elkins,Ellenboro,Fairmont,Fayetteville,Follansbee,Grafton,Harpers Ferry,Harrisville,Hundred,Huntington,Hurricane,Kingwood,Lewisburg,Logan,Man,Mannington,",null,{"$error":"#VALUE!"},"","X","X"]
["1","02005","Martinsburg","Martinsburg,","Alderson,Anmoore,Ansted,Athens,Barboursville,Bath,Beckley,Bluefield,Bolivar,Bridgeport,Bruceton Mills,Buckhannon,Capon Bridge,Chapmanville,Charles Town,Charleston,Chester,Clarksburg,Davis,Dunbar,Elizabeth,Elkins,Ellenboro,Fairmont,Fayetteville,Follansbee,Grafton,Harpers Ferry,Harrisville,Hundred,Huntington,Hurricane,Kingwood,Lewisburg,Logan,Man,Mannington,Martinsburg,",null,{"$error":"#VALUE!"},"","X","X"]
[null,"26111","Mason","","Alderson,Anmoore,Ansted,Athens,Barboursville,Bath,Beckley,Bluefield,Bolivar,Bridgeport,Bruceton Mills,Buckhannon,Capon Bridge,Chapmanville,Charles Town,Charleston,Chester,Clarksburg,Davis,Dunbar,Elizabeth,Elkins,Ellenboro,Fairmont,Fayetteville,Follansbee,Grafton,Harpers Ferry,Harrisville,Hundred,Huntington,Hurricane,Kingwood,Lewisburg,Logan,Man,Mannington,Martinsburg,",null,{"$error":"#VALUE!"},"","X","X"]
[null,"26000","Mason County","","Alderson,Anmoore,Ansted,Athens,Barboursville,Bath,Beckley,Bluefield,Bolivar,Bridgeport,Bruceton Mills,Buckhannon,Capon Bridge,Chapmanville,Charles Town,Charleston,Chester,Clarksburg,Davis,Dunbar,Elizabeth,Elkins,Ellenboro,Fairmont,Fayetteville,Follansbee,Grafton,Harpers Ferry,Harrisville,Hundred,Huntington,Hurricane,Kingwood,Lewisburg,Logan,Man,Mannington,Martinsburg,",null,{"$error":"#VALUE!"},"","X","X"]
["1","39169","Masontown","Masontown,","Alderson,Anmoore,Ansted,Athens,Barboursville,Bath,Beckley,Bluefield,Bolivar,Bridgeport,Bruceton Mills,Buckhannon,Capon Bridge,Chapmanville,Charles Town,Charleston,Chester,Clarksburg,Davis,Dunbar,Elizabeth,Elkins,Ellenboro,Fairmont,Fayetteville,Follansbee,Grafton,Harpers Ferry,Harrisville,Hundred,Huntington,Hurricane,Kingwood,Lewisburg,Logan,Man,Mannington,Martinsburg,Masontown,",null,{"$error":"#VALUE!"},"","X","X"]
[null,"29127","Matewan","","Alderson,Anmoore,Ansted,Athens,Barboursville,Bath,Beckley,Bluefield,Bolivar,Bridgeport,Bruceton Mills,Buckhannon,Capon Bridge,Chapmanville,Charles Town,Charleston,Chester,Clarksburg,Davis,Dunbar,Elizabeth,Elkins,Ellenboro,Fairmont,Fayetteville,Follansbee,Grafton,Harpers Ferry,Harrisville,Hundred,Huntington,Hurricane,Kingwood,Lewisburg,Logan,Man,Mannington,Martinsburg,Masontown,",null,{"$error":"#VALUE!"},"","X","X"]
[null,"27117","Matoaka","","Alderson,Anmoore,Ansted,Athens,Barboursville,Bath,Beckley,Bluefield,Bolivar,Bridgeport,Bruceton Mills,Buckhannon,Capon Bridge,Chapmanville,Charles Town,Charleston,Chester,Clarksburg,Davis,Dunbar,Elizabeth,Elkins,Ellenboro,Fairmont,Fayetteville,Follansbee,Grafton,Harpers Ferry,Harrisville,Hundred,Huntington,Hurricane,Kingwood,Lewisburg,Logan,Man,Mannington,Martinsburg,Masontown,",null,{"$error":"#VALUE!"},"","X","X"]
[null,"33000","McDowell County","","Alderson,Anmoore,Ansted,Athens,Barboursville,Bath,Beckley,Bluefield,Bolivar,Bridgeport,Bruceton Mills,Buckhannon,Capon Bridge,Chapmanville,Charles Town,Charleston,Chester,Clarksburg,Davis,Dunbar,Elizabeth,Elkins,Ellenboro,Fairmont,Fayetteville,Follansbee,Grafton,Harpers Ferry,Harrisville,Hundred,Huntington,Hurricane,Kingwood,Lewisburg,Logan,Man,Mannington,Martinsburg,Masontown,",null,{"$error":"#VALUE!"},"","X","X"]
[null,"25106","McMechen","","Alderson,Anmoore,Ansted,Athens,Barboursville,Bath,Beckley,Bluefield,Bolivar,Bridgeport,Bruceton Mills,Buckhannon,Capon Bridge,Chapmanville,Charles Town,Charleston,Chester,Clarksburg,Davis,Dunbar,Elizabeth,Elkins,Ellenboro,Fairmont,Fayetteville,Follansbee,Grafton,Harpers Ferry,Harrisville,Hundred,Huntington,Hurricane,Kingwood,Lewisburg,Logan,Man,Mannington,Martinsburg,Masontown,",null,{"$error":"#VALUE!"},"","X","X"]
[null,"10028","Meadow Bridge","","Alderson,Anmoore,Ansted,Athens,Barboursville,Bath,Beckley,Bluefield,Bolivar,Bridgeport,Bruceton Mills,Buckhannon,Capon Bridge,Chapmanville,Charles Town,Charleston,Chester,Clarksburg,Davis,Dunbar,Elizabeth,Elkins,Ellenboro,Fairmont,Fayetteville,Follansbee,Grafton,Harpers Ferry,Harrisville,Hundred,Huntington,Hurricane,Kingwood,Lewisburg,Logan,Man,Mannington,Martinsburg,Masontown,",null,{"$error":"#VALUE!"},"","X","X"]
[null,"27000","Mercer County","","Alderson,Anmoore,Ansted,Athens,Barboursville,Bath,Beckley,Bluefield,Bolivar,Bridgeport,Bruceton Mills,Buckhannon,Capon Bridge,Chapmanville,Charles Town,Charleston,Chester,Clarksburg,Davis,Dunbar,Elizabeth,Elkins,Ellenboro,Fairmont,Fayetteville,Follansbee,Grafton,Harpers Ferry,Harrisville,Hundred,Huntington,Hurricane,Kingwood,Lewisburg,Logan,Man,Mannington,Martinsburg,Masontown,",null,{"$error":"#VALUE!"},"","X","X"]
["1","48211","Middlebourne","Middlebourne,","Alderson,Anmoore,Ansted,Athens,Barboursville,Bath,Beckley,Bluefield,Bolivar,Bridgeport,Bruceton Mills,Buckhannon,Capon Bridge,Chapmanville,Charles Town,Charleston,Chester,Clarksburg,Davis,Dunbar,Elizabeth,Elkins,Ellenboro,Fairmont,Fayetteville,Follansbee,Grafton,Harpers Ferry,Harrisville,Hundred,Huntington,Hurricane,Kingwood,Lewisburg,Logan,Man,Mannington,Martinsburg,Masontown,Middlebourne,",null,{"$error":"#VALUE!"},"","X","X"]
[null,"42192","Mill Creek","","Alderson,Anmoore,Ansted,Athens,Barboursville,Bath,Beckley,Bluefield,Bolivar,Bridgeport,Bruceton Mills,Buckhannon,Capon Bridge,Chapmanville,Charles Town,Charleston,Chester,Clarksburg,Davis,Dunbar,Elizabeth,Elkins,Ellenboro,Fairmont,Fayetteville,Follansbee,Grafton,Harpers Ferry,Harrisville,Hundred,Huntington,Hurricane,Kingwood,Lewisburg,Logan,Man,Mannington,Martinsburg,Masontown,Middlebourne,",null,{"$error":"#VALUE!"},"","X","X"]
["1","06021","Milton","Milton,","Alderson,Anmoore,Ansted,Athens,Barboursville,Bath,Beckley,Bluefield,Bolivar,Bridgeport,Bruceton Mills,Buckhannon,Capon Bridge,Chapmanville,Charles Town,Charleston,Chester,Clarksburg,Davis,Dunbar,Elizabeth,Elkins,Ellenboro,Fairmont,Fayetteville,Follansbee,Grafton,Harpers Ferry,Harrisville,Hundred,Huntington,Hurricane,Kingwood,Lewisburg,Logan,Man,Mannington,Martinsburg,Masontown,Middlebourne,Milton,",null,{"$error":"#VALUE!"},"","X","X"]
[null,"28000","Mineral County","","Alderson,Anmoore,Ansted,Athens,Barboursville,Bath,Beckley,Bluefield,Bolivar,Bridgeport,Bruceton Mills,Buckhannon,Capon Bridge,Chapmanville,Charles Town,Charleston,Chester,Clarksburg,Davis,Dunbar,Elizabeth,Elkins,Ellenboro,Fairmont,Fayetteville,Follansbee,Grafton,Harpers Ferry,Harrisville,Hundred,Huntington,Hurricane,Kingwood,Lewisburg,Logan,Man,Mannington,Martinsburg,Masontown,Middlebourne,Milton,",null,{"$error":"#VALUE!"},"","X","X"]
[null,"29000","Mingo County","","Alderson,Anmoore,Ansted,Athens,Barboursville,Bath,Beckley,Bluefield,Bolivar,Bridgeport,Bruceton Mills,Buckhannon,Capon Bridge,Chapmanville,Charles Town,Charleston,Chester,Clarksburg,Davis,Dunbar,Elizabeth,Elkins,Ellenboro,Fairmont,Fayetteville,Follansbee,Grafton,Harpers Ferry,Harrisville,Hundred,Huntington,Hurricane,Kingwood,Lewisburg,Logan,Man,Mannington,Martinsburg,Masontown,Middlebourne,Milton,",null,{"$error":"#VALUE!"},"","X","X"]
[null,"23092","Mitchell Heights","","Alderson,Anmoore,Ansted,Athens,Barboursville,Bath,Beckley,Bluefield,Bolivar,Bridgeport,Bruceton Mills,Buckhannon,Capon Bridge,Chapmanville,Charles Town,Charleston,Chester,Clarksburg,Davis,Dunbar,Elizabeth,Elkins,Ellenboro,Fairmont,Fayetteville,Follansbee,Grafton,Harpers Ferry,Harrisville,Hundred,Huntington,Hurricane,Kingwood,Lewisburg,Logan,Man,Mannington,Martinsburg,Masontown,Middlebourne,Milton,",null,{"$error":"#VALUE!"},"","X","X"]
[null,"24100","Monongah","","Alderson,Anmoore,Ansted,Athens,Barboursville,Bath,Beckley,Bluefield,Bolivar,Bridgeport,Bruceton Mills,Buckhannon,Capon Bridge,Chapmanville,Charles Town,Charleston,Chester,Clarksburg,Davis,Dunbar,Elizabeth,Elkins,Ellenboro,Fairmont,Fayetteville,Follansbee,Grafton,Harpers Ferry,Harrisville,Hundred,Huntington,Hurricane,Kingwood,Lewisburg,Logan,Man,Mannington,Martinsburg,Masontown,Middlebourne,Milton,",null,{"$error":"#VALUE!"},"","X","X"]
[null,"30000","Monongalia County","","Alderson,Anmoore,Ansted,Athens,Barboursville,Bath,Beckley,Bluefield,Bolivar,Bridgeport,Bruceton Mills,Buckhannon,Capon Bridge,Chapmanville,Charles Town,Charleston,Chester,Clarksburg,Davis,Dunbar,Elizabeth,Elkins,Ellenboro,Fairmont,Fayetteville,Follansbee,Grafton,Harpers Ferry,Harrisville,Hundred,Huntington,Hurricane,Kingwood,Lewisburg,Logan,Man,Mannington,Martinsburg,Masontown,Middlebourne,Milton,",null,{"$error":"#VALUE!"},"","X","X"]
[null,"31000","Monroe County","","Alderson,Anmoore,Ansted,Athens,Barboursville,Bath,Beckley,Bluefield,Bolivar,Bridgeport,Bruceton Mills,Buckhannon,Capon Bridge,Chapmanville,Charles Town,Charleston,Chester,Clarksburg,Davis,Dunbar,Elizabeth,Elkins,Ellenboro,Fairmont,Fayetteville,Follansbee,Grafton,Harpers Ferry,Harrisville,Hundred,Huntington,Hurricane,Kingwood,Lewisburg,Logan,Man,Mannington,Martinsburg,Masontown,Middlebourne,Milton,",null,{"$error":"#VALUE!"},"","X","X"]
["1","20080","Montgomery","Montgomery,","Alderson,Anmoore,Ansted,Athens,Barboursville,Bath,Beckley,Bluefield,Bolivar,Bridgeport,Bruceton Mills,Buckhannon,Capon Bridge,Chapmanville,Charles Town,Charleston,Chester,Clarksburg,Davis,Dunbar,Elizabeth,Elkins,Ellenboro,Fairmont,Fayetteville,Follansbee,Grafton,Harpers Ferry,Harrisville,Hundred,Huntington,Hurricane,Kingwood,Lewisburg,Logan,Man,Mannington,Martinsburg,Masontown,Middlebourne,Milton,Montgomery,",null,{"$error":"#VALUE!"},"","X","X"]
[null,"10029","Montgomery","","Alderson,Anmoore,Ansted,Athens,Barboursville,Bath,Beckley,Bluefield,Bolivar,Bridgeport,Bruceton Mills,Buckhannon,Capon Bridge,Chapmanville,Charles Town,Charleston,Chester,Clarksburg,Davis,Dunbar,Elizabeth,Elkins,Ellenboro,Fairmont,Fayetteville,Follansbee,Grafton,Harpers Ferry,Harrisville,Hundred,Huntington,Hurricane,Kingwood,Lewisburg,Logan,Man,Mannington,Martinsburg,Masontown,Middlebourne,Milton,Montgomery,",null,{"$error":"#VALUE!"},"","X","X"]
[null,"42193","Montrose","","Alderson,Anmoore,Ansted,Athens,Barboursville,Bath,Beckley,Bluefield,Bolivar,Bridgeport,Bruceton Mills,Buckhannon,Capon Bridge,Chapmanville,Charles Town,Charleston,Chester,Clarksburg,Davis,Dunbar,Elizabeth,Elkins,Ellenboro,Fairmont,Fayetteville,Follansbee,Grafton,Harpers Ferry,Harrisville,Hundred,Huntington,Hurricane,Kingwood,Lewisburg,Logan,Man,Mannington,Martinsburg,Masontown,Middlebourne,Milton,Montgomery,",null,{"$error":"#VALUE!"},"","X","X"]
["1","16051","Moorefield","Moorefield,","Alderson,Anmoore,Ansted,Athens,Barboursville,Bath,Beckley,Bluefield,Bolivar,Bridgeport,Bruceton Mills,Buckhannon,Capon Bridge,Chapmanville,Charles Town,Charleston,Chester,Clarksburg,Davis,Dunbar,Elizabeth,Elkins,Ellenboro,Fairmont,Fayetteville,Follansbee,Grafton,Harpers Ferry,Harrisville,Hundred,Huntington,Hurricane,Kingwood,Lewisburg,Logan,Man,Mannington,Martinsburg,Masontown,Middlebourne,Milton,Montgomery,Moorefield,",null,{"$error":"#VALUE!"},"","X","X"]
[null,"32000","Morgan County","","Alderson,Anmoore,Ansted,Athens,Barboursville,Bath,Beckley,Bluefield,Bolivar,Bridgeport,Bruceton Mills,Buckhannon,Capon Bridge,Chapmanville,Charles Town,Charleston,Chester,Clarksburg,Davis,Dunbar,Elizabeth,Elkins,Ellenboro,Fairmont,Fayetteville,Follansbee,Grafton,Harpers Ferry,Harrisville,Hundred,Huntington,Hurricane,Kingwood,Lewisburg,Logan,Man,Mannington,Martinsburg,Masontown,Middlebourne,Milton,Montgomery,Moorefield,",null,{"$error":"#VALUE!"},"","X","X"]
["1","30131","Morgantown","Morgantown,","Alderson,Anmoore,Ansted,Athens,Barboursville,Bath,Beckley,Bluefield,Bolivar,Bridgeport,Bruceton Mills,Buckhannon,Capon Bridge,Chapmanville,Charles Town,Charleston,Chester,Clarksburg,Davis,Dunbar,Elizabeth,Elkins,Ellenboro,Fairmont,Fayetteville,Follansbee,Grafton,Harpers Ferry,Harrisville,Hundred,Huntington,Hurricane,Kingwood,Lewisburg,Logan,Man,Mannington,Martinsburg,Masontown,Middlebourne,Milton,Montgomery,Moorefield,Morgantown,",null,{"$error":"#VALUE!"},"","X","X"]
["1","25107","Moundsville","Moundsville,","Alderson,Anmoore,Ansted,Athens,Barboursville,Bath,Beckley,Bluefield,Bolivar,Bridgeport,Bruceton Mills,Buckhannon,Capon Bridge,Chapmanville,Charles Town,Charleston,Chester,Clarksburg,Davis,Dunbar,Elizabeth,Elkins,Ellenboro,Fairmont,Fayetteville,Follansbee,Grafton,Harpers Ferry,Harrisville,Hundred,Huntington,Hurricane,Kingwood,Lewisburg,Logan,Man,Mannington,Martinsburg,Masontown,Middlebourne,Milton,Montgomery,Moorefield,Morgantown,Moundsville,",null,{"$error":"#VALUE!"},"","X","X"]
[null,"10030","Mount Hope","","Alderson,Anmoore,Ansted,Athens,Barboursville,Bath,Beckley,Bluefield,Bolivar,Bridgeport,Bruceton Mills,Buckhannon,Capon Bridge,Chapmanville,Charles Town,Charleston,Chester,Clarksburg,Davis,Dunbar,Elizabeth,Elkins,Ellenboro,Fairmont,Fayetteville,Follansbee,Grafton,Harpers Ferry,Harrisville,Hundred,Huntington,Hurricane,Kingwood,Lewisburg,Logan,Man,Mannington,Martinsburg,Masontown,Middlebourne,Milton,Montgomery,Moorefield,Morgantown,Moundsville,",null,{"$error":"#VALUE!"},"","X","X"]
[null,"55233","Mullens","","Alderson,Anmoore,Ansted,Athens,Barboursville,Bath,Beckley,Bluefield,Bolivar,Bridgeport,Bruceton Mills,Buckhannon,Capon Bridge,Chapmanville,Charles Town,Charleston,Chester,Clarksburg,Davis,Dunbar,Elizabeth,Elkins,Ellenboro,Fairmont,Fayetteville,Follansbee,Grafton,Harpers Ferry,Harrisville,Hundred,Huntington,Hurricane,Kingwood,Lewisburg,Logan,Man,Mannington,Martinsburg,Masontown,Middlebourne,Milton,Montgomery,Moorefield,Morgantown,Moundsville,",null,{"$error":"#VALUE!"},"","X","X"]
["1","15049","New Cumberland","New Cumberland,","Alderson,Anmoore,Ansted,Athens,Barboursville,Bath,Beckley,Bluefield,Bolivar,Bridgeport,Bruceton Mills,Buckhannon,Capon Bridge,Chapmanville,Charles Town,Charleston,Chester,Clarksburg,Davis,Dunbar,Elizabeth,Elkins,Ellenboro,Fairmont,Fayetteville,Follansbee,Grafton,Harpers Ferry,Harrisville,Hundred,Huntington,Hurricane,Kingwood,Lewisburg,Logan,Man,Mannington,Martinsburg,Masontown,Middlebourne,Milton,Montgomery,Moorefield,Morgantown,Moundsville,New Cumberland,",null,{"$error":"#VALUE!"},"","X","X"]
[null,"26112","New Haven","","Alderson,Anmoore,Ansted,Athens,Barboursville,Bath,Beckley,Bluefield,Bolivar,Bridgeport,Bruceton Mills,Buckhannon,Capon Bridge,Chapmanville,Charles Town,Charleston,Chester,Clarksburg,Davis,Dunbar,Elizabeth,Elkins,Ellenboro,Fairmont,Fayetteville,Follansbee,Grafton,Harpers Ferry,Harrisville,Hundred,Huntington,Hurricane,Kingwood,Lewisburg,Logan,Man,Mannington,Martinsburg,Masontown,Middlebourne,Milton,Montgomery,Moorefield,Morgantown,Moundsville,New Cumberland,",null,{"$error":"#VALUE!"},"","X","X"]
["1","52225","New Martinsville","New Martinsville,","Alderson,Anmoore,Ansted,Athens,Barboursville,Bath,Beckley,Bluefield,Bolivar,Bridgeport,Bruceton Mills,Buckhannon,Capon Bridge,Chapmanville,Charles Town,Charleston,Chester,Clarksburg,Davis,Dunbar,Elizabeth,Elkins,Ellenboro,Fairmont,Fayetteville,Follansbee,Grafton,Harpers Ferry,Harrisville,Hundred,Huntington,Hurricane,Kingwood,Lewisburg,Logan,Man,Mannington,Martinsburg,Masontown,Middlebourne,Milton,Montgomery,Moorefield,Morgantown,Moundsville,New Cumberland,New Martinsville,",null,{"$error":"#VALUE!"},"","X","X"]
[null,"39170","Newburg","","Alderson,Anmoore,Ansted,Athens,Barboursville,Bath,Beckley,Bluefield,Bolivar,Bridgeport,Bruceton Mills,Buckhannon,Capon Bridge,Chapmanville,Charles Town,Charleston,Chester,Clarksburg,Davis,Dunbar,Elizabeth,Elkins,Ellenboro,Fairmont,Fayetteville,Follansbee,Grafton,Harpers Ferry,Harrisville,Hundred,Huntington,Hurricane,Kingwood,Lewisburg,Logan,Man,Mannington,Martinsburg,Masontown,Middlebourne,Milton,Montgomery,Moorefield,Morgantown,Moundsville,New Cumberland,New Martinsville,",null,{"$error":"#VALUE!"},"","X","X"]
[null,"34000","Nicholas County","","Alderson,Anmoore,Ansted,Athens,Barboursville,Bath,Beckley,Bluefield,Bolivar,Bridgeport,Bruceton Mills,Buckhannon,Capon Bridge,Chapmanville,Charles Town,Charleston,Chester,Clarksburg,Davis,Dunbar,Elizabeth,Elkins,Ellenboro,Fairmont,Fayetteville,Follansbee,Grafton,Harpers Ferry,Harrisville,Hundred,Huntington,Hurricane,Kingwood,Lewisburg,Logan,Man,Mannington,Martinsburg,Masontown,Middlebourne,Milton,Montgomery,Moorefield,Morgantown,Moundsville,New Cumberland,New Martinsville,",null,{"$error":"#VALUE!"},"","X","X"]
[null,"40179","Nitro","","Alderson,Anmoore,Ansted,Athens,Barboursville,Bath,Beckley,Bluefield,Bolivar,Bridgeport,Bruceton Mills,Buckhannon,Capon Bridge,Chapmanville,Charles Town,Charleston,Chester,Clarksburg,Davis,Dunbar,Elizabeth,Elkins,Ellenboro,Fairmont,Fayetteville,Follansbee,Grafton,Harpers Ferry,Harrisville,Hundred,Huntington,Hurricane,Kingwood,Lewisburg,Logan,Man,Mannington,Martinsburg,Masontown,Middlebourne,Milton,Montgomery,Moorefield,Morgantown,Moundsville,New Cumberland,New Martinsville,",null,{"$error":"#VALUE!"},"","X","X"]
["1","20081","Nitro","Nitro,","Alderson,Anmoore,Ansted,Athens,Barboursville,Bath,Beckley,Bluefield,Bolivar,Bridgeport,Bruceton Mills,Buckhannon,Capon Bridge,Chapmanville,Charles Town,Charleston,Chester,Clarksburg,Davis,Dunbar,Elizabeth,Elkins,Ellenboro,Fairmont,Fayetteville,Follansbee,Grafton,Harpers Ferry,Harrisville,Hundred,Huntington,Hurricane,Kingwood,Lewisburg,Logan,Man,Mannington,Martinsburg,Masontown,Middlebourne,Milton,Montgomery,Moorefield,Morgantown,Moundsville,New Cumberland,New Martinsville,Nitro,",null,{"$error":"#VALUE!"},"","X","X"]
[null,"33147","Northfork","","Alderson,Anmoore,Ansted,Athens,Barboursville,Bath,Beckley,Bluefield,Bolivar,Bridgeport,Bruceton Mills,Buckhannon,Capon Bridge,Chapmanville,Charles Town,Charleston,Chester,Clarksburg,Davis,Dunbar,Elizabeth,Elkins,Ellenboro,Fairmont,Fayetteville,Follansbee,Grafton,Harpers Ferry,Harrisville,Hundred,Huntington,Hurricane,Kingwood,Lewisburg,Logan,Man,Mannington,Martinsburg,Masontown,Middlebourne,Milton,Montgomery,Moorefield,Morgantown,Moundsville,New Cumberland,New Martinsville,Nitro,",null,{"$error":"#VALUE!"},"","X","X"]
["1","17058","Nutter Fort","Nutter Fort,","Alderson,Anmoore,Ansted,Athens,Barboursville,Bath,Beckley,Bluefield,Bolivar,Bridgeport,Bruceton Mills,Buckhannon,Capon Bridge,Chapmanville,Charles Town,Charleston,Chester,Clarksburg,Davis,Dunbar,Elizabeth,Elkins,Ellenboro,Fairmont,Fayetteville,Follansbee,Grafton,Harpers Ferry,Harrisville,Hundred,Huntington,Hurricane,Kingwood,Lewisburg,Logan,Man,Mannington,Martinsburg,Masontown,Middlebourne,Milton,Montgomery,Moorefield,Morgantown,Moundsville,New Cumberland,New Martinsville,Nitro,Nutter Fort,",null,{"$error":"#VALUE!"},"","X","X"]
["1","10031","Oak Hill","Oak Hill,","Alderson,Anmoore,Ansted,Athens,Barboursville,Bath,Beckley,Bluefield,Bolivar,Bridgeport,Bruceton Mills,Buckhannon,Capon Bridge,Chapmanville,Charles Town,Charleston,Chester,Clarksburg,Davis,Dunbar,Elizabeth,Elkins,Ellenboro,Fairmont,Fayetteville,Follansbee,Grafton,Harpers Ferry,Harrisville,Hundred,Huntington,Hurricane,Kingwood,Lewisburg,Logan,Man,Mannington,Martinsburg,Masontown,Middlebourne,Milton,Montgomery,Moorefield,Morgantown,Moundsville,New Cumberland,New Martinsville,Nitro,Nutter Fort,Oak Hill,",null,{"$error":"#VALUE!"},"","X","X"]
[null,"27118","Oakvale","","Alderson,Anmoore,Ansted,Athens,Barboursville,Bath,Beckley,Bluefield,Bolivar,Bridgeport,Bruceton Mills,Buckhannon,Capon Bridge,Chapmanville,Charles Town,Charleston,Chester,Clarksburg,Davis,Dunbar,Elizabeth,Elkins,Ellenboro,Fairmont,Fayetteville,Follansbee,Grafton,Harpers Ferry,Harrisville,Hundred,Huntington,Hurricane,Kingwood,Lewisburg,Logan,Man,Mannington,Martinsburg,Masontown,Middlebourne,Milton,Montgomery,Moorefield,Morgantown,Moundsville,New Cumberland,New Martinsville,Nitro,Nutter Fort,Oak Hill,",null,{"$error":"#VALUE!"},"","X","X"]
[null,"55234","Oceana","","Alderson,Anmoore,Ansted,Athens,Barboursville,Bath,Beckley,Bluefield,Bolivar,Bridgeport,Bruceton Mills,Buckhannon,Capon Bridge,Chapmanville,Charles Town,Charleston,Chester,Clarksburg,Davis,Dunbar,Elizabeth,Elkins,Ellenboro,Fairmont,Fayetteville,Follansbee,Grafton,Harpers Ferry,Harrisville,Hundred,Huntington,Hurricane,Kingwood,Lewisburg,Logan,Man,Mannington,Martinsburg,Masontown,Middlebourne,Milton,Montgomery,Moorefield,Morgantown,Moundsville,New Cumberland,New Martinsville,Nitro,Nutter Fort,Oak Hill,",null,{"$error":"#VALUE!"},"","X","X"]
[null,"35000","Ohio County","","Alderson,Anmoore,Ansted,Athens,Barboursville,Bath,Beckley,Bluefield,Bolivar,Bridgeport,Bruceton Mills,Buckhannon,Capon Bridge,Chapmanville,Charles Town,Charleston,Chester,Clarksburg,Davis,Dunbar,Elizabeth,Elkins,Ellenboro,Fairmont,Fayetteville,Follansbee,Grafton,Harpers Ferry,Harrisville,Hundred,Huntington,Hurricane,Kingwood,Lewisburg,Logan,Man,Mannington,Martinsburg,Masontown,Middlebourne,Milton,Montgomery,Moorefield,Morgantown,Moundsville,New Cumberland,New Martinsville,Nitro,Nutter Fort,Oak Hill,",null,{"$error":"#VALUE!"},"","X","X"]
[null,"30132","Osage","","Alderson,Anmoore,Ansted,Athens,Barboursville,Bath,Beckley,Bluefield,Bolivar,Bridgeport,Bruceton Mills,Buckhannon,Capon Bridge,Chapmanville,Charles Town,Charleston,Chester,Clarksburg,Davis,Dunbar,Elizabeth,Elkins,Ellenboro,Fairmont,Fayetteville,Follansbee,Grafton,Harpers Ferry,Harrisville,Hundred,Huntington,Hurricane,Kingwood,Lewisburg,Logan,Man,Mannington,Martinsburg,Masontown,Middlebourne,Milton,Montgomery,Moorefield,Morgantown,Moundsville,New Cumberland,New Martinsville,Nitro,Nutter Fort,Oak Hill,",null,{"$error":"#VALUE!"},"","X","X"]
["1","52226","Paden City","Paden City,","Alderson,Anmoore,Ansted,Athens,Barboursville,Bath,Beckley,Bluefield,Bolivar,Bridgeport,Bruceton Mills,Buckhannon,Capon Bridge,Chapmanville,Charles Town,Charleston,Chester,Clarksburg,Davis,Dunbar,Elizabeth,Elkins,Ellenboro,Fairmont,Fayetteville,Follansbee,Grafton,Harpers Ferry,Harrisville,Hundred,Huntington,Hurricane,Kingwood,Lewisburg,Logan,Man,Mannington,Martinsburg,Masontown,Middlebourne,Milton,Montgomery,Moorefield,Morgantown,Moundsville,New Cumberland,New Martinsville,Nitro,Nutter Fort,Oak Hill,Paden City,",null,{"$error":"#VALUE!"},"","X","X"]
[null,"48212","Paden City","","Alderson,Anmoore,Ansted,Athens,Barboursville,Bath,Beckley,Bluefield,Bolivar,Bridgeport,Bruceton Mills,Buckhannon,Capon Bridge,Chapmanville,Charles Town,Charleston,Chester,Clarksburg,Davis,Dunbar,Elizabeth,Elkins,Ellenboro,Fairmont,Fayetteville,Follansbee,Grafton,Harpers Ferry,Harrisville,Hundred,Huntington,Hurricane,Kingwood,Lewisburg,Logan,Man,Mannington,Martinsburg,Masontown,Middlebourne,Milton,Montgomery,Moorefield,Morgantown,Moundsville,New Cumberland,New Martinsville,Nitro,Nutter Fort,Oak Hill,Paden City,",null,{"$error":"#VALUE!"},"","X","X"]
["1","54230","Parkersburg","Parkersburg,","Alderson,Anmoore,Ansted,Athens,Barboursville,Bath,Beckley,Bluefield,Bolivar,Bridgeport,Bruceton Mills,Buckhannon,Capon Bridge,Chapmanville,Charles Town,Charleston,Chester,Clarksburg,Davis,Dunbar,Elizabeth,Elkins,Ellenboro,Fairmont,Fayetteville,Follansbee,Grafton,Harpers Ferry,Harrisville,Hundred,Huntington,Hurricane,Kingwood,Lewisburg,Logan,Man,Mannington,Martinsburg,Masontown,Middlebourne,Milton,Montgomery,Moorefield,Morgantown,Moundsville,New Cumberland,New Martinsville,Nitro,Nutter Fort,Oak Hill,Paden City,Parkersburg,",null,{"$error":"#VALUE!"},{"$f":"IF(ISERROR(G194),\"\",G194)","v":""},{"$f":"IF(H195<>\"\",IF(H194<>\"\",MID($F$3,H194,H195-H194-1),\"X\"),IF(H194<>\"\",MID($F$3,H194,LEN($F$3)-H194+1),\"X\"))","v":"X"},{"$f":"LEFT(I194,5)","v":"X"}]
[null,"47208","Parsons",{"$f":"IF(A195<>\"\",CONCATENATE(C195,\",\"),\"\")","v":""},"Alderson,Anmoore,Ansted,Athens,Barboursville,Bath,Beckley,Bluefield,Bolivar,Bridgeport,Bruceton Mills,Buckhannon,Capon Bridge,Chapmanville,Charles Town,Charleston,Chester,Clarksburg,Davis,Dunbar,Elizabeth,Elkins,Ellenboro,Fairmont,Fayetteville,Follansbee,Grafton,Harpers Ferry,Harrisville,Hundred,Huntington,Hurricane,Kingwood,Lewisburg,Logan,Man,Mannington,Martinsburg,Masontown,Middlebourne,Milton,Montgomery,Moorefield,Morgantown,Moundsville,New Cumberland,New Martinsville,Nitro,Nutter Fort,Oak Hill,Paden City,Parkersburg,",null,{"$f":"SEARCH(\",\",$F$3,G194)+1","v":{"$error":"#VALUE!"}},"","X","X"]
["1","32139","Paw Paw","Paw Paw,",{"$f":"CONCATENATE(E195,D196)","v":"Alderson,Anmoore,Ansted,Athens,Barboursville,Bath,Beckley,Bluefield,Bolivar,Bridgeport,Bruceton Mills,Buckhannon,Capon Bridge,Chapmanville,Charles Town,Charleston,Chester,Clarksburg,Davis,Dunbar,Elizabeth,Elkins,Ellenboro,Fairmont,Fayetteville,Follansbee,Grafton,Harpers Ferry,Harrisville,Hundred,Huntington,Hurricane,Kingwood,Lewisburg,Logan,Man,Mannington,Martinsburg,Masontown,Middlebourne,Milton,Montgomery,Moorefield,Morgantown,Moundsville,New Cumberland,New Martinsville,Nitro,Nutter Fort,Oak Hill,Paden City,Parkersburg,Paw Paw,"},null,{"$error":"#VALUE!"},"","X","X"]
[null,"10032","Pax","","Alderson,Anmoore,Ansted,Athens,Barboursville,Bath,Beckley,Bluefield,Bolivar,Bridgeport,Bruceton Mills,Buckhannon,Capon Bridge,Chapmanville,Charles Town,Charleston,Chester,Clarksburg,Davis,Dunbar,Elizabeth,Elkins,Ellenboro,Fairmont,Fayetteville,Follansbee,Grafton,Harpers Ferry,Harrisville,Hundred,Huntington,Hurricane,Kingwood,Lewisburg,Logan,Man,Mannington,Martinsburg,Masontown,Middlebourne,Milton,Montgomery,Moorefield,Morgantown,Moundsville,New Cumberland,New Martinsville,Nitro,Nutter Fort,Oak Hill,Paden City,Parkersburg,Paw Paw,",null,{"$error":"#VALUE!"},"","X","X"]
[null,"36000","Pendleton County","","Alderson,Anmoore,Ansted,Athens,Barboursville,Bath,Beckley,Bluefield,Bolivar,Bridgeport,Bruceton Mills,Buckhannon,Capon Bridge,Chapmanville,Charles Town,Charleston,Chester,Clarksburg,Davis,Dunbar,Elizabeth,Elkins,Ellenboro,Fairmont,Fayetteville,Follansbee,Grafton,Harpers Ferry,Harrisville,Hundred,Huntington,Hurricane,Kingwood,Lewisburg,Logan,Man,Mannington,Martinsburg,Masontown,Middlebourne,Milton,Montgomery,Moorefield,Morgantown,Moundsville,New Cumberland,New Martinsville,Nitro,Nutter Fort,Oak Hill,Paden City,Parkersburg,Paw Paw,",null,{"$error":"#VALUE!"},"","X","X"]
["1","43198","Pennsboro","Pennsboro,","Alderson,Anmoore,Ansted,Athens,Barboursville,Bath,Beckley,Bluefield,Bolivar,Bridgeport,Bruceton Mills,Buckhannon,Capon Bridge,Chapmanville,Charles Town,Charleston,Chester,Clarksburg,Davis,Dunbar,Elizabeth,Elkins,Ellenboro,Fairmont,Fayetteville,Follansbee,Grafton,Harpers Ferry,Harrisville,Hundred,Huntington,Hurricane,Kingwood,Lewisburg,Logan,Man,Mannington,Martinsburg,Masontown,Middlebourne,Milton,Montgomery,Moorefield,Morgantown,Moundsville,New Cumberland,New Martinsville,Nitro,Nutter Fort,Oak Hill,Paden City,Parkersburg,Paw Paw,Pennsboro,",null,{"$error":"#VALUE!"},"","X","X"]
["1","12038","Petersburg","Petersburg,","Alderson,Anmoore,Ansted,Athens,Barboursville,Bath,Beckley,Bluefield,Bolivar,Bridgeport,Bruceton Mills,Buckhannon,Capon Bridge,Chapmanville,Charles Town,Charleston,Chester,Clarksburg,Davis,Dunbar,Elizabeth,Elkins,Ellenboro,Fairmont,Fayetteville,Follansbee,Grafton,Harpers Ferry,Harrisville,Hundred,Huntington,Hurricane,Kingwood,Lewisburg,Logan,Man,Mannington,Martinsburg,Masontown,Middlebourne,Milton,Montgomery,Moorefield,Morgantown,Moundsville,New Cumberland,New Martinsville,Nitro,Nutter Fort,Oak Hill,Paden City,Parkersburg,Paw Paw,Pennsboro,Petersburg,",null,{"$error":"#VALUE!"},"","X","X"]
[null,"31136","Peterstown","","Alderson,Anmoore,Ansted,Athens,Barboursville,Bath,Beckley,Bluefield,Bolivar,Bridgeport,Bruceton Mills,Buckhannon,Capon Bridge,Chapmanville,Charles Town,Charleston,Chester,Clarksburg,Davis,Dunbar,Elizabeth,Elkins,Ellenboro,Fairmont,Fayetteville,Follansbee,Grafton,Harpers Ferry,Harrisville,Hundred,Huntington,Hurricane,Kingwood,Lewisburg,Logan,Man,Mannington,Martinsburg,Masontown,Middlebourne,Milton,Montgomery,Moorefield,Morgantown,Moundsville,New Cumberland,New Martinsville,Nitro,Nutter Fort,Oak Hill,Paden City,Parkersburg,Paw Paw,Pennsboro,Petersburg,",null,{"$error":"#VALUE!"},"","X","X"]
[null,"01003","Philippi","","Alderson,Anmoore,Ansted,Athens,Barboursville,Bath,Beckley,Bluefield,Bolivar,Bridgeport,Bruceton Mills,Buckhannon,Capon Bridge,Chapmanville,Charles Town,Charleston,Chester,Clarksburg,Davis,Dunbar,Elizabeth,Elkins,Ellenboro,Fairmont,Fayetteville,Follansbee,Grafton,Harpers Ferry,Harrisville,Hundred,Huntington,Hurricane,Kingwood,Lewisburg,Logan,Man,Mannington,Martinsburg,Masontown,Middlebourne,Milton,Montgomery,Moorefield,Morgantown,Moundsville,New Cumberland,New Martinsville,Nitro,Nutter Fort,Oak Hill,Paden City,Parkersburg,Paw Paw,Pennsboro,Petersburg,",null,{"$error":"#VALUE!"},"","X","X"]
[null,"28122","Piedmont","","Alderson,Anmoore,Ansted,Athens,Barboursville,Bath,Beckley,Bluefield,Bolivar,Bridgeport,Bruceton Mills,Buckhannon,Capon Bridge,Chapmanville,Charles Town,Charleston,Chester,Clarksburg,Davis,Dunbar,Elizabeth,Elkins,Ellenboro,Fairmont,Fayetteville,Follansbee,Grafton,Harpers Ferry,Harrisville,Hundred,Huntington,Hurricane,Kingwood,Lewisburg,Logan,Man,Mannington,Martinsburg,Masontown,Middlebourne,Milton,Montgomery,Moorefield,Morgantown,Moundsville,New Cumberland,New Martinsville,Nitro,Nutter Fort,Oak Hill,Paden City,Parkersburg,Paw Paw,Pennsboro,Petersburg,",null,{"$error":"#VALUE!"},"","X","X"]
["1","52227","Pine Grove","Pine Grove,","Alderson,Anmoore,Ansted,Athens,Barboursville,Bath,Beckley,Bluefield,Bolivar,Bridgeport,Bruceton Mills,Buckhannon,Capon Bridge,Chapmanville,Charles Town,Charleston,Chester,Clarksburg,Davis,Dunbar,Elizabeth,Elkins,Ellenboro,Fairmont,Fayetteville,Follansbee,Grafton,Harpers Ferry,Harrisville,Hundred,Huntington,Hurricane,Kingwood,Lewisburg,Logan,Man,Mannington,Martinsburg,Masontown,Middlebourne,Milton,Montgomery,Moorefield,Morgantown,Moundsville,New Cumberland,New Martinsville,Nitro,Nutter Fort,Oak Hill,Paden City,Parkersburg,Paw Paw,Pennsboro,Petersburg,Pine Grove,",null,{"$error":"#VALUE!"},"","X","X"]
[null,"55235","Pineville","","Alderson,Anmoore,Ansted,Athens,Barboursville,Bath,Beckley,Bluefield,Bolivar,Bridgeport,Bruceton Mills,Buckhannon,Capon Bridge,Chapmanville,Charles Town,Charleston,Chester,Clarksburg,Davis,Dunbar,Elizabeth,Elkins,Ellenboro,Fairmont,Fayetteville,Follansbee,Grafton,Harpers Ferry,Harrisville,Hundred,Huntington,Hurricane,Kingwood,Lewisburg,Logan,Man,Mannington,Martinsburg,Masontown,Middlebourne,Milton,Montgomery,Moorefield,Morgantown,Moundsville,New Cumberland,New Martinsville,Nitro,Nutter Fort,Oak Hill,Paden City,Parkersburg,Paw Paw,Pennsboro,Petersburg,Pine Grove,",null,{"$error":"#VALUE!"},"","X","X"]
[null,"24236","Pleasant Valley","","Alderson,Anmoore,Ansted,Athens,Barboursville,Bath,Beckley,Bluefield,Bolivar,Bridgeport,Bruceton Mills,Buckhannon,Capon Bridge,Chapmanville,Charles Town,Charleston,Chester,Clarksburg,Davis,Dunbar,Elizabeth,Elkins,Ellenboro,Fairmont,Fayetteville,Follansbee,Grafton,Harpers Ferry,Harrisville,Hundred,Huntington,Hurricane,Kingwood,Lewisburg,Logan,Man,Mannington,Martinsburg,Masontown,Middlebourne,Milton,Montgomery,Moorefield,Morgantown,Moundsville,New Cumberland,New Martinsville,Nitro,Nutter Fort,Oak Hill,Paden City,Parkersburg,Paw Paw,Pennsboro,Petersburg,Pine Grove,",null,{"$error":"#VALUE!"},"","X","X"]
[null,"37000","Pleasants County","","Alderson,Anmoore,Ansted,Athens,Barboursville,Bath,Beckley,Bluefield,Bolivar,Bridgeport,Bruceton Mills,Buckhannon,Capon Bridge,Chapmanville,Charles Town,Charleston,Chester,Clarksburg,Davis,Dunbar,Elizabeth,Elkins,Ellenboro,Fairmont,Fayetteville,Follansbee,Grafton,Harpers Ferry,Harrisville,Hundred,Huntington,Hurricane,Kingwood,Lewisburg,Logan,Man,Mannington,Martinsburg,Masontown,Middlebourne,Milton,Montgomery,Moorefield,Morgantown,Moundsville,New Cumberland,New Martinsville,Nitro,Nutter Fort,Oak Hill,Paden City,Parkersburg,Paw Paw,Pennsboro,Petersburg,Pine Grove,",null,{"$error":"#VALUE!"},"","X","X"]
[null,"40180","Poca","","Alderson,Anmoore,Ansted,Athens,Barboursville,Bath,Beckley,Bluefield,Bolivar,Bridgeport,Bruceton Mills,Buckhannon,Capon Bridge,Chapmanville,Charles Town,Charleston,Chester,Clarksburg,Davis,Dunbar,Elizabeth,Elkins,Ellenboro,Fairmont,Fayetteville,Follansbee,Grafton,Harpers Ferry,Harrisville,Hundred,Huntington,Hurricane,Kingwood,Lewisburg,Logan,Man,Mannington,Martinsburg,Masontown,Middlebourne,Milton,Montgomery,Moorefield,Morgantown,Moundsville,New Cumberland,New Martinsville,Nitro,Nutter Fort,Oak Hill,Paden City,Parkersburg,Paw Paw,Pennsboro,Petersburg,Pine Grove,",null,{"$error":"#VALUE!"},"","X","X"]
[null,"38000","Pocahontas County","","Alderson,Anmoore,Ansted,Athens,Barboursville,Bath,Beckley,Bluefield,Bolivar,Bridgeport,Bruceton Mills,Buckhannon,Capon Bridge,Chapmanville,Charles Town,Charleston,Chester,Clarksburg,Davis,Dunbar,Elizabeth,Elkins,Ellenboro,Fairmont,Fayetteville,Follansbee,Grafton,Harpers Ferry,Harrisville,Hundred,Huntington,Hurricane,Kingwood,Lewisburg,Logan,Man,Mannington,Martinsburg,Masontown,Middlebourne,Milton,Montgomery,Moorefield,Morgantown,Moundsville,New Cumberland,New Martinsville,Nitro,Nutter Fort,Oak Hill,Paden City,Parkersburg,Paw Paw,Pennsboro,Petersburg,Pine Grove,",null,{"$error":"#VALUE!"},"","X","X"]
[null,"26113","Point Pleasant","","Alderson,Anmoore,Ansted,Athens,Barboursville,Bath,Beckley,Bluefield,Bolivar,Bridgeport,Bruceton Mills,Buckhannon,Capon Bridge,Chapmanville,Charles Town,Charleston,Chester,Clarksburg,Davis,Dunbar,Elizabeth,Elkins,Ellenboro,Fairmont,Fayetteville,Follansbee,Grafton,Harpers Ferry,Harrisville,Hundred,Huntington,Hurricane,Kingwood,Lewisburg,Logan,Man,Mannington,Martinsburg,Masontown,Middlebourne,Milton,Montgomery,Moorefield,Morgantown,Moundsville,New Cumberland,New Martinsville,Nitro,Nutter Fort,Oak Hill,Paden City,Parkersburg,Paw Paw,Pennsboro,Petersburg,Pine Grove,",null,{"$error":"#VALUE!"},"","X","X"]
[null,"20082","Pratt","","Alderson,Anmoore,Ansted,Athens,Barboursville,Bath,Beckley,Bluefield,Bolivar,Bridgeport,Bruceton Mills,Buckhannon,Capon Bridge,Chapmanville,Charles Town,Charleston,Chester,Clarksburg,Davis,Dunbar,Elizabeth,Elkins,Ellenboro,Fairmont,Fayetteville,Follansbee,Grafton,Harpers Ferry,Harrisville,Hundred,Huntington,Hurricane,Kingwood,Lewisburg,Logan,Man,Mannington,Martinsburg,Masontown,Middlebourne,Milton,Montgomery,Moorefield,Morgantown,Moundsville,New Cumberland,New Martinsville,Nitro,Nutter Fort,Oak Hill,Paden City,Parkersburg,Paw Paw,Pennsboro,Petersburg,Pine Grove,",null,{"$error":"#VALUE!"},"","X","X"]
[null,"39000","Preston County","","Alderson,Anmoore,Ansted,Athens,Barboursville,Bath,Beckley,Bluefield,Bolivar,Bridgeport,Bruceton Mills,Buckhannon,Capon Bridge,Chapmanville,Charles Town,Charleston,Chester,Clarksburg,Davis,Dunbar,Elizabeth,Elkins,Ellenboro,Fairmont,Fayetteville,Follansbee,Grafton,Harpers Ferry,Harrisville,Hundred,Huntington,Hurricane,Kingwood,Lewisburg,Logan,Man,Mannington,Martinsburg,Masontown,Middlebourne,Milton,Montgomery,Moorefield,Morgantown,Moundsville,New Cumberland,New Martinsville,Nitro,Nutter Fort,Oak Hill,Paden City,Parkersburg,Paw Paw,Pennsboro,Petersburg,Pine Grove,",null,{"$error":"#VALUE!"},"","X","X"]
["1","27119","Princeton","Princeton,","Alderson,Anmoore,Ansted,Athens,Barboursville,Bath,Beckley,Bluefield,Bolivar,Bridgeport,Bruceton Mills,Buckhannon,Capon Bridge,Chapmanville,Charles Town,Charleston,Chester,Clarksburg,Davis,Dunbar,Elizabeth,Elkins,Ellenboro,Fairmont,Fayetteville,Follansbee,Grafton,Harpers Ferry,Harrisville,Hundred,Huntington,Hurricane,Kingwood,Lewisburg,Logan,Man,Mannington,Martinsburg,Masontown,Middlebourne,Milton,Montgomery,Moorefield,Morgantown,Moundsville,New Cumberland,New Martinsville,Nitro,Nutter Fort,Oak Hill,Paden City,Parkersburg,Paw Paw,Pennsboro,Petersburg,Pine Grove,Princeton,",null,{"$error":"#VALUE!"},"","X","X"]
[null,"43199","Pullman","","Alderson,Anmoore,Ansted,Athens,Barboursville,Bath,Beckley,Bluefield,Bolivar,Bridgeport,Bruceton Mills,Buckhannon,Capon Bridge,Chapmanville,Charles Town,Charleston,Chester,Clarksburg,Davis,Dunbar,Elizabeth,Elkins,Ellenboro,Fairmont,Fayetteville,Follansbee,Grafton,Harpers Ferry,Harrisville,Hundred,Huntington,Hurricane,Kingwood,Lewisburg,Logan,Man,Mannington,Martinsburg,Masontown,Middlebourne,Milton,Montgomery,Moorefield,Morgantown,Moundsville,New Cumberland,New Martinsville,Nitro,Nutter Fort,Oak Hill,Paden City,Parkersburg,Paw Paw,Pennsboro,Petersburg,Pine Grove,Princeton,",null,{"$error":"#VALUE!"},"","X","X"]
[null,"40000","Putnam County","","Alderson,Anmoore,Ansted,Athens,Barboursville,Bath,Beckley,Bluefield,Bolivar,Bridgeport,Bruceton Mills,Buckhannon,Capon Bridge,Chapmanville,Charles Town,Charleston,Chester,Clarksburg,Davis,Dunbar,Elizabeth,Elkins,Ellenboro,Fairmont,Fayetteville,Follansbee,Grafton,Harpers Ferry,Harrisville,Hundred,Huntington,Hurricane,Kingwood,Lewisburg,Logan,Man,Mannington,Martinsburg,Masontown,Middlebourne,Milton,Montgomery,Moorefield,Morgantown,Moundsville,New Cumberland,New Martinsville,Nitro,Nutter Fort,Oak Hill,Paden City,Parkersburg,Paw Paw,Pennsboro,Petersburg,Pine Grove,Princeton,",null,{"$error":"#VALUE!"},"","X","X"]
["1","13040","Quinwood","Quinwood,","Alderson,Anmoore,Ansted,Athens,Barboursville,Bath,Beckley,Bluefield,Bolivar,Bridgeport,Bruceton Mills,Buckhannon,Capon Bridge,Chapmanville,Charles Town,Charleston,Chester,Clarksburg,Davis,Dunbar,Elizabeth,Elkins,Ellenboro,Fairmont,Fayetteville,Follansbee,Grafton,Harpers Ferry,Harrisville,Hundred,Huntington,Hurricane,Kingwood,Lewisburg,Logan,Man,Mannington,Martinsburg,Masontown,Middlebourne,Milton,Montgomery,Moorefield,Morgantown,Moundsville,New Cumberland,New Martinsville,Nitro,Nutter Fort,Oak Hill,Paden City,Parkersburg,Paw Paw,Pennsboro,Petersburg,Pine Grove,Princeton,Quinwood,",null,{"$error":"#VALUE!"},"","X","X"]
[null,"13041","Rainelle","","Alderson,Anmoore,Ansted,Athens,Barboursville,Bath,Beckley,Bluefield,Bolivar,Bridgeport,Bruceton Mills,Buckhannon,Capon Bridge,Chapmanville,Charles Town,Charleston,Chester,Clarksburg,Davis,Dunbar,Elizabeth,Elkins,Ellenboro,Fairmont,Fayetteville,Follansbee,Grafton,Harpers Ferry,Harrisville,Hundred,Huntington,Hurricane,Kingwood,Lewisburg,Logan,Man,Mannington,Martinsburg,Masontown,Middlebourne,Milton,Montgomery,Moorefield,Morgantown,Moundsville,New Cumberland,New Martinsville,Nitro,Nutter Fort,Oak Hill,Paden City,Parkersburg,Paw Paw,Pennsboro,Petersburg,Pine Grove,Princeton,Quinwood,",null,{"$error":"#VALUE!"},"","X","X"]
[null,"41000","Raleigh County","","Alderson,Anmoore,Ansted,Athens,Barboursville,Bath,Beckley,Bluefield,Bolivar,Bridgeport,Bruceton Mills,Buckhannon,Capon Bridge,Chapmanville,Charles Town,Charleston,Chester,Clarksburg,Davis,Dunbar,Elizabeth,Elkins,Ellenboro,Fairmont,Fayetteville,Follansbee,Grafton,Harpers Ferry,Harrisville,Hundred,Huntington,Hurricane,Kingwood,Lewisburg,Logan,Man,Mannington,Martinsburg,Masontown,Middlebourne,Milton,Montgomery,Moorefield,Morgantown,Moundsville,New Cumberland,New Martinsville,Nitro,Nutter Fort,Oak Hill,Paden City,Parkersburg,Paw Paw,Pennsboro,Petersburg,Pine Grove,Princeton,Quinwood,",null,{"$error":"#VALUE!"},"","X","X"]
[null,"42000","Randolph County","","Alderson,Anmoore,Ansted,Athens,Barboursville,Bath,Beckley,Bluefield,Bolivar,Bridgeport,Bruceton Mills,Buckhannon,Capon Bridge,Chapmanville,Charles Town,Charleston,Chester,Clarksburg,Davis,Dunbar,Elizabeth,Elkins,Ellenboro,Fairmont,Fayetteville,Follansbee,Grafton,Harpers Ferry,Harrisville,Hundred,Huntington,Hurricane,Kingwood,Lewisburg,Logan,Man,Mannington,Martinsburg,Masontown,Middlebourne,Milton,Montgomery,Moorefield,Morgantown,Moundsville,New Cumberland,New Martinsville,Nitro,Nutter Fort,Oak Hill,Paden City,Parkersburg,Paw Paw,Pennsboro,Petersburg,Pine Grove,Princeton,Quinwood,",null,{"$error":"#VALUE!"},"","X","X"]
["1","19068","Ranson","Ranson,","Alderson,Anmoore,Ansted,Athens,Barboursville,Bath,Beckley,Bluefield,Bolivar,Bridgeport,Bruceton Mills,Buckhannon,Capon Bridge,Chapmanville,Charles Town,Charleston,Chester,Clarksburg,Davis,Dunbar,Elizabeth,Elkins,Ellenboro,Fairmont,Fayetteville,Follansbee,Grafton,Harpers Ferry,Harrisville,Hundred,Huntington,Hurricane,Kingwood,Lewisburg,Logan,Man,Mannington,Martinsburg,Masontown,Middlebourne,Milton,Montgomery,Moorefield,Morgantown,Moundsville,New Cumberland,New Martinsville,Nitro,Nutter Fort,Oak Hill,Paden City,Parkersburg,Paw Paw,Pennsboro,Petersburg,Pine Grove,Princeton,Quinwood,Ranson,",null,{"$error":"#VALUE!"},"","X","X"]
["1","18063","Ravenswood","Ravenswood,","Alderson,Anmoore,Ansted,Athens,Barboursville,Bath,Beckley,Bluefield,Bolivar,Bridgeport,Bruceton Mills,Buckhannon,Capon Bridge,Chapmanville,Charles Town,Charleston,Chester,Clarksburg,Davis,Dunbar,Elizabeth,Elkins,Ellenboro,Fairmont,Fayetteville,Follansbee,Grafton,Harpers Ferry,Harrisville,Hundred,Huntington,Hurricane,Kingwood,Lewisburg,Logan,Man,Mannington,Martinsburg,Masontown,Middlebourne,Milton,Montgomery,Moorefield,Morgantown,Moundsville,New Cumberland,New Martinsville,Nitro,Nutter Fort,Oak Hill,Paden City,Parkersburg,Paw Paw,Pennsboro,Petersburg,Pine Grove,Princeton,Quinwood,Ranson,Ravenswood,",null,{"$error":"#VALUE!"},"","X","X"]
["1","39171","Reedsville","Reedsville,","Alderson,Anmoore,Ansted,Athens,Barboursville,Bath,Beckley,Bluefield,Bolivar,Bridgeport,Bruceton Mills,Buckhannon,Capon Bridge,Chapmanville,Charles Town,Charleston,Chester,Clarksburg,Davis,Dunbar,Elizabeth,Elkins,Ellenboro,Fairmont,Fayetteville,Follansbee,Grafton,Harpers Ferry,Harrisville,Hundred,Huntington,Hurricane,Kingwood,Lewisburg,Logan,Man,Mannington,Martinsburg,Masontown,Middlebourne,Milton,Montgomery,Moorefield,Morgantown,Moundsville,New Cumberland,New Martinsville,Nitro,Nutter Fort,Oak Hill,Paden City,Parkersburg,Paw Paw,Pennsboro,Petersburg,Pine Grove,Princeton,Quinwood,Ranson,Ravenswood,Reedsville,",null,{"$error":"#VALUE!"},"","X","X"]
[null,"44200","Reedy","","Alderson,Anmoore,Ansted,Athens,Barboursville,Bath,Beckley,Bluefield,Bolivar,Bridgeport,Bruceton Mills,Buckhannon,Capon Bridge,Chapmanville,Charles Town,Charleston,Chester,Clarksburg,Davis,Dunbar,Elizabeth,Elkins,Ellenboro,Fairmont,Fayetteville,Follansbee,Grafton,Harpers Ferry,Harrisville,Hundred,Huntington,Hurricane,Kingwood,Lewisburg,Logan,Man,Mannington,Martinsburg,Masontown,Middlebourne,Milton,Montgomery,Moorefield,Morgantown,Moundsville,New Cumberland,New Martinsville,Nitro,Nutter Fort,Oak Hill,Paden City,Parkersburg,Paw Paw,Pennsboro,Petersburg,Pine Grove,Princeton,Quinwood,Ranson,Ravenswood,Reedsville,",null,{"$error":"#VALUE!"},"","X","X"]
[null,"41185","Rhodell","","Alderson,Anmoore,Ansted,Athens,Barboursville,Bath,Beckley,Bluefield,Bolivar,Bridgeport,Bruceton Mills,Buckhannon,Capon Bridge,Chapmanville,Charles Town,Charleston,Chester,Clarksburg,Davis,Dunbar,Elizabeth,Elkins,Ellenboro,Fairmont,Fayetteville,Follansbee,Grafton,Harpers Ferry,Harrisville,Hundred,Huntington,Hurricane,Kingwood,Lewisburg,Logan,Man,Mannington,Martinsburg,Masontown,Middlebourne,Milton,Montgomery,Moorefield,Morgantown,Moundsville,New Cumberland,New Martinsville,Nitro,Nutter Fort,Oak Hill,Paden City,Parkersburg,Paw Paw,Pennsboro,Petersburg,Pine Grove,Princeton,Quinwood,Ranson,Ravenswood,Reedsville,",null,{"$error":"#VALUE!"},"","X","X"]
["1","34150","Richwood","Richwood,","Alderson,Anmoore,Ansted,Athens,Barboursville,Bath,Beckley,Bluefield,Bolivar,Bridgeport,Bruceton Mills,Buckhannon,Capon Bridge,Chapmanville,Charles Town,Charleston,Chester,Clarksburg,Davis,Dunbar,Elizabeth,Elkins,Ellenboro,Fairmont,Fayetteville,Follansbee,Grafton,Harpers Ferry,Harrisville,Hundred,Huntington,Hurricane,Kingwood,Lewisburg,Logan,Man,Mannington,Martinsburg,Masontown,Middlebourne,Milton,Montgomery,Moorefield,Morgantown,Moundsville,New Cumberland,New Martinsville,Nitro,Nutter Fort,Oak Hill,Paden City,Parkersburg,Paw Paw,Pennsboro,Petersburg,Pine Grove,Princeton,Quinwood,Ranson,Ravenswood,Reedsville,Richwood,",null,{"$error":"#VALUE!"},"","X","X"]
[null,"28123","Ridgeley","","Alderson,Anmoore,Ansted,Athens,Barboursville,Bath,Beckley,Bluefield,Bolivar,Bridgeport,Bruceton Mills,Buckhannon,Capon Bridge,Chapmanville,Charles Town,Charleston,Chester,Clarksburg,Davis,Dunbar,Elizabeth,Elkins,Ellenboro,Fairmont,Fayetteville,Follansbee,Grafton,Harpers Ferry,Harrisville,Hundred,Huntington,Hurricane,Kingwood,Lewisburg,Logan,Man,Mannington,Martinsburg,Masontown,Middlebourne,Milton,Montgomery,Moorefield,Morgantown,Moundsville,New Cumberland,New Martinsville,Nitro,Nutter Fort,Oak Hill,Paden City,Parkersburg,Paw Paw,Pennsboro,Petersburg,Pine Grove,Princeton,Quinwood,Ranson,Ravenswood,Reedsville,Richwood,",null,{"$error":"#VALUE!"},"","X","X"]
["1","18064","Ripley","Ripley,","Alderson,Anmoore,Ansted,Athens,Barboursville,Bath,Beckley,Bluefield,Bolivar,Bridgeport,Bruceton Mills,Buckhannon,Capon Bridge,Chapmanville,Charles Town,Charleston,Chester,Clarksburg,Davis,Dunbar,Elizabeth,Elkins,Ellenboro,Fairmont,Fayetteville,Follansbee,Grafton,Harpers Ferry,Harrisville,Hundred,Huntington,Hurricane,Kingwood,Lewisburg,Logan,Man,Mannington,Martinsburg,Masontown,Middlebourne,Milton,Montgomery,Moorefield,Morgantown,Moundsville,New Cumberland,New Martinsville,Nitro,Nutter Fort,Oak Hill,Paden City,Parkersburg,Paw Paw,Pennsboro,Petersburg,Pine Grove,Princeton,Quinwood,Ranson,Ravenswood,Reedsville,Richwood,Ripley,",null,{"$error":"#VALUE!"},"","X","X"]
[null,"43000","Ritchie County","","Alderson,Anmoore,Ansted,Athens,Barboursville,Bath,Beckley,Bluefield,Bolivar,Bridgeport,Bruceton Mills,Buckhannon,Capon Bridge,Chapmanville,Charles Town,Charleston,Chester,Clarksburg,Davis,Dunbar,Elizabeth,Elkins,Ellenboro,Fairmont,Fayetteville,Follansbee,Grafton,Harpers Ferry,Harrisville,Hundred,Huntington,Hurricane,Kingwood,Lewisburg,Logan,Man,Mannington,Martinsburg,Masontown,Middlebourne,Milton,Montgomery,Moorefield,Morgantown,Moundsville,New Cumberland,New Martinsville,Nitro,Nutter Fort,Oak Hill,Paden City,Parkersburg,Paw Paw,Pennsboro,Petersburg,Pine Grove,Princeton,Quinwood,Ranson,Ravenswood,Reedsville,Richwood,Ripley,",null,{"$error":"#VALUE!"},"","X","X"]
[null,"24101","Rivesville","","Alderson,Anmoore,Ansted,Athens,Barboursville,Bath,Beckley,Bluefield,Bolivar,Bridgeport,Bruceton Mills,Buckhannon,Capon Bridge,Chapmanville,Charles Town,Charleston,Chester,Clarksburg,Davis,Dunbar,Elizabeth,Elkins,Ellenboro,Fairmont,Fayetteville,Follansbee,Grafton,Harpers Ferry,Harrisville,Hundred,Huntington,Hurricane,Kingwood,Lewisburg,Logan,Man,Mannington,Martinsburg,Masontown,Middlebourne,Milton,Montgomery,Moorefield,Morgantown,Moundsville,New Cumberland,New Martinsville,Nitro,Nutter Fort,Oak Hill,Paden City,Parkersburg,Paw Paw,Pennsboro,Petersburg,Pine Grove,Princeton,Quinwood,Ranson,Ravenswood,Reedsville,Richwood,Ripley,",null,{"$error":"#VALUE!"},"","X","X"]
[null,"44000","Roane County","","Alderson,Anmoore,Ansted,Athens,Barboursville,Bath,Beckley,Bluefield,Bolivar,Bridgeport,Bruceton Mills,Buckhannon,Capon Bridge,Chapmanville,Charles Town,Charleston,Chester,Clarksburg,Davis,Dunbar,Elizabeth,Elkins,Ellenboro,Fairmont,Fayetteville,Follansbee,Grafton,Harpers Ferry,Harrisville,Hundred,Huntington,Hurricane,Kingwood,Lewisburg,Logan,Man,Mannington,Martinsburg,Masontown,Middlebourne,Milton,Montgomery,Moorefield,Morgantown,Moundsville,New Cumberland,New Martinsville,Nitro,Nutter Fort,Oak Hill,Paden City,Parkersburg,Paw Paw,Pennsboro,Petersburg,Pine Grove,Princeton,Quinwood,Ranson,Ravenswood,Reedsville,Richwood,Ripley,",null,{"$error":"#VALUE!"},"","X","X"]
["1","14047","Romney","Romney,","Alderson,Anmoore,Ansted,Athens,Barboursville,Bath,Beckley,Bluefield,Bolivar,Bridgeport,Bruceton Mills,Buckhannon,Capon Bridge,Chapmanville,Charles Town,Charleston,Chester,Clarksburg,Davis,Dunbar,Elizabeth,Elkins,Ellenboro,Fairmont,Fayetteville,Follansbee,Grafton,Harpers Ferry,Harrisville,Hundred,Huntington,Hurricane,Kingwood,Lewisburg,Logan,Man,Mannington,Martinsburg,Masontown,Middlebourne,Milton,Montgomery,Moorefield,Morgantown,Moundsville,New Cumberland,New Martinsville,Nitro,Nutter Fort,Oak Hill,Paden City,Parkersburg,Paw Paw,Pennsboro,Petersburg,Pine Grove,Princeton,Quinwood,Ranson,Ravenswood,Reedsville,Richwood,Ripley,Romney,",null,{"$error":"#VALUE!"},"","X","X"]
[null,"13043","Ronceverte","","Alderson,Anmoore,Ansted,Athens,Barboursville,Bath,Beckley,Bluefield,Bolivar,Bridgeport,Bruceton Mills,Buckhannon,Capon Bridge,Chapmanville,Charles Town,Charleston,Chester,Clarksburg,Davis,Dunbar,Elizabeth,Elkins,Ellenboro,Fairmont,Fayetteville,Follansbee,Grafton,Harpers Ferry,Harrisville,Hundred,Huntington,Hurricane,Kingwood,Lewisburg,Logan,Man,Mannington,Martinsburg,Masontown,Middlebourne,Milton,Montgomery,Moorefield,Morgantown,Moundsville,New Cumberland,New Martinsville,Nitro,Nutter Fort,Oak Hill,Paden City,Parkersburg,Paw Paw,Pennsboro,Petersburg,Pine Grove,Princeton,Quinwood,Ranson,Ravenswood,Reedsville,Richwood,Ripley,Romney,",null,{"$error":"#VALUE!"},"","X","X"]
["1","39172","Rowlesburg","Rowlesburg,","Alderson,Anmoore,Ansted,Athens,Barboursville,Bath,Beckley,Bluefield,Bolivar,Bridgeport,Bruceton Mills,Buckhannon,Capon Bridge,Chapmanville,Charles Town,Charleston,Chester,Clarksburg,Davis,Dunbar,Elizabeth,Elkins,Ellenboro,Fairmont,Fayetteville,Follansbee,Grafton,Harpers Ferry,Harrisville,Hundred,Huntington,Hurricane,Kingwood,Lewisburg,Logan,Man,Mannington,Martinsburg,Masontown,Middlebourne,Milton,Montgomery,Moorefield,Morgantown,Moundsville,New Cumberland,New Martinsville,Nitro,Nutter Fort,Oak Hill,Paden City,Parkersburg,Paw Paw,Pennsboro,Petersburg,Pine Grove,Princeton,Quinwood,Ranson,Ravenswood,Reedsville,Richwood,Ripley,Romney,Rowlesburg,",null,{"$error":"#VALUE!"},"","X","X"]
["1","13044","Rupert","Rupert,","Alderson,Anmoore,Ansted,Athens,Barboursville,Bath,Beckley,Bluefield,Bolivar,Bridgeport,Bruceton Mills,Buckhannon,Capon Bridge,Chapmanville,Charles Town,Charleston,Chester,Clarksburg,Davis,Dunbar,Elizabeth,Elkins,Ellenboro,Fairmont,Fayetteville,Follansbee,Grafton,Harpers Ferry,Harrisville,Hundred,Huntington,Hurricane,Kingwood,Lewisburg,Logan,Man,Mannington,Martinsburg,Masontown,Middlebourne,Milton,Montgomery,Moorefield,Morgantown,Moundsville,New Cumberland,New Martinsville,Nitro,Nutter Fort,Oak Hill,Paden City,Parkersburg,Paw Paw,Pennsboro,Petersburg,Pine Grove,Princeton,Quinwood,Ranson,Ravenswood,Reedsville,Richwood,Ripley,Romney,Rowlesburg,Rupert,",null,{"$error":"#VALUE!"},"","X","X"]
[null,"17059","Salem","","Alderson,Anmoore,Ansted,Athens,Barboursville,Bath,Beckley,Bluefield,Bolivar,Bridgeport,Bruceton Mills,Buckhannon,Capon Bridge,Chapmanville,Charles Town,Charleston,Chester,Clarksburg,Davis,Dunbar,Elizabeth,Elkins,Ellenboro,Fairmont,Fayetteville,Follansbee,Grafton,Harpers Ferry,Harrisville,Hundred,Huntington,Hurricane,Kingwood,Lewisburg,Logan,Man,Mannington,Martinsburg,Masontown,Middlebourne,Milton,Montgomery,Moorefield,Morgantown,Moundsville,New Cumberland,New Martinsville,Nitro,Nutter Fort,Oak Hill,Paden City,Parkersburg,Paw Paw,Pennsboro,Petersburg,Pine Grove,Princeton,Quinwood,Ranson,Ravenswood,Reedsville,Richwood,Ripley,Romney,Rowlesburg,Rupert,",null,{"$error":"#VALUE!"},"","X","X"]
[null,"11036","Sand Fork","","Alderson,Anmoore,Ansted,Athens,Barboursville,Bath,Beckley,Bluefield,Bolivar,Bridgeport,Bruceton Mills,Buckhannon,Capon Bridge,Chapmanville,Charles Town,Charleston,Chester,Clarksburg,Davis,Dunbar,Elizabeth,Elkins,Ellenboro,Fairmont,Fayetteville,Follansbee,Grafton,Harpers Ferry,Harrisville,Hundred,Huntington,Hurricane,Kingwood,Lewisburg,Logan,Man,Mannington,Martinsburg,Masontown,Middlebourne,Milton,Montgomery,Moorefield,Morgantown,Moundsville,New Cumberland,New Martinsville,Nitro,Nutter Fort,Oak Hill,Paden City,Parkersburg,Paw Paw,Pennsboro,Petersburg,Pine Grove,Princeton,Quinwood,Ranson,Ravenswood,Reedsville,Richwood,Ripley,Romney,Rowlesburg,Rupert,",null,{"$error":"#VALUE!"},"","X","X"]
["1","19069","Shepherdstown","Shepherdstown,","Alderson,Anmoore,Ansted,Athens,Barboursville,Bath,Beckley,Bluefield,Bolivar,Bridgeport,Bruceton Mills,Buckhannon,Capon Bridge,Chapmanville,Charles Town,Charleston,Chester,Clarksburg,Davis,Dunbar,Elizabeth,Elkins,Ellenboro,Fairmont,Fayetteville,Follansbee,Grafton,Harpers Ferry,Harrisville,Hundred,Huntington,Hurricane,Kingwood,Lewisburg,Logan,Man,Mannington,Martinsburg,Masontown,Middlebourne,Milton,Montgomery,Moorefield,Morgantown,Moundsville,New Cumberland,New Martinsville,Nitro,Nutter Fort,Oak Hill,Paden City,Parkersburg,Paw Paw,Pennsboro,Petersburg,Pine Grove,Princeton,Quinwood,Ranson,Ravenswood,Reedsville,Richwood,Ripley,Romney,Rowlesburg,Rupert,Shepherdstown,",null,{"$error":"#VALUE!"},"","X","X"]
["1","17060","Shinnston","Shinnston,","Alderson,Anmoore,Ansted,Athens,Barboursville,Bath,Beckley,Bluefield,Bolivar,Bridgeport,Bruceton Mills,Buckhannon,Capon Bridge,Chapmanville,Charles Town,Charleston,Chester,Clarksburg,Davis,Dunbar,Elizabeth,Elkins,Ellenboro,Fairmont,Fayetteville,Follansbee,Grafton,Harpers Ferry,Harrisville,Hundred,Huntington,Hurricane,Kingwood,Lewisburg,Logan,Man,Mannington,Martinsburg,Masontown,Middlebourne,Milton,Montgomery,Moorefield,Morgantown,Moundsville,New Cumberland,New Martinsville,Nitro,Nutter Fort,Oak Hill,Paden City,Parkersburg,Paw Paw,Pennsboro,Petersburg,Pine Grove,Princeton,Quinwood,Ranson,Ravenswood,Reedsville,Richwood,Ripley,Romney,Rowlesburg,Rupert,Shepherdstown,Shinnston,",null,{"$error":"#VALUE!"},"","X","X"]
["1","48213","Sistersville","Sistersville,","Alderson,Anmoore,Ansted,Athens,Barboursville,Bath,Beckley,Bluefield,Bolivar,Bridgeport,Bruceton Mills,Buckhannon,Capon Bridge,Chapmanville,Charles Town,Charleston,Chester,Clarksburg,Davis,Dunbar,Elizabeth,Elkins,Ellenboro,Fairmont,Fayetteville,Follansbee,Grafton,Harpers Ferry,Harrisville,Hundred,Huntington,Hurricane,Kingwood,Lewisburg,Logan,Man,Mannington,Martinsburg,Masontown,Middlebourne,Milton,Montgomery,Moorefield,Morgantown,Moundsville,New Cumberland,New Martinsville,Nitro,Nutter Fort,Oak Hill,Paden City,Parkersburg,Paw Paw,Pennsboro,Petersburg,Pine Grove,Princeton,Quinwood,Ranson,Ravenswood,Reedsville,Richwood,Ripley,Romney,Rowlesburg,Rupert,Shepherdstown,Shinnston,Sistersville,",null,{"$error":"#VALUE!"},"","X","X"]
["1","10033","Smithers","Smithers,","Alderson,Anmoore,Ansted,Athens,Barboursville,Bath,Beckley,Bluefield,Bolivar,Bridgeport,Bruceton Mills,Buckhannon,Capon Bridge,Chapmanville,Charles Town,Charleston,Chester,Clarksburg,Davis,Dunbar,Elizabeth,Elkins,Ellenboro,Fairmont,Fayetteville,Follansbee,Grafton,Harpers Ferry,Harrisville,Hundred,Huntington,Hurricane,Kingwood,Lewisburg,Logan,Man,Mannington,Martinsburg,Masontown,Middlebourne,Milton,Montgomery,Moorefield,Morgantown,Moundsville,New Cumberland,New Martinsville,Nitro,Nutter Fort,Oak Hill,Paden City,Parkersburg,Paw Paw,Pennsboro,Petersburg,Pine Grove,Princeton,Quinwood,Ranson,Ravenswood,Reedsville,Richwood,Ripley,Romney,Rowlesburg,Rupert,Shepherdstown,Shinnston,Sistersville,Smithers,",null,{"$error":"#VALUE!"},"","X","X"]
[null,"52228","Smithfield","","Alderson,Anmoore,Ansted,Athens,Barboursville,Bath,Beckley,Bluefield,Bolivar,Bridgeport,Bruceton Mills,Buckhannon,Capon Bridge,Chapmanville,Charles Town,Charleston,Chester,Clarksburg,Davis,Dunbar,Elizabeth,Elkins,Ellenboro,Fairmont,Fayetteville,Follansbee,Grafton,Harpers Ferry,Harrisville,Hundred,Huntington,Hurricane,Kingwood,Lewisburg,Logan,Man,Mannington,Martinsburg,Masontown,Middlebourne,Milton,Montgomery,Moorefield,Morgantown,Moundsville,New Cumberland,New Martinsville,Nitro,Nutter Fort,Oak Hill,Paden City,Parkersburg,Paw Paw,Pennsboro,Petersburg,Pine Grove,Princeton,Quinwood,Ranson,Ravenswood,Reedsville,Richwood,Ripley,Romney,Rowlesburg,Rupert,Shepherdstown,Shinnston,Sistersville,Smithers,",null,{"$error":"#VALUE!"},"","X","X"]
["1","41186","Sophia","Sophia,","Alderson,Anmoore,Ansted,Athens,Barboursville,Bath,Beckley,Bluefield,Bolivar,Bridgeport,Bruceton Mills,Buckhannon,Capon Bridge,Chapmanville,Charles Town,Charleston,Chester,Clarksburg,Davis,Dunbar,Elizabeth,Elkins,Ellenboro,Fairmont,Fayetteville,Follansbee,Grafton,Harpers Ferry,Harrisville,Hundred,Huntington,Hurricane,Kingwood,Lewisburg,Logan,Man,Mannington,Martinsburg,Masontown,Middlebourne,Milton,Montgomery,Moorefield,Morgantown,Moundsville,New Cumberland,New Martinsville,Nitro,Nutter Fort,Oak Hill,Paden City,Parkersburg,Paw Paw,Pennsboro,Petersburg,Pine Grove,Princeton,Quinwood,Ranson,Ravenswood,Reedsville,Richwood,Ripley,Romney,Rowlesburg,Rupert,Shepherdstown,Shinnston,Sistersville,Smithers,Sophia,",null,{"$error":"#VALUE!"},"","X","X"]
["1","20084","South Charleston","South Charleston,","Alderson,Anmoore,Ansted,Athens,Barboursville,Bath,Beckley,Bluefield,Bolivar,Bridgeport,Bruceton Mills,Buckhannon,Capon Bridge,Chapmanville,Charles Town,Charleston,Chester,Clarksburg,Davis,Dunbar,Elizabeth,Elkins,Ellenboro,Fairmont,Fayetteville,Follansbee,Grafton,Harpers Ferry,Harrisville,Hundred,Huntington,Hurricane,Kingwood,Lewisburg,Logan,Man,Mannington,Martinsburg,Masontown,Middlebourne,Milton,Montgomery,Moorefield,Morgantown,Moundsville,New Cumberland,New Martinsville,Nitro,Nutter Fort,Oak Hill,Paden City,Parkersburg,Paw Paw,Pennsboro,Petersburg,Pine Grove,Princeton,Quinwood,Ranson,Ravenswood,Reedsville,Richwood,Ripley,Romney,Rowlesburg,Rupert,Shepherdstown,Shinnston,Sistersville,Smithers,Sophia,South Charleston,",null,{"$error":"#VALUE!"},"","X","X"]
["1","44201","Spencer","Spencer,","Alderson,Anmoore,Ansted,Athens,Barboursville,Bath,Beckley,Bluefield,Bolivar,Bridgeport,Bruceton Mills,Buckhannon,Capon Bridge,Chapmanville,Charles Town,Charleston,Chester,Clarksburg,Davis,Dunbar,Elizabeth,Elkins,Ellenboro,Fairmont,Fayetteville,Follansbee,Grafton,Harpers Ferry,Harrisville,Hundred,Huntington,Hurricane,Kingwood,Lewisburg,Logan,Man,Mannington,Martinsburg,Masontown,Middlebourne,Milton,Montgomery,Moorefield,Morgantown,Moundsville,New Cumberland,New Martinsville,Nitro,Nutter Fort,Oak Hill,Paden City,Parkersburg,Paw Paw,Pennsboro,Petersburg,Pine Grove,Princeton,Quinwood,Ranson,Ravenswood,Reedsville,Richwood,Ripley,Romney,Rowlesburg,Rupert,Shepherdstown,Shinnston,Sistersville,Smithers,Sophia,South Charleston,Spencer,",null,{"$error":"#VALUE!"},"","X","X"]
["1","20083","St Albans","St Albans,","Alderson,Anmoore,Ansted,Athens,Barboursville,Bath,Beckley,Bluefield,Bolivar,Bridgeport,Bruceton Mills,Buckhannon,Capon Bridge,Chapmanville,Charles Town,Charleston,Chester,Clarksburg,Davis,Dunbar,Elizabeth,Elkins,Ellenboro,Fairmont,Fayetteville,Follansbee,Grafton,Harpers Ferry,Harrisville,Hundred,Huntington,Hurricane,Kingwood,Lewisburg,Logan,Man,Mannington,Martinsburg,Masontown,Middlebourne,Milton,Montgomery,Moorefield,Morgantown,Moundsville,New Cumberland,New Martinsville,Nitro,Nutter Fort,Oak Hill,Paden City,Parkersburg,Paw Paw,Pennsboro,Petersburg,Pine Grove,Princeton,Quinwood,Ranson,Ravenswood,Reedsville,Richwood,Ripley,Romney,Rowlesburg,Rupert,Shepherdstown,Shinnston,Sistersville,Smithers,Sophia,South Charleston,Spencer,St Albans,",null,{"$error":"#VALUE!"},"","X","X"]
[null,"37160","St Marys","","Alderson,Anmoore,Ansted,Athens,Barboursville,Bath,Beckley,Bluefield,Bolivar,Bridgeport,Bruceton Mills,Buckhannon,Capon Bridge,Chapmanville,Charles Town,Charleston,Chester,Clarksburg,Davis,Dunbar,Elizabeth,Elkins,Ellenboro,Fairmont,Fayetteville,Follansbee,Grafton,Harpers Ferry,Harrisville,Hundred,Huntington,Hurricane,Kingwood,Lewisburg,Logan,Man,Mannington,Martinsburg,Masontown,Middlebourne,Milton,Montgomery,Moorefield,Morgantown,Moundsville,New Cumberland,New Martinsville,Nitro,Nutter Fort,Oak Hill,Paden City,Parkersburg,Paw Paw,Pennsboro,Petersburg,Pine Grove,Princeton,Quinwood,Ranson,Ravenswood,Reedsville,Richwood,Ripley,Romney,Rowlesburg,Rupert,Shepherdstown,Shinnston,Sistersville,Smithers,Sophia,South Charleston,Spencer,St Albans,",null,{"$error":"#VALUE!"},"","X","X"]
[null,"30133","Star City","","Alderson,Anmoore,Ansted,Athens,Barboursville,Bath,Beckley,Bluefield,Bolivar,Bridgeport,Bruceton Mills,Buckhannon,Capon Bridge,Chapmanville,Charles Town,Charleston,Chester,Clarksburg,Davis,Dunbar,Elizabeth,Elkins,Ellenboro,Fairmont,Fayetteville,Follansbee,Grafton,Harpers Ferry,Harrisville,Hundred,Huntington,Hurricane,Kingwood,Lewisburg,Logan,Man,Mannington,Martinsburg,Masontown,Middlebourne,Milton,Montgomery,Moorefield,Morgantown,Moundsville,New Cumberland,New Martinsville,Nitro,Nutter Fort,Oak Hill,Paden City,Parkersburg,Paw Paw,Pennsboro,Petersburg,Pine Grove,Princeton,Quinwood,Ranson,Ravenswood,Reedsville,Richwood,Ripley,Romney,Rowlesburg,Rupert,Shepherdstown,Shinnston,Sistersville,Smithers,Sophia,South Charleston,Spencer,St Albans,",null,{"$error":"#VALUE!"},"","X","X"]
[null,"17061","Stonewood","","Alderson,Anmoore,Ansted,Athens,Barboursville,Bath,Beckley,Bluefield,Bolivar,Bridgeport,Bruceton Mills,Buckhannon,Capon Bridge,Chapmanville,Charles Town,Charleston,Chester,Clarksburg,Davis,Dunbar,Elizabeth,Elkins,Ellenboro,Fairmont,Fayetteville,Follansbee,Grafton,Harpers Ferry,Harrisville,Hundred,Huntington,Hurricane,Kingwood,Lewisburg,Logan,Man,Mannington,Martinsburg,Masontown,Middlebourne,Milton,Montgomery,Moorefield,Morgantown,Moundsville,New Cumberland,New Martinsville,Nitro,Nutter Fort,Oak Hill,Paden City,Parkersburg,Paw Paw,Pennsboro,Petersburg,Pine Grove,Princeton,Quinwood,Ranson,Ravenswood,Reedsville,Richwood,Ripley,Romney,Rowlesburg,Rupert,Shepherdstown,Shinnston,Sistersville,Smithers,Sophia,South Charleston,Spencer,St Albans,",null,{"$error":"#VALUE!"},"","X","X"]
[null,"45000","Summers County","","Alderson,Anmoore,Ansted,Athens,Barboursville,Bath,Beckley,Bluefield,Bolivar,Bridgeport,Bruceton Mills,Buckhannon,Capon Bridge,Chapmanville,Charles Town,Charleston,Chester,Clarksburg,Davis,Dunbar,Elizabeth,Elkins,Ellenboro,Fairmont,Fayetteville,Follansbee,Grafton,Harpers Ferry,Harrisville,Hundred,Huntington,Hurricane,Kingwood,Lewisburg,Logan,Man,Mannington,Martinsburg,Masontown,Middlebourne,Milton,Montgomery,Moorefield,Morgantown,Moundsville,New Cumberland,New Martinsville,Nitro,Nutter Fort,Oak Hill,Paden City,Parkersburg,Paw Paw,Pennsboro,Petersburg,Pine Grove,Princeton,Quinwood,Ranson,Ravenswood,Reedsville,Richwood,Ripley,Romney,Rowlesburg,Rupert,Shepherdstown,Shinnston,Sistersville,Smithers,Sophia,South Charleston,Spencer,St Albans,",null,{"$error":"#VALUE!"},"","X","X"]
["1","34151","Summersville","Summersville,","Alderson,Anmoore,Ansted,Athens,Barboursville,Bath,Beckley,Bluefield,Bolivar,Bridgeport,Bruceton Mills,Buckhannon,Capon Bridge,Chapmanville,Charles Town,Charleston,Chester,Clarksburg,Davis,Dunbar,Elizabeth,Elkins,Ellenboro,Fairmont,Fayetteville,Follansbee,Grafton,Harpers Ferry,Harrisville,Hundred,Huntington,Hurricane,Kingwood,Lewisburg,Logan,Man,Mannington,Martinsburg,Masontown,Middlebourne,Milton,Montgomery,Moorefield,Morgantown,Moundsville,New Cumberland,New Martinsville,Nitro,Nutter Fort,Oak Hill,Paden City,Parkersburg,Paw Paw,Pennsboro,Petersburg,Pine Grove,Princeton,Quinwood,Ranson,Ravenswood,Reedsville,Richwood,Ripley,Romney,Rowlesburg,Rupert,Shepherdstown,Shinnston,Sistersville,Smithers,Sophia,South Charleston,Spencer,St Albans,Summersville,",null,{"$error":"#VALUE!"},"","X","X"]
[null,"04013","Sutton","","Alderson,Anmoore,Ansted,Athens,Barboursville,Bath,Beckley,Bluefield,Bolivar,Bridgeport,Bruceton Mills,Buckhannon,Capon Bridge,Chapmanville,Charles Town,Charleston,Chester,Clarksburg,Davis,Dunbar,Elizabeth,Elkins,Ellenboro,Fairmont,Fayetteville,Follansbee,Grafton,Harpers Ferry,Harrisville,Hundred,Huntington,Hurricane,Kingwood,Lewisburg,Logan,Man,Mannington,Martinsburg,Masontown,Middlebourne,Milton,Montgomery,Moorefield,Morgantown,Moundsville,New Cumberland,New Martinsville,Nitro,Nutter Fort,Oak Hill,Paden City,Parkersburg,Paw Paw,Pennsboro,Petersburg,Pine Grove,Princeton,Quinwood,Ranson,Ravenswood,Reedsville,Richwood,Ripley,Romney,Rowlesburg,Rupert,Shepherdstown,Shinnston,Sistersville,Smithers,Sophia,South Charleston,Spencer,St Albans,Summersville,",null,{"$error":"#VALUE!"},"","X","X"]
["1","03008","Sylvester","Sylvester,","Alderson,Anmoore,Ansted,Athens,Barboursville,Bath,Beckley,Bluefield,Bolivar,Bridgeport,Bruceton Mills,Buckhannon,Capon Bridge,Chapmanville,Charles Town,Charleston,Chester,Clarksburg,Davis,Dunbar,Elizabeth,Elkins,Ellenboro,Fairmont,Fayetteville,Follansbee,Grafton,Harpers Ferry,Harrisville,Hundred,Huntington,Hurricane,Kingwood,Lewisburg,Logan,Man,Mannington,Martinsburg,Masontown,Middlebourne,Milton,Montgomery,Moorefield,Morgantown,Moundsville,New Cumberland,New Martinsville,Nitro,Nutter Fort,Oak Hill,Paden City,Parkersburg,Paw Paw,Pennsboro,Petersburg,Pine Grove,Princeton,Quinwood,Ranson,Ravenswood,Reedsville,Richwood,Ripley,Romney,Rowlesburg,Rupert,Shepherdstown,Shinnston,Sistersville,Smithers,Sophia,South Charleston,Spencer,St Albans,Summersville,Sylvester,",null,{"$error":"#VALUE!"},"","X","X"]
[null,"46000","Taylor County","","Alderson,Anmoore,Ansted,Athens,Barboursville,Bath,Beckley,Bluefield,Bolivar,Bridgeport,Bruceton Mills,Buckhannon,Capon Bridge,Chapmanville,Charles Town,Charleston,Chester,Clarksburg,Davis,Dunbar,Elizabeth,Elkins,Ellenboro,Fairmont,Fayetteville,Follansbee,Grafton,Harpers Ferry,Harrisville,Hundred,Huntington,Hurricane,Kingwood,Lewisburg,Logan,Man,Mannington,Martinsburg,Masontown,Middlebourne,Milton,Montgomery,Moorefield,Morgantown,Moundsville,New Cumberland,New Martinsville,Nitro,Nutter Fort,Oak Hill,Paden City,Parkersburg,Paw Paw,Pennsboro,Petersburg,Pine Grove,Princeton,Quinwood,Ranson,Ravenswood,Reedsville,Richwood,Ripley,Romney,Rowlesburg,Rupert,Shepherdstown,Shinnston,Sistersville,Smithers,Sophia,South Charleston,Spencer,St Albans,Summersville,Sylvester,",null,{"$error":"#VALUE!"},"","X","X"]
["1","39173","Terra Alta","Terra Alta,","Alderson,Anmoore,Ansted,Athens,Barboursville,Bath,Beckley,Bluefield,Bolivar,Bridgeport,Bruceton Mills,Buckhannon,Capon Bridge,Chapmanville,Charles Town,Charleston,Chester,Clarksburg,Davis,Dunbar,Elizabeth,Elkins,Ellenboro,Fairmont,Fayetteville,Follansbee,Grafton,Harpers Ferry,Harrisville,Hundred,Huntington,Hurricane,Kingwood,Lewisburg,Logan,Man,Mannington,Martinsburg,Masontown,Middlebourne,Milton,Montgomery,Moorefield,Morgantown,Moundsville,New Cumberland,New Martinsville,Nitro,Nutter Fort,Oak Hill,Paden City,Parkersburg,Paw Paw,Pennsboro,Petersburg,Pine Grove,Princeton,Quinwood,Ranson,Ravenswood,Reedsville,Richwood,Ripley,Romney,Rowlesburg,Rupert,Shepherdstown,Shinnston,Sistersville,Smithers,Sophia,South Charleston,Spencer,St Albans,Summersville,Sylvester,Terra Alta,",null,{"$error":"#VALUE!"},"","X","X"]
["1","47209","Thomas","Thomas,","Alderson,Anmoore,Ansted,Athens,Barboursville,Bath,Beckley,Bluefield,Bolivar,Bridgeport,Bruceton Mills,Buckhannon,Capon Bridge,Chapmanville,Charles Town,Charleston,Chester,Clarksburg,Davis,Dunbar,Elizabeth,Elkins,Ellenboro,Fairmont,Fayetteville,Follansbee,Grafton,Harpers Ferry,Harrisville,Hundred,Huntington,Hurricane,Kingwood,Lewisburg,Logan,Man,Mannington,Martinsburg,Masontown,Middlebourne,Milton,Montgomery,Moorefield,Morgantown,Moundsville,New Cumberland,New Martinsville,Nitro,Nutter Fort,Oak Hill,Paden City,Parkersburg,Paw Paw,Pennsboro,Petersburg,Pine Grove,Princeton,Quinwood,Ranson,Ravenswood,Reedsville,Richwood,Ripley,Romney,Rowlesburg,Rupert,Shepherdstown,Shinnston,Sistersville,Smithers,Sophia,South Charleston,Spencer,St Albans,Summersville,Sylvester,Terra Alta,Thomas,",null,{"$error":"#VALUE!"},"","X","X"]
[null,"10034","Thurmond","","Alderson,Anmoore,Ansted,Athens,Barboursville,Bath,Beckley,Bluefield,Bolivar,Bridgeport,Bruceton Mills,Buckhannon,Capon Bridge,Chapmanville,Charles Town,Charleston,Chester,Clarksburg,Davis,Dunbar,Elizabeth,Elkins,Ellenboro,Fairmont,Fayetteville,Follansbee,Grafton,Harpers Ferry,Harrisville,Hundred,Huntington,Hurricane,Kingwood,Lewisburg,Logan,Man,Mannington,Martinsburg,Masontown,Middlebourne,Milton,Montgomery,Moorefield,Morgantown,Moundsville,New Cumberland,New Martinsville,Nitro,Nutter Fort,Oak Hill,Paden City,Parkersburg,Paw Paw,Pennsboro,Petersburg,Pine Grove,Princeton,Quinwood,Ranson,Ravenswood,Reedsville,Richwood,Ripley,Romney,Rowlesburg,Rupert,Shepherdstown,Shinnston,Sistersville,Smithers,Sophia,South Charleston,Spencer,St Albans,Summersville,Sylvester,Terra Alta,Thomas,",null,{"$error":"#VALUE!"},"","X","X"]
[null,"35154","Triadelphia","","Alderson,Anmoore,Ansted,Athens,Barboursville,Bath,Beckley,Bluefield,Bolivar,Bridgeport,Bruceton Mills,Buckhannon,Capon Bridge,Chapmanville,Charles Town,Charleston,Chester,Clarksburg,Davis,Dunbar,Elizabeth,Elkins,Ellenboro,Fairmont,Fayetteville,Follansbee,Grafton,Harpers Ferry,Harrisville,Hundred,Huntington,Hurricane,Kingwood,Lewisburg,Logan,Man,Mannington,Martinsburg,Masontown,Middlebourne,Milton,Montgomery,Moorefield,Morgantown,Moundsville,New Cumberland,New Martinsville,Nitro,Nutter Fort,Oak Hill,Paden City,Parkersburg,Paw Paw,Pennsboro,Petersburg,Pine Grove,Princeton,Quinwood,Ranson,Ravenswood,Reedsville,Richwood,Ripley,Romney,Rowlesburg,Rupert,Shepherdstown,Shinnston,Sistersville,Smithers,Sophia,South Charleston,Spencer,St Albans,Summersville,Sylvester,Terra Alta,Thomas,",null,{"$error":"#VALUE!"},"","X","X"]
[null,"47000","Tucker County","","Alderson,Anmoore,Ansted,Athens,Barboursville,Bath,Beckley,Bluefield,Bolivar,Bridgeport,Bruceton Mills,Buckhannon,Capon Bridge,Chapmanville,Charles Town,Charleston,Chester,Clarksburg,Davis,Dunbar,Elizabeth,Elkins,Ellenboro,Fairmont,Fayetteville,Follansbee,Grafton,Harpers Ferry,Harrisville,Hundred,Huntington,Hurricane,Kingwood,Lewisburg,Logan,Man,Mannington,Martinsburg,Masontown,Middlebourne,Milton,Montgomery,Moorefield,Morgantown,Moundsville,New Cumberland,New Martinsville,Nitro,Nutter Fort,Oak Hill,Paden City,Parkersburg,Paw Paw,Pennsboro,Petersburg,Pine Grove,Princeton,Quinwood,Ranson,Ravenswood,Reedsville,Richwood,Ripley,Romney,Rowlesburg,Rupert,Shepherdstown,Shinnston,Sistersville,Smithers,Sophia,South Charleston,Spencer,St Albans,Summersville,Sylvester,Terra Alta,Thomas,",null,{"$error":"#VALUE!"},{"$f":"IF(ISERROR(G258),\"\",G258)","v":""},{"$f":"IF(H259<>\"\",IF(H258<>\"\",MID($F$3,H258,H259-H258-1),\"X\"),IF(H258<>\"\",MID($F$3,H258,LEN($F$3)-H258+1),\"X\"))","v":"X"},{"$f":"LEFT(I258,5)","v":"X"}]
["1","39174","Tunnelton",{"$f":"IF(A259<>\"\",CONCATENATE(C259,\",\"),\"\")","v":"Tunnelton,"},"Alderson,Anmoore,Ansted,Athens,Barboursville,Bath,Beckley,Bluefield,Bolivar,Bridgeport,Bruceton Mills,Buckhannon,Capon Bridge,Chapmanville,Charles Town,Charleston,Chester,Clarksburg,Davis,Dunbar,Elizabeth,Elkins,Ellenboro,Fairmont,Fayetteville,Follansbee,Grafton,Harpers Ferry,Harrisville,Hundred,Huntington,Hurricane,Kingwood,Lewisburg,Logan,Man,Mannington,Martinsburg,Masontown,Middlebourne,Milton,Montgomery,Moorefield,Morgantown,Moundsville,New Cumberland,New Martinsville,Nitro,Nutter Fort,Oak Hill,Paden City,Parkersburg,Paw Paw,Pennsboro,Petersburg,Pine Grove,Princeton,Quinwood,Ranson,Ravenswood,Reedsville,Richwood,Ripley,Romney,Rowlesburg,Rupert,Shepherdstown,Shinnston,Sistersville,Smithers,Sophia,South Charleston,Spencer,St Albans,Summersville,Sylvester,Terra Alta,Thomas,Tunnelton,",null,{"$f":"SEARCH(\",\",$F$3,G258)+1","v":{"$error":"#VALUE!"}},"","X","X"]
[null,"48000","Tyler County","",{"$f":"CONCATENATE(E259,D260)","v":"Alderson,Anmoore,Ansted,Athens,Barboursville,Bath,Beckley,Bluefield,Bolivar,Bridgeport,Bruceton Mills,Buckhannon,Capon Bridge,Chapmanville,Charles Town,Charleston,Chester,Clarksburg,Davis,Dunbar,Elizabeth,Elkins,Ellenboro,Fairmont,Fayetteville,Follansbee,Grafton,Harpers Ferry,Harrisville,Hundred,Huntington,Hurricane,Kingwood,Lewisburg,Logan,Man,Mannington,Martinsburg,Masontown,Middlebourne,Milton,Montgomery,Moorefield,Morgantown,Moundsville,New Cumberland,New Martinsville,Nitro,Nutter Fort,Oak Hill,Paden City,Parkersburg,Paw Paw,Pennsboro,Petersburg,Pine Grove,Princeton,Quinwood,Ranson,Ravenswood,Reedsville,Richwood,Ripley,Romney,Rowlesburg,Rupert,Shepherdstown,Shinnston,Sistersville,Smithers,Sophia,South Charleston,Spencer,St Albans,Summersville,Sylvester,Terra Alta,Thomas,Tunnelton,"},null,{"$error":"#VALUE!"},"","X","X"]
[null,"31137","Union","","Alderson,Anmoore,Ansted,Athens,Barboursville,Bath,Beckley,Bluefield,Bolivar,Bridgeport,Bruceton Mills,Buckhannon,Capon Bridge,Chapmanville,Charles Town,Charleston,Chester,Clarksburg,Davis,Dunbar,Elizabeth,Elkins,Ellenboro,Fairmont,Fayetteville,Follansbee,Grafton,Harpers Ferry,Harrisville,Hundred,Huntington,Hurricane,Kingwood,Lewisburg,Logan,Man,Mannington,Martinsburg,Masontown,Middlebourne,Milton,Montgomery,Moorefield,Morgantown,Moundsville,New Cumberland,New Martinsville,Nitro,Nutter Fort,Oak Hill,Paden City,Parkersburg,Paw Paw,Pennsboro,Petersburg,Pine Grove,Princeton,Quinwood,Ranson,Ravenswood,Reedsville,Richwood,Ripley,Romney,Rowlesburg,Rupert,Shepherdstown,Shinnston,Sistersville,Smithers,Sophia,South Charleston,Spencer,St Albans,Summersville,Sylvester,Terra Alta,Thomas,Tunnelton,",null,{"$error":"#VALUE!"},"","X","X"]
[null,"49000","Upshur County","","Alderson,Anmoore,Ansted,Athens,Barboursville,Bath,Beckley,Bluefield,Bolivar,Bridgeport,Bruceton Mills,Buckhannon,Capon Bridge,Chapmanville,Charles Town,Charleston,Chester,Clarksburg,Davis,Dunbar,Elizabeth,Elkins,Ellenboro,Fairmont,Fayetteville,Follansbee,Grafton,Harpers Ferry,Harrisville,Hundred,Huntington,Hurricane,Kingwood,Lewisburg,Logan,Man,Mannington,Martinsburg,Masontown,Middlebourne,Milton,Montgomery,Moorefield,Morgantown,Moundsville,New Cumberland,New Martinsville,Nitro,Nutter Fort,Oak Hill,Paden City,Parkersburg,Paw Paw,Pennsboro,Petersburg,Pine Grove,Princeton,Quinwood,Ranson,Ravenswood,Reedsville,Richwood,Ripley,Romney,Rowlesburg,Rupert,Shepherdstown,Shinnston,Sistersville,Smithers,Sophia,South Charleston,Spencer,St Albans,Summersville,Sylvester,Terra Alta,Thomas,Tunnelton,",null,{"$error":"#VALUE!"},"","X","X"]
[null,"35155","Valley Grove","","Alderson,Anmoore,Ansted,Athens,Barboursville,Bath,Beckley,Bluefield,Bolivar,Bridgeport,Bruceton Mills,Buckhannon,Capon Bridge,Chapmanville,Charles Town,Charleston,Chester,Clarksburg,Davis,Dunbar,Elizabeth,Elkins,Ellenboro,Fairmont,Fayetteville,Follansbee,Grafton,Harpers Ferry,Harrisville,Hundred,Huntington,Hurricane,Kingwood,Lewisburg,Logan,Man,Mannington,Martinsburg,Masontown,Middlebourne,Milton,Montgomery,Moorefield,Morgantown,Moundsville,New Cumberland,New Martinsville,Nitro,Nutter Fort,Oak Hill,Paden City,Parkersburg,Paw Paw,Pennsboro,Petersburg,Pine Grove,Princeton,Quinwood,Ranson,Ravenswood,Reedsville,Richwood,Ripley,Romney,Rowlesburg,Rupert,Shepherdstown,Shinnston,Sistersville,Smithers,Sophia,South Charleston,Spencer,St Albans,Summersville,Sylvester,Terra Alta,Thomas,Tunnelton,",null,{"$error":"#VALUE!"},"","X","X"]
["1","54231","Vienna","Vienna,","Alderson,Anmoore,Ansted,Athens,Barboursville,Bath,Beckley,Bluefield,Bolivar,Bridgeport,Bruceton Mills,Buckhannon,Capon Bridge,Chapmanville,Charles Town,Charleston,Chester,Clarksburg,Davis,Dunbar,Elizabeth,Elkins,Ellenboro,Fairmont,Fayetteville,Follansbee,Grafton,Harpers Ferry,Harrisville,Hundred,Huntington,Hurricane,Kingwood,Lewisburg,Logan,Man,Mannington,Martinsburg,Masontown,Middlebourne,Milton,Montgomery,Moorefield,Morgantown,Moundsville,New Cumberland,New Martinsville,Nitro,Nutter Fort,Oak Hill,Paden City,Parkersburg,Paw Paw,Pennsboro,Petersburg,Pine Grove,Princeton,Quinwood,Ranson,Ravenswood,Reedsville,Richwood,Ripley,Romney,Rowlesburg,Rupert,Shepherdstown,Shinnston,Sistersville,Smithers,Sophia,South Charleston,Spencer,St Albans,Summersville,Sylvester,Terra Alta,Thomas,Tunnelton,Vienna,",null,{"$error":"#VALUE!"},"","X","X"]
[null,"33148","War","","Alderson,Anmoore,Ansted,Athens,Barboursville,Bath,Beckley,Bluefield,Bolivar,Bridgeport,Bruceton Mills,Buckhannon,Capon Bridge,Chapmanville,Charles Town,Charleston,Chester,Clarksburg,Davis,Dunbar,Elizabeth,Elkins,Ellenboro,Fairmont,Fayetteville,Follansbee,Grafton,Harpers Ferry,Harrisville,Hundred,Huntington,Hurricane,Kingwood,Lewisburg,Logan,Man,Mannington,Martinsburg,Masontown,Middlebourne,Milton,Montgomery,Moorefield,Morgantown,Moundsville,New Cumberland,New Martinsville,Nitro,Nutter Fort,Oak Hill,Paden City,Parkersburg,Paw Paw,Pennsboro,Petersburg,Pine Grove,Princeton,Quinwood,Ranson,Ravenswood,Reedsville,Richwood,Ripley,Romney,Rowlesburg,Rupert,Shepherdstown,Shinnston,Sistersville,Smithers,Sophia,South Charleston,Spencer,St Albans,Summersville,Sylvester,Terra Alta,Thomas,Tunnelton,Vienna,",null,{"$error":"#VALUE!"},"","X","X"]
["1","16052","Wardensville","Wardensville,","Alderson,Anmoore,Ansted,Athens,Barboursville,Bath,Beckley,Bluefield,Bolivar,Bridgeport,Bruceton Mills,Buckhannon,Capon Bridge,Chapmanville,Charles Town,Charleston,Chester,Clarksburg,Davis,Dunbar,Elizabeth,Elkins,Ellenboro,Fairmont,Fayetteville,Follansbee,Grafton,Harpers Ferry,Harrisville,Hundred,Huntington,Hurricane,Kingwood,Lewisburg,Logan,Man,Mannington,Martinsburg,Masontown,Middlebourne,Milton,Montgomery,Moorefield,Morgantown,Moundsville,New Cumberland,New Martinsville,Nitro,Nutter Fort,Oak Hill,Paden City,Parkersburg,Paw Paw,Pennsboro,Petersburg,Pine Grove,Princeton,Quinwood,Ranson,Ravenswood,Reedsville,Richwood,Ripley,Romney,Rowlesburg,Rupert,Shepherdstown,Shinnston,Sistersville,Smithers,Sophia,South Charleston,Spencer,St Albans,Summersville,Sylvester,Terra Alta,Thomas,Tunnelton,Vienna,Wardensville,",null,{"$error":"#VALUE!"},"","X","X"]
["1","50219","Wayne","Wayne,","Alderson,Anmoore,Ansted,Athens,Barboursville,Bath,Beckley,Bluefield,Bolivar,Bridgeport,Bruceton Mills,Buckhannon,Capon Bridge,Chapmanville,Charles Town,Charleston,Chester,Clarksburg,Davis,Dunbar,Elizabeth,Elkins,Ellenboro,Fairmont,Fayetteville,Follansbee,Grafton,Harpers Ferry,Harrisville,Hundred,Huntington,Hurricane,Kingwood,Lewisburg,Logan,Man,Mannington,Martinsburg,Masontown,Middlebourne,Milton,Montgomery,Moorefield,Morgantown,Moundsville,New Cumberland,New Martinsville,Nitro,Nutter Fort,Oak Hill,Paden City,Parkersburg,Paw Paw,Pennsboro,Petersburg,Pine Grove,Princeton,Quinwood,Ranson,Ravenswood,Reedsville,Richwood,Ripley,Romney,Rowlesburg,Rupert,Shepherdstown,Shinnston,Sistersville,Smithers,Sophia,South Charleston,Spencer,St Albans,Summersville,Sylvester,Terra Alta,Thomas,Tunnelton,Vienna,Wardensville,Wayne,",null,{"$error":"#VALUE!"},"","X","X"]
[null,"50000","Wayne County","","Alderson,Anmoore,Ansted,Athens,Barboursville,Bath,Beckley,Bluefield,Bolivar,Bridgeport,Bruceton Mills,Buckhannon,Capon Bridge,Chapmanville,Charles Town,Charleston,Chester,Clarksburg,Davis,Dunbar,Elizabeth,Elkins,Ellenboro,Fairmont,Fayetteville,Follansbee,Grafton,Harpers Ferry,Harrisville,Hundred,Huntington,Hurricane,Kingwood,Lewisburg,Logan,Man,Mannington,Martinsburg,Masontown,Middlebourne,Milton,Montgomery,Moorefield,Morgantown,Moundsville,New Cumberland,New Martinsville,Nitro,Nutter Fort,Oak Hill,Paden City,Parkersburg,Paw Paw,Pennsboro,Petersburg,Pine Grove,Princeton,Quinwood,Ranson,Ravenswood,Reedsville,Richwood,Ripley,Romney,Rowlesburg,Rupert,Shepherdstown,Shinnston,Sistersville,Smithers,Sophia,South Charleston,Spencer,St Albans,Summersville,Sylvester,Terra Alta,Thomas,Tunnelton,Vienna,Wardensville,Wayne,",null,{"$error":"#VALUE!"},"","X","X"]
[null,"51000","Webster County","","Alderson,Anmoore,Ansted,Athens,Barboursville,Bath,Beckley,Bluefield,Bolivar,Bridgeport,Bruceton Mills,Buckhannon,Capon Bridge,Chapmanville,Charles Town,Charleston,Chester,Clarksburg,Davis,Dunbar,Elizabeth,Elkins,Ellenboro,Fairmont,Fayetteville,Follansbee,Grafton,Harpers Ferry,Harrisville,Hundred,Huntington,Hurricane,Kingwood,Lewisburg,Logan,Man,Mannington,Martinsburg,Masontown,Middlebourne,Milton,Montgomery,Moorefield,Morgantown,Moundsville,New Cumberland,New Martinsville,Nitro,Nutter Fort,Oak Hill,Paden City,Parkersburg,Paw Paw,Pennsboro,Petersburg,Pine Grove,Princeton,Quinwood,Ranson,Ravenswood,Reedsville,Richwood,Ripley,Romney,Rowlesburg,Rupert,Shepherdstown,Shinnston,Sistersville,Smithers,Sophia,South Charleston,Spencer,St Albans,Summersville,Sylvester,Terra Alta,Thomas,Tunnelton,Vienna,Wardensville,Wayne,",null,{"$error":"#VALUE!"},"","X","X"]
[null,"51222","Webster Springs","","Alderson,Anmoore,Ansted,Athens,Barboursville,Bath,Beckley,Bluefield,Bolivar,Bridgeport,Bruceton Mills,Buckhannon,Capon Bridge,Chapmanville,Charles Town,Charleston,Chester,Clarksburg,Davis,Dunbar,Elizabeth,Elkins,Ellenboro,Fairmont,Fayetteville,Follansbee,Grafton,Harpers Ferry,Harrisville,Hundred,Huntington,Hurricane,Kingwood,Lewisburg,Logan,Man,Mannington,Martinsburg,Masontown,Middlebourne,Milton,Montgomery,Moorefield,Morgantown,Moundsville,New Cumberland,New Martinsville,Nitro,Nutter Fort,Oak Hill,Paden City,Parkersburg,Paw Paw,Pennsboro,Petersburg,Pine Grove,Princeton,Quinwood,Ranson,Ravenswood,Reedsville,Richwood,Ripley,Romney,Rowlesburg,Rupert,Shepherdstown,Shinnston,Sistersville,Smithers,Sophia,South Charleston,Spencer,St Albans,Summersville,Sylvester,Terra Alta,Thomas,Tunnelton,Vienna,Wardensville,Wayne,",null,{"$error":"#VALUE!"},"","X","X"]
[null,"05017","Weirton","","Alderson,Anmoore,Ansted,Athens,Barboursville,Bath,Beckley,Bluefield,Bolivar,Bridgeport,Bruceton Mills,Buckhannon,Capon Bridge,Chapmanville,Charles Town,Charleston,Chester,Clarksburg,Davis,Dunbar,Elizabeth,Elkins,Ellenboro,Fairmont,Fayetteville,Follansbee,Grafton,Harpers Ferry,Harrisville,Hundred,Huntington,Hurricane,Kingwood,Lewisburg,Logan,Man,Mannington,Martinsburg,Masontown,Middlebourne,Milton,Montgomery,Moorefield,Morgantown,Moundsville,New Cumberland,New Martinsville,Nitro,Nutter Fort,Oak Hill,Paden City,Parkersburg,Paw Paw,Pennsboro,Petersburg,Pine Grove,Princeton,Quinwood,Ranson,Ravenswood,Reedsville,Richwood,Ripley,Romney,Rowlesburg,Rupert,Shepherdstown,Shinnston,Sistersville,Smithers,Sophia,South Charleston,Spencer,St Albans,Summersville,Sylvester,Terra Alta,Thomas,Tunnelton,Vienna,Wardensville,Wayne,",null,{"$error":"#VALUE!"},"","X","X"]
["1","15050","Weirton","Weirton,","Alderson,Anmoore,Ansted,Athens,Barboursville,Bath,Beckley,Bluefield,Bolivar,Bridgeport,Bruceton Mills,Buckhannon,Capon Bridge,Chapmanville,Charles Town,Charleston,Chester,Clarksburg,Davis,Dunbar,Elizabeth,Elkins,Ellenboro,Fairmont,Fayetteville,Follansbee,Grafton,Harpers Ferry,Harrisville,Hundred,Huntington,Hurricane,Kingwood,Lewisburg,Logan,Man,Mannington,Martinsburg,Masontown,Middlebourne,Milton,Montgomery,Moorefield,Morgantown,Moundsville,New Cumberland,New Martinsville,Nitro,Nutter Fort,Oak Hill,Paden City,Parkersburg,Paw Paw,Pennsboro,Petersburg,Pine Grove,Princeton,Quinwood,Ranson,Ravenswood,Reedsville,Richwood,Ripley,Romney,Rowlesburg,Rupert,Shepherdstown,Shinnston,Sistersville,Smithers,Sophia,South Charleston,Spencer,St Albans,Summersville,Sylvester,Terra Alta,Thomas,Tunnelton,Vienna,Wardensville,Wayne,Weirton,",null,{"$error":"#VALUE!"},"","X","X"]
[null,"33149","Welch","","Alderson,Anmoore,Ansted,Athens,Barboursville,Bath,Beckley,Bluefield,Bolivar,Bridgeport,Bruceton Mills,Buckhannon,Capon Bridge,Chapmanville,Charles Town,Charleston,Chester,Clarksburg,Davis,Dunbar,Elizabeth,Elkins,Ellenboro,Fairmont,Fayetteville,Follansbee,Grafton,Harpers Ferry,Harrisville,Hundred,Huntington,Hurricane,Kingwood,Lewisburg,Logan,Man,Mannington,Martinsburg,Masontown,Middlebourne,Milton,Montgomery,Moorefield,Morgantown,Moundsville,New Cumberland,New Martinsville,Nitro,Nutter Fort,Oak Hill,Paden City,Parkersburg,Paw Paw,Pennsboro,Petersburg,Pine Grove,Princeton,Quinwood,Ranson,Ravenswood,Reedsville,Richwood,Ripley,Romney,Rowlesburg,Rupert,Shepherdstown,Shinnston,Sistersville,Smithers,Sophia,South Charleston,Spencer,St Albans,Summersville,Sylvester,Terra Alta,Thomas,Tunnelton,Vienna,Wardensville,Wayne,Weirton,",null,{"$error":"#VALUE!"},"","X","X"]
[null,"05018","Wellsburg","","Alderson,Anmoore,Ansted,Athens,Barboursville,Bath,Beckley,Bluefield,Bolivar,Bridgeport,Bruceton Mills,Buckhannon,Capon Bridge,Chapmanville,Charles Town,Charleston,Chester,Clarksburg,Davis,Dunbar,Elizabeth,Elkins,Ellenboro,Fairmont,Fayetteville,Follansbee,Grafton,Harpers Ferry,Harrisville,Hundred,Huntington,Hurricane,Kingwood,Lewisburg,Logan,Man,Mannington,Martinsburg,Masontown,Middlebourne,Milton,Montgomery,Moorefield,Morgantown,Moundsville,New Cumberland,New Martinsville,Nitro,Nutter Fort,Oak Hill,Paden City,Parkersburg,Paw Paw,Pennsboro,Petersburg,Pine Grove,Princeton,Quinwood,Ranson,Ravenswood,Reedsville,Richwood,Ripley,Romney,Rowlesburg,Rupert,Shepherdstown,Shinnston,Sistersville,Smithers,Sophia,South Charleston,Spencer,St Albans,Summersville,Sylvester,Terra Alta,Thomas,Tunnelton,Vienna,Wardensville,Wayne,Weirton,",null,{"$error":"#VALUE!"},"","X","X"]
[null,"22088","West Hamlin","","Alderson,Anmoore,Ansted,Athens,Barboursville,Bath,Beckley,Bluefield,Bolivar,Bridgeport,Bruceton Mills,Buckhannon,Capon Bridge,Chapmanville,Charles Town,Charleston,Chester,Clarksburg,Davis,Dunbar,Elizabeth,Elkins,Ellenboro,Fairmont,Fayetteville,Follansbee,Grafton,Harpers Ferry,Harrisville,Hundred,Huntington,Hurricane,Kingwood,Lewisburg,Logan,Man,Mannington,Martinsburg,Masontown,Middlebourne,Milton,Montgomery,Moorefield,Morgantown,Moundsville,New Cumberland,New Martinsville,Nitro,Nutter Fort,Oak Hill,Paden City,Parkersburg,Paw Paw,Pennsboro,Petersburg,Pine Grove,Princeton,Quinwood,Ranson,Ravenswood,Reedsville,Richwood,Ripley,Romney,Rowlesburg,Rupert,Shepherdstown,Shinnston,Sistersville,Smithers,Sophia,South Charleston,Spencer,St Albans,Summersville,Sylvester,Terra Alta,Thomas,Tunnelton,Vienna,Wardensville,Wayne,Weirton,",null,{"$error":"#VALUE!"},"","X","X"]
[null,"35156","West Liberty","","Alderson,Anmoore,Ansted,Athens,Barboursville,Bath,Beckley,Bluefield,Bolivar,Bridgeport,Bruceton Mills,Buckhannon,Capon Bridge,Chapmanville,Charles Town,Charleston,Chester,Clarksburg,Davis,Dunbar,Elizabeth,Elkins,Ellenboro,Fairmont,Fayetteville,Follansbee,Grafton,Harpers Ferry,Harrisville,Hundred,Huntington,Hurricane,Kingwood,Lewisburg,Logan,Man,Mannington,Martinsburg,Masontown,Middlebourne,Milton,Montgomery,Moorefield,Morgantown,Moundsville,New Cumberland,New Martinsville,Nitro,Nutter Fort,Oak Hill,Paden City,Parkersburg,Paw Paw,Pennsboro,Petersburg,Pine Grove,Princeton,Quinwood,Ranson,Ravenswood,Reedsville,Richwood,Ripley,Romney,Rowlesburg,Rupert,Shepherdstown,Shinnston,Sistersville,Smithers,Sophia,South Charleston,Spencer,St Albans,Summersville,Sylvester,Terra Alta,Thomas,Tunnelton,Vienna,Wardensville,Wayne,Weirton,",null,{"$error":"#VALUE!"},"","X","X"]
[null,"23093","West Logan","","Alderson,Anmoore,Ansted,Athens,Barboursville,Bath,Beckley,Bluefield,Bolivar,Bridgeport,Bruceton Mills,Buckhannon,Capon Bridge,Chapmanville,Charles Town,Charleston,Chester,Clarksburg,Davis,Dunbar,Elizabeth,Elkins,Ellenboro,Fairmont,Fayetteville,Follansbee,Grafton,Harpers Ferry,Harrisville,Hundred,Huntington,Hurricane,Kingwood,Lewisburg,Logan,Man,Mannington,Martinsburg,Masontown,Middlebourne,Milton,Montgomery,Moorefield,Morgantown,Moundsville,New Cumberland,New Martinsville,Nitro,Nutter Fort,Oak Hill,Paden City,Parkersburg,Paw Paw,Pennsboro,Petersburg,Pine Grove,Princeton,Quinwood,Ranson,Ravenswood,Reedsville,Richwood,Ripley,Romney,Rowlesburg,Rupert,Shepherdstown,Shinnston,Sistersville,Smithers,Sophia,South Charleston,Spencer,St Albans,Summersville,Sylvester,Terra Alta,Thomas,Tunnelton,Vienna,Wardensville,Wayne,Weirton,",null,{"$error":"#VALUE!"},"","X","X"]
[null,"17062","West Milford","","Alderson,Anmoore,Ansted,Athens,Barboursville,Bath,Beckley,Bluefield,Bolivar,Bridgeport,Bruceton Mills,Buckhannon,Capon Bridge,Chapmanville,Charles Town,Charleston,Chester,Clarksburg,Davis,Dunbar,Elizabeth,Elkins,Ellenboro,Fairmont,Fayetteville,Follansbee,Grafton,Harpers Ferry,Harrisville,Hundred,Huntington,Hurricane,Kingwood,Lewisburg,Logan,Man,Mannington,Martinsburg,Masontown,Middlebourne,Milton,Montgomery,Moorefield,Morgantown,Moundsville,New Cumberland,New Martinsville,Nitro,Nutter Fort,Oak Hill,Paden City,Parkersburg,Paw Paw,Pennsboro,Petersburg,Pine Grove,Princeton,Quinwood,Ranson,Ravenswood,Reedsville,Richwood,Ripley,Romney,Rowlesburg,Rupert,Shepherdstown,Shinnston,Sistersville,Smithers,Sophia,South Charleston,Spencer,St Albans,Summersville,Sylvester,Terra Alta,Thomas,Tunnelton,Vienna,Wardensville,Wayne,Weirton,",null,{"$error":"#VALUE!"},"","X","X"]
["1","09024","West Union","West Union,","Alderson,Anmoore,Ansted,Athens,Barboursville,Bath,Beckley,Bluefield,Bolivar,Bridgeport,Bruceton Mills,Buckhannon,Capon Bridge,Chapmanville,Charles Town,Charleston,Chester,Clarksburg,Davis,Dunbar,Elizabeth,Elkins,Ellenboro,Fairmont,Fayetteville,Follansbee,Grafton,Harpers Ferry,Harrisville,Hundred,Huntington,Hurricane,Kingwood,Lewisburg,Logan,Man,Mannington,Martinsburg,Masontown,Middlebourne,Milton,Montgomery,Moorefield,Morgantown,Moundsville,New Cumberland,New Martinsville,Nitro,Nutter Fort,Oak Hill,Paden City,Parkersburg,Paw Paw,Pennsboro,Petersburg,Pine Grove,Princeton,Quinwood,Ranson,Ravenswood,Reedsville,Richwood,Ripley,Romney,Rowlesburg,Rupert,Shepherdstown,Shinnston,Sistersville,Smithers,Sophia,South Charleston,Spencer,St Albans,Summersville,Sylvester,Terra Alta,Thomas,Tunnelton,Vienna,Wardensville,Wayne,Weirton,West Union,",null,{"$error":"#VALUE!"},"","X","X"]
["1","21086","Weston","Weston,","Alderson,Anmoore,Ansted,Athens,Barboursville,Bath,Beckley,Bluefield,Bolivar,Bridgeport,Bruceton Mills,Buckhannon,Capon Bridge,Chapmanville,Charles Town,Charleston,Chester,Clarksburg,Davis,Dunbar,Elizabeth,Elkins,Ellenboro,Fairmont,Fayetteville,Follansbee,Grafton,Harpers Ferry,Harrisville,Hundred,Huntington,Hurricane,Kingwood,Lewisburg,Logan,Man,Mannington,Martinsburg,Masontown,Middlebourne,Milton,Montgomery,Moorefield,Morgantown,Moundsville,New Cumberland,New Martinsville,Nitro,Nutter Fort,Oak Hill,Paden City,Parkersburg,Paw Paw,Pennsboro,Petersburg,Pine Grove,Princeton,Quinwood,Ranson,Ravenswood,Reedsville,Richwood,Ripley,Romney,Rowlesburg,Rupert,Shepherdstown,Shinnston,Sistersville,Smithers,Sophia,South Charleston,Spencer,St Albans,Summersville,Sylvester,Terra Alta,Thomas,Tunnelton,Vienna,Wardensville,Wayne,Weirton,West Union,Weston,",null,{"$error":"#VALUE!"},"","X","X"]
["1","30134","Westover","Westover,","Alderson,Anmoore,Ansted,Athens,Barboursville,Bath,Beckley,Bluefield,Bolivar,Bridgeport,Bruceton Mills,Buckhannon,Capon Bridge,Chapmanville,Charles Town,Charleston,Chester,Clarksburg,Davis,Dunbar,Elizabeth,Elkins,Ellenboro,Fairmont,Fayetteville,Follansbee,Grafton,Harpers Ferry,Harrisville,Hundred,Huntington,Hurricane,Kingwood,Lewisburg,Logan,Man,Mannington,Martinsburg,Masontown,Middlebourne,Milton,Montgomery,Moorefield,Morgantown,Moundsville,New Cumberland,New Martinsville,Nitro,Nutter Fort,Oak Hill,Paden City,Parkersburg,Paw Paw,Pennsboro,Petersburg,Pine Grove,Princeton,Quinwood,Ranson,Ravenswood,Reedsville,Richwood,Ripley,Romney,Rowlesburg,Rupert,Shepherdstown,Shinnston,Sistersville,Smithers,Sophia,South Charleston,Spencer,St Albans,Summersville,Sylvester,Terra Alta,Thomas,Tunnelton,Vienna,Wardensville,Wayne,Weirton,West Union,Weston,Westover,",null,{"$error":"#VALUE!"},"","X","X"]
[null,"52000","Wetzel County","","Alderson,Anmoore,Ansted,Athens,Barboursville,Bath,Beckley,Bluefield,Bolivar,Bridgeport,Bruceton Mills,Buckhannon,Capon Bridge,Chapmanville,Charles Town,Charleston,Chester,Clarksburg,Davis,Dunbar,Elizabeth,Elkins,Ellenboro,Fairmont,Fayetteville,Follansbee,Grafton,Harpers Ferry,Harrisville,Hundred,Huntington,Hurricane,Kingwood,Lewisburg,Logan,Man,Mannington,Martinsburg,Masontown,Middlebourne,Milton,Montgomery,Moorefield,Morgantown,Moundsville,New Cumberland,New Martinsville,Nitro,Nutter Fort,Oak Hill,Paden City,Parkersburg,Paw Paw,Pennsboro,Petersburg,Pine Grove,Princeton,Quinwood,Ranson,Ravenswood,Reedsville,Richwood,Ripley,Romney,Rowlesburg,Rupert,Shepherdstown,Shinnston,Sistersville,Smithers,Sophia,South Charleston,Spencer,St Albans,Summersville,Sylvester,Terra Alta,Thomas,Tunnelton,Vienna,Wardensville,Wayne,Weirton,West Union,Weston,Westover,",null,{"$error":"#VALUE!"},"","X","X"]
["1","35157","Wheeling","Wheeling,","Alderson,Anmoore,Ansted,Athens,Barboursville,Bath,Beckley,Bluefield,Bolivar,Bridgeport,Bruceton Mills,Buckhannon,Capon Bridge,Chapmanville,Charles Town,Charleston,Chester,Clarksburg,Davis,Dunbar,Elizabeth,Elkins,Ellenboro,Fairmont,Fayetteville,Follansbee,Grafton,Harpers Ferry,Harrisville,Hundred,Huntington,Hurricane,Kingwood,Lewisburg,Logan,Man,Mannington,Martinsburg,Masontown,Middlebourne,Milton,Montgomery,Moorefield,Morgantown,Moundsville,New Cumberland,New Martinsville,Nitro,Nutter Fort,Oak Hill,Paden City,Parkersburg,Paw Paw,Pennsboro,Petersburg,Pine Grove,Princeton,Quinwood,Ranson,Ravenswood,Reedsville,Richwood,Ripley,Romney,Rowlesburg,Rupert,Shepherdstown,Shinnston,Sistersville,Smithers,Sophia,South Charleston,Spencer,St Albans,Summersville,Sylvester,Terra Alta,Thomas,Tunnelton,Vienna,Wardensville,Wayne,Weirton,West Union,Weston,Westover,Wheeling,",null,{"$error":"#VALUE!"},"","X","X"]
["1","24237","White Hall","White Hall,","Alderson,Anmoore,Ansted,Athens,Barboursville,Bath,Beckley,Bluefield,Bolivar,Bridgeport,Bruceton Mills,Buckhannon,Capon Bridge,Chapmanville,Charles Town,Charleston,Chester,Clarksburg,Davis,Dunbar,Elizabeth,Elkins,Ellenboro,Fairmont,Fayetteville,Follansbee,Grafton,Harpers Ferry,Harrisville,Hundred,Huntington,Hurricane,Kingwood,Lewisburg,Logan,Man,Mannington,Martinsburg,Masontown,Middlebourne,Milton,Montgomery,Moorefield,Morgantown,Moundsville,New Cumberland,New Martinsville,Nitro,Nutter Fort,Oak Hill,Paden City,Parkersburg,Paw Paw,Pennsboro,Petersburg,Pine Grove,Princeton,Quinwood,Ranson,Ravenswood,Reedsville,Richwood,Ripley,Romney,Rowlesburg,Rupert,Shepherdstown,Shinnston,Sistersville,Smithers,Sophia,South Charleston,Spencer,St Albans,Summersville,Sylvester,Terra Alta,Thomas,Tunnelton,Vienna,Wardensville,Wayne,Weirton,West Union,Weston,Westover,Wheeling,White Hall,",null,{"$error":"#VALUE!"},"","X","X"]
[null,"13045","White Sulphur Springs","","Alderson,Anmoore,Ansted,Athens,Barboursville,Bath,Beckley,Bluefield,Bolivar,Bridgeport,Bruceton Mills,Buckhannon,Capon Bridge,Chapmanville,Charles Town,Charleston,Chester,Clarksburg,Davis,Dunbar,Elizabeth,Elkins,Ellenboro,Fairmont,Fayetteville,Follansbee,Grafton,Harpers Ferry,Harrisville,Hundred,Huntington,Hurricane,Kingwood,Lewisburg,Logan,Man,Mannington,Martinsburg,Masontown,Middlebourne,Milton,Montgomery,Moorefield,Morgantown,Moundsville,New Cumberland,New Martinsville,Nitro,Nutter Fort,Oak Hill,Paden City,Parkersburg,Paw Paw,Pennsboro,Petersburg,Pine Grove,Princeton,Quinwood,Ranson,Ravenswood,Reedsville,Richwood,Ripley,Romney,Rowlesburg,Rupert,Shepherdstown,Shinnston,Sistersville,Smithers,Sophia,South Charleston,Spencer,St Albans,Summersville,Sylvester,Terra Alta,Thomas,Tunnelton,Vienna,Wardensville,Wayne,Weirton,West Union,Weston,Westover,Wheeling,White Hall,",null,{"$error":"#VALUE!"},"","X","X"]
[null,"03009","Whitesville","","Alderson,Anmoore,Ansted,Athens,Barboursville,Bath,Beckley,Bluefield,Bolivar,Bridgeport,Bruceton Mills,Buckhannon,Capon Bridge,Chapmanville,Charles Town,Charleston,Chester,Clarksburg,Davis,Dunbar,Elizabeth,Elkins,Ellenboro,Fairmont,Fayetteville,Follansbee,Grafton,Harpers Ferry,Harrisville,Hundred,Huntington,Hurricane,Kingwood,Lewisburg,Logan,Man,Mannington,Martinsburg,Masontown,Middlebourne,Milton,Montgomery,Moorefield,Morgantown,Moundsville,New Cumberland,New Martinsville,Nitro,Nutter Fort,Oak Hill,Paden City,Parkersburg,Paw Paw,Pennsboro,Petersburg,Pine Grove,Princeton,Quinwood,Ranson,Ravenswood,Reedsville,Richwood,Ripley,Romney,Rowlesburg,Rupert,Shepherdstown,Shinnston,Sistersville,Smithers,Sophia,South Charleston,Spencer,St Albans,Summersville,Sylvester,Terra Alta,Thomas,Tunnelton,Vienna,Wardensville,Wayne,Weirton,West Union,Weston,Westover,Wheeling,White Hall,",null,{"$error":"#VALUE!"},"","X","X"]
[null,"29128","Williamson","","Alderson,Anmoore,Ansted,Athens,Barboursville,Bath,Beckley,Bluefield,Bolivar,Bridgeport,Bruceton Mills,Buckhannon,Capon Bridge,Chapmanville,Charles Town,Charleston,Chester,Clarksburg,Davis,Dunbar,Elizabeth,Elkins,Ellenboro,Fairmont,Fayetteville,Follansbee,Grafton,Harpers Ferry,Harrisville,Hundred,Huntington,Hurricane,Kingwood,Lewisburg,Logan,Man,Mannington,Martinsburg,Masontown,Middlebourne,Milton,Montgomery,Moorefield,Morgantown,Moundsville,New Cumberland,New Martinsville,Nitro,Nutter Fort,Oak Hill,Paden City,Parkersburg,Paw Paw,Pennsboro,Petersburg,Pine Grove,Princeton,Quinwood,Ranson,Ravenswood,Reedsville,Richwood,Ripley,Romney,Rowlesburg,Rupert,Shepherdstown,Shinnston,Sistersville,Smithers,Sophia,South Charleston,Spencer,St Albans,Summersville,Sylvester,Terra Alta,Thomas,Tunnelton,Vienna,Wardensville,Wayne,Weirton,West Union,Weston,Westover,Wheeling,White Hall,",null,{"$error":"#VALUE!"},"","X","X"]
["1","54232","Williamstown","Williamstown,","Alderson,Anmoore,Ansted,Athens,Barboursville,Bath,Beckley,Bluefield,Bolivar,Bridgeport,Bruceton Mills,Buckhannon,Capon Bridge,Chapmanville,Charles Town,Charleston,Chester,Clarksburg,Davis,Dunbar,Elizabeth,Elkins,Ellenboro,Fairmont,Fayetteville,Follansbee,Grafton,Harpers Ferry,Harrisville,Hundred,Huntington,Hurricane,Kingwood,Lewisburg,Logan,Man,Mannington,Martinsburg,Masontown,Middlebourne,Milton,Montgomery,Moorefield,Morgantown,Moundsville,New Cumberland,New Martinsville,Nitro,Nutter Fort,Oak Hill,Paden City,Parkersburg,Paw Paw,Pennsboro,Petersburg,Pine Grove,Princeton,Quinwood,Ranson,Ravenswood,Reedsville,Richwood,Ripley,Romney,Rowlesburg,Rupert,Shepherdstown,Shinnston,Sistersville,Smithers,Sophia,South Charleston,Spencer,St Albans,Summersville,Sylvester,Terra Alta,Thomas,Tunnelton,Vienna,Wardensville,Wayne,Weirton,West Union,Weston,Westover,Wheeling,White Hall,Williamstown,",null,{"$error":"#VALUE!"},"","X","X"]
[null,"40181","Winfield","","Alderson,Anmoore,Ansted,Athens,Barboursville,Bath,Beckley,Bluefield,Bolivar,Bridgeport,Bruceton Mills,Buckhannon,Capon Bridge,Chapmanville,Charles Town,Charleston,Chester,Clarksburg,Davis,Dunbar,Elizabeth,Elkins,Ellenboro,Fairmont,Fayetteville,Follansbee,Grafton,Harpers Ferry,Harrisville,Hundred,Huntington,Hurricane,Kingwood,Lewisburg,Logan,Man,Mannington,Martinsburg,Masontown,Middlebourne,Milton,Montgomery,Moorefield,Morgantown,Moundsville,New Cumberland,New Martinsville,Nitro,Nutter Fort,Oak Hill,Paden City,Parkersburg,Paw Paw,Pennsboro,Petersburg,Pine Grove,Princeton,Quinwood,Ranson,Ravenswood,Reedsville,Richwood,Ripley,Romney,Rowlesburg,Rupert,Shepherdstown,Shinnston,Sistersville,Smithers,Sophia,South Charleston,Spencer,St Albans,Summersville,Sylvester,Terra Alta,Thomas,Tunnelton,Vienna,Wardensville,Wayne,Weirton,West Union,Weston,Westover,Wheeling,White Hall,Williamstown,",null,{"$error":"#VALUE!"},"","X","X"]
[null,"53000","Wirt County","","Alderson,Anmoore,Ansted,Athens,Barboursville,Bath,Beckley,Bluefield,Bolivar,Bridgeport,Bruceton Mills,Buckhannon,Capon Bridge,Chapmanville,Charles Town,Charleston,Chester,Clarksburg,Davis,Dunbar,Elizabeth,Elkins,Ellenboro,Fairmont,Fayetteville,Follansbee,Grafton,Harpers Ferry,Harrisville,Hundred,Huntington,Hurricane,Kingwood,Lewisburg,Logan,Man,Mannington,Martinsburg,Masontown,Middlebourne,Milton,Montgomery,Moorefield,Morgantown,Moundsville,New Cumberland,New Martinsville,Nitro,Nutter Fort,Oak Hill,Paden City,Parkersburg,Paw Paw,Pennsboro,Petersburg,Pine Grove,Princeton,Quinwood,Ranson,Ravenswood,Reedsville,Richwood,Ripley,Romney,Rowlesburg,Rupert,Shepherdstown,Shinnston,Sistersville,Smithers,Sophia,South Charleston,Spencer,St Albans,Summersville,Sylvester,Terra Alta,Thomas,Tunnelton,Vienna,Wardensville,Wayne,Weirton,West Union,Weston,Westover,Wheeling,White Hall,Williamstown,",null,{"$error":"#VALUE!"},"","X","X"]
[null,"42188","Womelsdorf","","Alderson,Anmoore,Ansted,Athens,Barboursville,Bath,Beckley,Bluefield,Bolivar,Bridgeport,Bruceton Mills,Buckhannon,Capon Bridge,Chapmanville,Charles Town,Charleston,Chester,Clarksburg,Davis,Dunbar,Elizabeth,Elkins,Ellenboro,Fairmont,Fayetteville,Follansbee,Grafton,Harpers Ferry,Harrisville,Hundred,Huntington,Hurricane,Kingwood,Lewisburg,Logan,Man,Mannington,Martinsburg,Masontown,Middlebourne,Milton,Montgomery,Moorefield,Morgantown,Moundsville,New Cumberland,New Martinsville,Nitro,Nutter Fort,Oak Hill,Paden City,Parkersburg,Paw Paw,Pennsboro,Petersburg,Pine Grove,Princeton,Quinwood,Ranson,Ravenswood,Reedsville,Richwood,Ripley,Romney,Rowlesburg,Rupert,Shepherdstown,Shinnston,Sistersville,Smithers,Sophia,South Charleston,Spencer,St Albans,Summersville,Sylvester,Terra Alta,Thomas,Tunnelton,Vienna,Wardensville,Wayne,Weirton,West Union,Weston,Westover,Wheeling,White Hall,Williamstown,",null,{"$error":"#VALUE!"},"","X","X"]
[null,"54000","Wood County","","Alderson,Anmoore,Ansted,Athens,Barboursville,Bath,Beckley,Bluefield,Bolivar,Bridgeport,Bruceton Mills,Buckhannon,Capon Bridge,Chapmanville,Charles Town,Charleston,Chester,Clarksburg,Davis,Dunbar,Elizabeth,Elkins,Ellenboro,Fairmont,Fayetteville,Follansbee,Grafton,Harpers Ferry,Harrisville,Hundred,Huntington,Hurricane,Kingwood,Lewisburg,Logan,Man,Mannington,Martinsburg,Masontown,Middlebourne,Milton,Montgomery,Moorefield,Morgantown,Moundsville,New Cumberland,New Martinsville,Nitro,Nutter Fort,Oak Hill,Paden City,Parkersburg,Paw Paw,Pennsboro,Petersburg,Pine Grove,Princeton,Quinwood,Ranson,Ravenswood,Reedsville,Richwood,Ripley,Romney,Rowlesburg,Rupert,Shepherdstown,Shinnston,Sistersville,Smithers,Sophia,South Charleston,Spencer,St Albans,Summersville,Sylvester,Terra Alta,Thomas,Tunnelton,Vienna,Wardensville,Wayne,Weirton,West Union,Weston,Westover,Wheeling,White Hall,Williamstown,",null,{"$error":"#VALUE!"},"","X","X"]
[null,"24102","Worthington","","Alderson,Anmoore,Ansted,Athens,Barboursville,Bath,Beckley,Bluefield,Bolivar,Bridgeport,Bruceton Mills,Buckhannon,Capon Bridge,Chapmanville,Charles Town,Charleston,Chester,Clarksburg,Davis,Dunbar,Elizabeth,Elkins,Ellenboro,Fairmont,Fayetteville,Follansbee,Grafton,Harpers Ferry,Harrisville,Hundred,Huntington,Hurricane,Kingwood,Lewisburg,Logan,Man,Mannington,Martinsburg,Masontown,Middlebourne,Milton,Montgomery,Moorefield,Morgantown,Moundsville,New Cumberland,New Martinsville,Nitro,Nutter Fort,Oak Hill,Paden City,Parkersburg,Paw Paw,Pennsboro,Petersburg,Pine Grove,Princeton,Quinwood,Ranson,Ravenswood,Reedsville,Richwood,Ripley,Romney,Rowlesburg,Rupert,Shepherdstown,Shinnston,Sistersville,Smithers,Sophia,South Charleston,Spencer,St Albans,Summersville,Sylvester,Terra Alta,Thomas,Tunnelton,Vienna,Wardensville,Wayne,Weirton,West Union,Weston,Westover,Wheeling,White Hall,Williamstown,",null,{"$error":"#VALUE!"},"","X","X"]
[null,"55000","Wyoming County","","Alderson,Anmoore,Ansted,Athens,Barboursville,Bath,Beckley,Bluefield,Bolivar,Bridgeport,Bruceton Mills,Buckhannon,Capon Bridge,Chapmanville,Charles Town,Charleston,Chester,Clarksburg,Davis,Dunbar,Elizabeth,Elkins,Ellenboro,Fairmont,Fayetteville,Follansbee,Grafton,Harpers Ferry,Harrisville,Hundred,Huntington,Hurricane,Kingwood,Lewisburg,Logan,Man,Mannington,Martinsburg,Masontown,Middlebourne,Milton,Montgomery,Moorefield,Morgantown,Moundsville,New Cumberland,New Martinsville,Nitro,Nutter Fort,Oak Hill,Paden City,Parkersburg,Paw Paw,Pennsboro,Petersburg,Pine Grove,Princeton,Quinwood,Ranson,Ravenswood,Reedsville,Richwood,Ripley,Romney,Rowlesburg,Rupert,Shepherdstown,Shinnston,Sistersville,Smithers,Sophia,South Charleston,Spencer,St Albans,Summersville,Sylvester,Terra Alta,Thomas,Tunnelton,Vienna,Wardensville,Wayne,Weirton,West Union,Weston,Westover,Wheeling,White Hall,Williamstown,",null,{"$error":"#VALUE!"},"","X","X"]